Workbook

Sheet Input Data
A1: SC120020/2 Appendix D_Effective Rainfall Matrix Calculator (v0.3 March 2015).xls
A2: Effective Rainfall matrix calculator
A3: Data Input
A5: Input: DDF parameters
A6: place name | B6: Market Harborough
A7: tile reference
A9: Table 1: Drainage rates
B10: uFMFfSW rates | D10: Local rates
B11: urban | C11: rural | D11: urban | E11: rural
A12: percentage runoff | B12: 0.7 | C12: 0.39 | D12: 0.7 | E12: 0.39
A13: Infiltration capacity (mm/hr) | B13: 12 | D13: 18
A14: Inf. cap. estimate type (modal/higher/lower) | D14: modal
A16: Table 2: DDF parameters at centroid of model tile
A17: C(1 km) | B17: -0.024
A18: D1(1 km) | B18: 0.331
A19: D2(1 km) | B19: 0.262
A20: D3(1 km) | B20: 0.226
A21: E(1 km) | B21: 0.304
A22: F(1 km) | B22: 2.572
A24: Calculation: Rainfall Frequency (At-A-Point) for 1, 3 and 6 hour duration storm
A25: Table 3: rainfall frequency at a a point calculated from DDF parameters
A26: Return Period, T | B26: 30 | C26: 100 | D26: 1000
A27: Gumbel Reduced Variate, y | B27: =-LN(-LN(1-1/B26)) -> 3.384294493 | C27: =-LN(-LN(1-1/C26)) -> 4.600149227 | D27: =-LN(-LN(1-1/D26)) -> 6.907255071
A28: Duration, D
A29: 1 | B29: =EXP(($B$17*B$27+$B$18)*LN($A$29)+($B$21*B$27)+$B$22) -> 36.62845971 | C29: =EXP(($B$17*C$27+$B$18)*LN($A$29)+($B$21*C$27)+$B$22) -> 53.00813355 | D29: =EXP(($B$17*D$27+$B$18)*LN($A$29)+($B$21*D$27)+$B$22) -> 106.8905636
A30: 12 | B30: =EXP(($B$17*B$27+$B$18)*LN($A$30)+($B$21*B$27)+$B$22) -> 68.13546703 | C30: =EXP(($B$17*C$27+$B$18)*LN($A$30)+($B$21*C$27)+$B$22) -> 91.70774834 | D30: =EXP(($B$17*D$27+$B$18)*LN($A$30)+($B$21*D$27)+$B$22) -> 161.1565778
A31: 48 | B31: =EXP(LN(B$30)+($B$17*B$27+$B$19)*(LN($A$31)-LN(12))) -> 87.54105886 | C31: =EXP(LN(C$30)+($B$17*C$27+$B$19)*(LN($A$31)-LN(12))) -> 113.1556305 | D31: =EXP(LN(D$30)+($B$17*D$27+$B$19)*(LN($A$31)-LN(12))) -> 184.1542677
A32: 96 | B32: =EXP(LN(B$31)+($B$17*B$27+$B$20)*(LN($A$32)-LN(48))) -> 96.78186674 | C32: =EXP(LN(C$31)+($B$17*C$27+$B$20)*(LN($A$32)-LN(48))) -> 122.5953953 | D32: =EXP(LN(D$31)+($B$17*D$27+$B$20)*(LN($A$32)-LN(48))) -> 192.004578
A34: Table 4: Rainfall frequency for required durations calculated from table 2
B35: 30 | C35: 100 | D35: 1000
A36: 1.083333333 | B36: =IF($A$36<=12,EXP(($B$17*B$27+$B$18)*LN($A$36)+($B$21*B$27)+$B$22),IF($A$36<=48,EXP(LN(B$30)+($B$17*B$27+$B$19)*(LN($A$36)-LN(12))),IF($A$36>48,EXP(LN(B$31)+($B$17*B$27+$B$20)*(LN($A$36)-LN(48))),"ARSE"))) -> 37.36813545 | C36: =IF($A$36<=12,EXP(($B$17*C$27+$B$18)*LN($A$36)+($B$21*C$27)+$B$22),IF($A$36<=48,EXP(LN(C$30)+($B$17*C$27+$B$19)*(LN($A$36)-LN(12))),IF($A$36>48,EXP(LN(C$31)+($B$17*C$27+$B$20)*(LN($A$36)-LN(48))),"ARSE"))) -> 53.95241744 | D36: =IF($A$36<=12,EXP(($B$17*D$27+$B$18)*LN($A$36)+($B$21*D$27)+$B$22),IF($A$36<=48,EXP(LN(D$30)+($B$17*D$27+$B$19)*(LN($A$36)-LN(12))),IF($A$36>48,EXP(LN(D$31)+($B$17*D$27+$B$20)*(LN($A$36)-LN(48))),"ARSE"))) -> 108.313594
A37: 3.083333333 | B37: =IF($A$37<=12,EXP(($B$17*B$27+$B$18)*LN($A$37)+($B$21*B$27)+$B$22),IF($A$37<=48,EXP(LN(B$30)+($B$17*B$27+$B$19)*(LN($A$37)-LN(12))),IF($A$37>48,EXP(LN(B$31)+($B$17*B$27+$B$20)*(LN($A$37)-LN(48))),"ARSE"))) -> 48.52490468 | C37: =IF($A$37<=12,EXP(($B$17*C$27+$B$18)*LN($A$37)+($B$21*C$27)+$B$22),IF($A$37<=48,EXP(LN(C$30)+($B$17*C$27+$B$19)*(LN($A$37)-LN(12))),IF($A$37>48,EXP(LN(C$31)+($B$17*C$27+$B$20)*(LN($A$37)-LN(48))),"ARSE"))) -> 67.95457157 | D37: =IF($A$37<=12,EXP(($B$17*D$27+$B$18)*LN($A$37)+($B$21*D$27)+$B$22),IF($A$37<=48,EXP(LN(D$30)+($B$17*D$27+$B$19)*(LN($A$37)-LN(12))),IF($A$37>48,EXP(LN(D$31)+($B$17*D$27+$B$20)*(LN($A$37)-LN(48))),"ARSE"))) -> 128.7473223
A38: 6.083333333 | B38: =IF($A$38<=12,EXP(($B$17*B$27+$B$18)*LN($A$38)+($B$21*B$27)+$B$22),IF($A$38<=48,EXP(LN(B$30)+($B$17*B$27+$B$19)*(LN($A$38)-LN(12))),IF($A$38>48,EXP(LN(B$31)+($B$17*B$27+$B$20)*(LN($A$38)-LN(48))),"ARSE"))) -> 57.5014959 | C38: =IF($A$38<=12,EXP(($B$17*C$27+$B$18)*LN($A$38)+($B$21*C$27)+$B$22),IF($A$38<=48,EXP(LN(C$30)+($B$17*C$27+$B$19)*(LN($A$38)-LN(12))),IF($A$38>48,EXP(LN(C$31)+($B$17*C$27+$B$20)*(LN($A$38)-LN(48))),"ARSE"))) -> 78.94440292 | D38: =IF($A$38<=12,EXP(($B$17*D$27+$B$18)*LN($A$38)+($B$21*D$27)+$B$22),IF($A$38<=48,EXP(LN(D$30)+($B$17*D$27+$B$19)*(LN($A$38)-LN(12))),IF($A$38>48,EXP(LN(D$31)+($B$17*D$27+$B$20)*(LN($A$38)-LN(48))),"ARSE"))) -> 144.0455526

Sheet Output- Rainfall Matrices
A1: SC120020/2 Appendix D_Effective Rainfall Matrix Calculator (v0.3 March 2015).xls
A2: Effective Rainfall matrix calculator
A3: Rainfall Matrices- compare table 2 and table 3 to decide which uFMfSW to re-use
A6: Table 1: Total rainfall Matrix | G6: Table 2: National Estimate effective total rainfall matrix | M6: Table 3: Local Estimate effective total rainfall matrix | S6: Table 7: Proxies for estimate of local effective total rainfall | Z6: Analysis- find proxies using defined thresholds
C7: Total rainfall (mm/hr) | I7: Net total urban rainfall (mm/hr) | M7: sewer capacity | O7: Net total urban rainfall (mm/hr) | S7: threshold for sensibility check (mm/hr) | V7: 5 | Z7: Table 8: uFMfSW effective rainfall-ascending
C8: Return period (years) | I8: Return period (years) | M8: ='Input Data'!D13 -> 18 | O8: return period (years) | S8: threshold percentage difference to proxy(%) | V8: 15 | Z8: return period | AA8: duration | AB8: rainfall | AD8: Find proxies for modal estimate
C9: 30 | D9: 100 | E9: 1000 | I9: 30 | J9: 100 | K9: 1000 | M9: mm/hr | O9: 30 | P9: 100 | Q9: 1000 | Z9: 30 | AA9: 6 | AB9: 1.5 | AD9: closest lower match | AH9: percentage difference | AL9: return period and duration
A10: Duration (hours) | B10: 1 | C10: =MROUND('Rainfall Profiles-National Est'!E35,0.5) -> 37.5 | D10: =MROUND('Rainfall Profiles-National Est'!H35,0.5) -> 54 | E10: =MROUND('Rainfall Profiles-National Est'!K35,0.5) -> 108.5 | G10: Duration (hours) | H10: 1 | I10: =MROUND('Rainfall Profiles-National Est'!G35,0.5) -> 15 | J10: =MROUND('Rainfall Profiles-National Est'!J35,0.5) -> 25.5 | K10: =MROUND('Rainfall Profiles-National Est'!M35,0.5) -> 63 | M10: Duration (hours) | N10: 1 | O10: =MROUND('Rainfall Profiles-Local Est'!G35,0.5) -> 11.5 | P10: =MROUND('Rainfall Profiles-Local Est'!J35,0.5) -> 21 | Q10: =MROUND('Rainfall Profiles-Local Est'!M35,0.5) -> 56.5 | U10: ="Table 8: Proxies for " & 'Input Data'!D14 & " estimate of infiltration capacity for " & 'Input Data'!B6 -> Table 8: Proxies for modal estimate of infiltration capacity for Market Harborough | Z10: 100 | AA10: 6 | AB10: 5.5 | AD10: =INDEX($AB$9:$AB$17,MATCH(O10,$AB$9:$AB$17,1)) -> 6 | AE10: =INDEX($AB$9:$AB$17,MATCH(P10,$AB$9:$AB$17,1)) -> 15 | AF10: 43.5 | AH10: =((O10-AD10)/O10)*100 -> 47.82608696 | AI10: =((P10-AE10)/P10)*100 -> 28.57142857 | AJ10: 23.00884956 | AL10: =IF(O10>$V$7,IF(AH10<=$V$8,INDEX($Z$9:$Z$17,MATCH(AD10,$AB$9:$AB$17,0)) & " year " & INDEX($AA$9:$AA$17,MATCH(AD10,$AB$9:$AB$17,0)) & " hour","no match"),"assess manually") -> no match | AM10: no match | AN10: no match
B11: 3 | C11: =MROUND('Rainfall Profiles-National Est'!T59,0.5) -> 37.5 | D11: =MROUND('Rainfall Profiles-National Est'!W59,0.5) -> 54 | E11: =MROUND('Rainfall Profiles-National Est'!Z59,0.5) -> 108.5 | G11: (hours) | H11: 3 | I11: =MROUND('Rainfall Profiles-National Est'!V59,0.5) -> 6 | J11: =MROUND('Rainfall Profiles-National Est'!Y59,0.5) -> 13 | K11: =MROUND('Rainfall Profiles-National Est'!AB59,0.5) -> 43.5 | M11: (hours) | N11: 3 | O11: =MROUND('Rainfall Profiles-Local Est'!V59,0.5) -> 3 | P11: =MROUND('Rainfall Profiles-Local Est'!Y59,0.5) -> 8.5 | Q11: =MROUND('Rainfall Profiles-Local Est'!AB59,0.5) -> 34 | U11: return period (years) | Z11: 30 | AA11: 3 | AB11: 6 | AD11: =INDEX($AB$9:$AB$17,MATCH(O11,$AB$9:$AB$17,1)) -> 1.5 | AE11: 6 | AF11: 27 | AH11: =((O11-AD11)/O11)*100 -> 50 | AI11: 29.41176471 | AJ11: 20.58823529 | AL11: assess manually | AM11: no match | AN11: no match
B12: 6 | C12: =MROUND('Rainfall Profiles-National Est'!AI95,0.5) -> 37.5 | D12: =MROUND('Rainfall Profiles-National Est'!AL95,0.5) -> 54 | E12: =MROUND('Rainfall Profiles-National Est'!AO95,0.5) -> 108.5 | H12: 6 | I12: =MROUND('Rainfall Profiles-National Est'!AK95,0.5) -> 1.5 | J12: =MROUND('Rainfall Profiles-National Est'!AN95,0.5) -> 5.5 | K12: =MROUND('Rainfall Profiles-National Est'!AQ95,0.5) -> 27 | N12: 6 | O12: =MROUND('Rainfall Profiles-Local Est'!AK95,0.5) -> 0.5 | P12: =MROUND('Rainfall Profiles-Local Est'!AN95,0.5) -> 2 | Q12: =MROUND('Rainfall Profiles-Local Est'!AQ95,0.5) -> 17 | U12: 30 | V12: 100 | W12: 1000 | Z12: 100 | AA12: 3 | AB12: 13 | AE12: 1.5 | AF12: =INDEX($AB$9:$AB$17,MATCH(Q12,$AB$9:$AB$17,1)) -> 15 | AI12: 25 | AJ12: 11.76470588 | AL12: assess manually | AM12: assess manually | AN12: 30 year 1 hour
S13: duration (hours) | T13: 1 | U13: =IF(O11<$T$9,"assess manually",IF(AL10="no match",IF(AL15="no match","no match",AL15),IF(AL15="no match",AL10,AL10&" and "&AL15))) -> 100 year 3 hour | V13: no match | W13: 1000 year 1 hour | Z13: 30 | AA13: 1 | AB13: 15
T14: 3 | U14: assess manually and assess manually | V14: no match | W14: no match | Z14: 100 | AA14: 1 | AB14: 25.5 | AD14: closest higher match | AH14: percentage difference | AL14: return period and duration
A15: Table 4: Peak rainfall Matrix | G15: Table 5: National Estimate effective peak rainfall matrix | M15: Table 6: Local Estimate effective peak rainfall matrix | T15: 6 | U15: assess manually and assess manually | V15: assess manually and assess manually | W15: 30 year 1 hour | Z15: 1000 | AA15: 6 | AB15: 27 | AD15: =INDEX($AB$20:$AB$28,MATCH(O10,$AB$20:$AB$28,-1)) -> 13 | AE15: =INDEX($AB$20:$AB$28,MATCH(P10,$AB$20:$AB$28,-1)) -> 25.5 | AF15: 63 | AH15: =(AD15-O10)/O10*100 -> 13.04347826 | AI15: =(AE15-P10)/P10*100 -> 21.42857143 | AJ15: 11.50442478 | AL15: =IF(O10>$V$7,IF(AH15<=$V$8,INDEX($Z$20:$Z$28,MATCH(AD15,$AB$20:$AB$28,0)) & " year " & INDEX($AA$20:$AA$28,MATCH(AD15,$AB$20:$AB$28,0)) & " hour","no match"),"assess manually") -> 100 year 3 hour | AM15: no match | AN15: 1000 year 1 hour
C16: peak rainfall (mm/hr) | I16: effective peak urban rainfall (mm/hr) | O16: effective peak urban rainfall (mm/hr) | Z16: 1000 | AA16: 3 | AB16: 43.5 | AD16: =INDEX($AB$20:$AB$28,MATCH(O11,$AB$20:$AB$28,-1)) -> 5.5 | AE16: 13 | AF16: 43.5 | AH16: =(AD16-O11)/O11*100 -> 83.33333333 | AI16: 52.94117647 | AJ16: 27.94117647 | AL16: assess manually | AM16: no match | AN16: no match
C17: return period (years) | I17: return period (years) | O17: return period (years) | Z17: 1000 | AA17: 1 | AB17: 63 | AD17: 1.5 | AE17: 5.5 | AF17: 25.5 | AH17: =(AD17-O12)/O12*100 -> 200 | AI17: 175 | AJ17: 50 | AL17: assess manually | AM17: assess manually | AN17: no match
C18: 30 | D18: 100 | E18: 1000 | I18: 30 | J18: 100 | K18: 1000 | O18: 30 | P18: 100 | Q18: 1000 | Z18: Table 9: uFMfSW effective rainfall-descending
A19: duration (hours) | B19: 1 | C19: =MROUND('Rainfall Profiles-National Est'!E36,0.5) -> 10.5 | D19: =MROUND('Rainfall Profiles-National Est'!H36,0.5) -> 15 | E19: =MROUND('Rainfall Profiles-National Est'!K36,0.5) -> 30 | G19: duration (hours) | H19: 1 | I19: =MROUND('Rainfall Profiles-National Est'!G36,0.5) -> 6 | J19: =MROUND('Rainfall Profiles-National Est'!J36,0.5) -> 9.5 | K19: =MROUND('Rainfall Profiles-National Est'!M36,0.5) -> 20 | M19: duration (hours) | N19: 1 | O19: =MROUND('Rainfall Profiles-Local Est'!G36,0.5) -> 5.5 | P19: =MROUND('Rainfall Profiles-Local Est'!J36,0.5) -> 9 | Q19: =MROUND('Rainfall Profiles-Local Est'!M36,0.5) -> 19.5 | Z19: return period | AA19: duration | AB19: rainfall
B20: 3 | C20: =MROUND('Rainfall Profiles-National Est'!T60,0.5) -> 4.5 | D20: =MROUND('Rainfall Profiles-National Est'!$W$60,0.5) -> 7 | E20: =MROUND('Rainfall Profiles-National Est'!$Z$60,0.5) -> 14 | H20: 3 | I20: =MROUND('Rainfall Profiles-National Est'!$V$60,0.5) -> 2.5 | J20: =MROUND('Rainfall Profiles-National Est'!$Y$60,0.5) -> 4 | K20: =MROUND('Rainfall Profiles-National Est'!$AB$60,0.5) -> 8.5 | N20: 3 | O20: =MROUND('Rainfall Profiles-Local Est'!V60,0.5) -> 2 | P20: =MROUND('Rainfall Profiles-Local Est'!Y60,0.5) -> 3.5 | Q20: =MROUND('Rainfall Profiles-Local Est'!AB60,0.5) -> 8 | Z20: 1000 | AA20: 1 | AB20: 63
B21: 6 | C21: =MROUND('Rainfall Profiles-National Est'!AI96,0.5) -> 3 | D21: =MROUND('Rainfall Profiles-National Est'!AL96,0.5) -> 4 | E21: =MROUND('Rainfall Profiles-National Est'!AO96,0.5) -> 8 | H21: 6 | I21: =MROUND('Rainfall Profiles-National Est'!AK96,0.5) -> 1 | J21: =MROUND('Rainfall Profiles-National Est'!AN96,0.5) -> 2 | K21: =MROUND('Rainfall Profiles-National Est'!AQ96,0.5) -> 4.5 | N21: 6 | O21: =MROUND('Rainfall Profiles-Local Est'!AK96,0.5) -> 0.5 | P21: =MROUND('Rainfall Profiles-Local Est'!AN96,0.5) -> 1.5 | Q21: =MROUND('Rainfall Profiles-Local Est'!AQ96,0.5) -> 4 | Z21: 1000 | AA21: 3 | AB21: 43.5
Z22: 1000 | AA22: 6 | AB22: 27
Z23: 100 | AA23: 1 | AB23: 25.5
Z24: 30 | AA24: 1 | AB24: 15
Z25: 100 | AA25: 3 | AB25: 13
Z26: 30 | AA26: 3 | AB26: 6
Z27: 100 | AA27: 6 | AB27: 5.5
Z28: 30 | AA28: 6 | AB28: 1.5

Sheet Net rainfall summary
A4: SC120020/2 Appendix D_Effective Rainfall Matrix Calculator (v0.3 March 2015).xls
G6: Effective total urban rainfall (mm/hr)
G7: Return period (years)
G8: 1000
E9: Duration | F9: 1 | G9: 56.5
E10: (hours) | F10: 3 | G10: 34
F11: 6 | G11: 17
G15: Net total urban rainfall (mm/hr)
G16: Return period (years)
G17: 30 | H17: 100 | I17: 1000
E18: Duration (hours) | F18: 1 | G18: 15 | H18: 25.5 | I18: 63
E19: (hours) | F19: 3 | G19: 6 | H19: 13 | I19: 43.5
F20: 6 | G20: 1.5 | H20: 5.5 | I20: 27
G25: Difference in net rainfall volumes (%)
G26: Return period (years)
G27: 30 | H27: 100 | I27: 1000
E28: Duration | F28: 1 | G28: =($G$10-G18)/$G$10*100 -> 55.88235294 | H28: =($G$10-H18)/$G$10*100 -> 25 | I28: =(I18-$G$10)/$G$10*100 -> 85.29411765
E29: (hours) | F29: 3 | G29: =($G$10-G19)/$G$10*100 -> 82.35294118 | H29: 61.76470588 | I29: =(I19-$G$10)/$G$10*100 -> 27.94117647
F30: 6 | G30: 95.58823529 | H30: 83.82352941 | I30: 20.58823529
M41: Return period (years)
M42: 100
K43: Duration | L43: 1 | M43: 100 year 1 hour
K44: (hours) | L44: 3 | M44: 100 year 3 hour and 30 year 1 hour
L45: 6 | M45: assess manually
D48: =1/20.5 -> 0.0487804878
D49: =0.5/11 -> 0.04545454545
D50: =0.5/4*100 -> 12.5

Sheet Sensitivity Testing

Sheet Rainfall Profiles-National Est
A1: SC120020/2 Appendix D_Effective Rainfall Matrix Calculator (v0.3 March 2015).xls
A2: Effective Rainfall matrix calculator
A3: Calculations: DDF Rainfall profiles with national estimate of drainage rates
A6: table 1: DDF Rainfall
A7: Duration, D | B7: 1.08
A8: Return Period, T | B8: Rainfall (mm)
A9: 30 | B9: ='Input Data'!B36 -> 37.36813545
A10: 100 | B10: ='Input Data'!C36 -> 53.95241744
A11: 1000 | B11: ='Input Data'!D36 -> 108.313594
A13: Table 2: Design Storm Profile
A14: Profile | B14: SUMMER
A15: a | B15: =IF(B14="Summer",0.1,0.06) -> 0.1
A16: b | B16: =IF(B14="Summer",0.815,1.026) -> 0.815
A18: Table 3: 1 hour DDF Rainfall profiles | P18: Table 4: 3 hour DDF Rainfall profiles | AE18: Table 5: 6 hour DDF Rainfall profiles
E19: 30 year return period | H19: 100 year return period | K19: 1000 year return period | T19: 30 year return period | W19: 100 year return period | Z19: 1000 year return period | AI19: 30 year return period | AL19: 100 year return period | AO19: 1000 year return period
E20: Rainfall | H20: Rainfall | K20: Rainfall | T20: Rainfall | W20: Rainfall | Z20: Rainfall | AI20: Rainfall | AL20: Rainfall | AO20: Rainfall
B21: Time (hours) | C21: z | D21: y (Prop Rainfall Depth) | E21: All (mm) | F21: Rural (mm) | G21: Urban (mm) | H21: All (mm) | I21: Rural (mm) | J21: Urban (mm) | K21: All (mm) | L21: Rural (mm) | M21: Urban (mm) | Q21: Time (hours) | R21: z | S21: y (Prop Rainfall Depth) | T21: All (mm) | U21: Rural (mm) | V21: Urban (mm) | W21: All (mm) | X21: Rural (mm) | Y21: Urban (mm) | Z21: All (mm) | AA21: Rural (mm) | AB21: Urban (mm) | AF21: Time (hours) | AG21: z | AH21: y (Prop Rainfall Depth) | AI21: All (mm) | AJ21: Rural (mm) | AK21: Urban (mm) | AL21: All (mm) | AM21: Rural (mm) | AN21: Urban (mm) | AO21: All (mm) | AP21: Rural (mm) | AQ21: Urban (mm)
A22: 6 | B22: 0.08333333333 | C22: 1 | D22: 0.01892020984 | E22: =D22*$B$9 -> 0.7070129641 | F22: =E22*'Input Data'!$C$12 -> 0.275735056 | G22: =IF(E22*'Input Data'!$B$12-('Input Data'!$B$13*0.08333333)<0,0,E22*'Input Data'!$B$12-('Input Data'!$B$13*0.08333333)) -> 0 | H22: =D22*$B$10 -> 1.020791059 | I22: =H22*'Input Data'!$C$12 -> 0.3981085132 | J22: =IF(H22*'Input Data'!$B$12-('Input Data'!$B$13*0.08333333)<0,0,H22*'Input Data'!$B$12-('Input Data'!$B$13*0.08333333)) -> 0 | K22: =D22*$B$11 -> 2.049315928 | L22: =K22*'Input Data'!$C$12 -> 0.7992332118 | M22: =IF(K22*'Input Data'!$B$12-('Input Data'!$B$13*0.08333333)<0,0,K22*'Input Data'!$B$12-('Input Data'!$B$13*0.08333333)) -> 0.4345211894 | P22: 18 | Q22: 0.08333333333 | R22: 1 | S22: 0.005963075977 | T22: =S22*$B$9 -> 0.2228290308 | U22: =T22*'Input Data'!$C$12 -> 0.08690332202 | V22: =IF(T22*'Input Data'!$B$12-('Input Data'!$B$13*0.08333333)<0,0,T22*'Input Data'!$B$12-('Input Data'!$B$13*0.08333333)) -> 0 | W22: =S22*$B$10 -> 0.3217223643 | X22: =W22*'Input Data'!$C$12 -> 0.1254717221 | Y22: =IF(W22*'Input Data'!$B$12-('Input Data'!$B$13*0.08333333)<0,0,W22*'Input Data'!$B$12-('Input Data'!$B$13*0.08333333)) -> 0 | Z22: =S22*$B$11 -> 0.6458821906 | AA22: =Z22*'Input Data'!$C$12 -> 0.2518940543 | AB22: =IF(Z22*'Input Data'!$B$12-('Input Data'!$B$13*0.08333333)<0,0,Z22*'Input Data'!$B$12-('Input Data'!$B$13*0.08333333)) -> 0 | AE22: 36 | AF22: 0.08333333333 | AG22: 1 | AH22: 0.002938733963 | AI22: =AH22*$B$9 -> 0.1098150088 | AJ22: =AI22*'Input Data'!$C$12 -> 0.04282785342 | AK22: =IF(AI22*'Input Data'!$B$12-('Input Data'!$B$13*0.08333333)<0,0,AI22*'Input Data'!$B$12-('Input Data'!$B$13*0.08333333)) -> 0 | AL22: =AH22*$B$10 -> 0.1585518015 | AM22: =AL22*'Input Data'!$C$12 -> 0.06183520258 | AN22: =IF(AL22*'Input Data'!$B$12-('Input Data'!$B$13*0.08333333)<0,0,AL22*'Input Data'!$B$12-('Input Data'!$B$13*0.08333333)) -> 0 | AO22: =AH22*$B$11 -> 0.3183048374 | AP22: =AO22*'Input Data'!$C$12 -> 0.1241388866 | AQ22: =IF(AO22*'Input Data'!$B$12-('Input Data'!$B$13*0.08333333)<0,0,AO22*'Input Data'!$B$12-('Input Data'!$B$13*0.08333333)) -> 0
A23: 5 | B23: 0.1666666667 | C23: 0.8727125197 | D23: 0.02637606988 | E23: 0.9856245519 | F23: =E23*'Input Data'!$C$12 -> 0.3843935753 | G23: =IF(E23*'Input Data'!$B$12-('Input Data'!$B$13*0.08333333)<0,0,E23*'Input Data'!$B$12-('Input Data'!$B$13*0.08333333)) -> 0 | H23: 1.423052733 | I23: =H23*'Input Data'!$C$12 -> 0.5549905657 | J23: =IF(H23*'Input Data'!$B$12-('Input Data'!$B$13*0.08333333)<0,0,H23*'Input Data'!$B$12-('Input Data'!$B$13*0.08333333)) -> 0 | K23: 2.856886925 | L23: =K23*'Input Data'!$C$12 -> 1.114185901 | M23: =IF(K23*'Input Data'!$B$12-('Input Data'!$B$13*0.08333333)<0,0,K23*'Input Data'!$B$12-('Input Data'!$B$13*0.08333333)) -> 0.9998208876 | P23: 17 | Q23: 0.1666666667 | R23: 0.9557208288 | S23: 0.006677022062 | T23: =S23*$B$9 -> 0.2495078648 | U23: =T23*'Input Data'!$C$12 -> 0.09730806728 | V23: =IF(T23*'Input Data'!$B$12-('Input Data'!$B$13*0.08333333)<0,0,T23*'Input Data'!$B$12-('Input Data'!$B$13*0.08333333)) -> 0 | W23: =S23*$B$10 -> 0.3602414815 | X23: =W23*'Input Data'!$C$12 -> 0.1404941778 | Y23: =IF(W23*'Input Data'!$B$12-('Input Data'!$B$13*0.08333333)<0,0,W23*'Input Data'!$B$12-('Input Data'!$B$13*0.08333333)) -> 0 | Z23: =S23*$B$11 -> 0.7232122569 | AA23: =Z23*'Input Data'!$C$12 -> 0.2820527802 | AB23: =IF(Z23*'Input Data'!$B$12-('Input Data'!$B$13*0.08333333)<0,0,Z23*'Input Data'!$B$12-('Input Data'!$B$13*0.08333333)) -> 0 | AE23: 35 | AF23: 0.1666666667 | AG23: 0.9776140246 | AH23: 0.003110776386 | AI23: =AH23*$B$9 -> 0.1162439133 | AJ23: =AI23*'Input Data'!$C$12 -> 0.0453351262 | AK23: =IF(AI23*'Input Data'!$B$12-('Input Data'!$B$13*0.08333333)<0,0,AI23*'Input Data'!$B$12-('Input Data'!$B$13*0.08333333)) -> 0 | AL23: =AH23*$B$10 -> 0.1678339061 | AM23: =AL23*'Input Data'!$C$12 -> 0.06545522339 | AN23: =IF(AL23*'Input Data'!$B$12-('Input Data'!$B$13*0.08333333)<0,0,AL23*'Input Data'!$B$12-('Input Data'!$B$13*0.08333333)) -> 0 | AO23: =AH23*$B$11 -> 0.3369393706 | AP23: =AO23*'Input Data'!$C$12 -> 0.1314063545 | AQ23: =IF(AO23*'Input Data'!$B$12-('Input Data'!$B$13*0.08333333)<0,0,AO23*'Input Data'!$B$12-('Input Data'!$B$13*0.08333333)) -> 0
A24: 4 | B24: 0.25 | C24: 0.7410436891 | D24: 0.03748260863 | E24: 1.400655196 | F24: =E24*'Input Data'!$C$12 -> 0.5462555265 | G24: =IF(E24*'Input Data'!$B$12-('Input Data'!$B$13*0.08333333)<0,0,E24*'Input Data'!$B$12-('Input Data'!$B$13*0.08333333)) -> 0 | H24: 2.022277347 | I24: =H24*'Input Data'!$C$12 -> 0.7886881655 | J24: =IF(H24*'Input Data'!$B$12-('Input Data'!$B$13*0.08333333)<0,0,H24*'Input Data'!$B$12-('Input Data'!$B$13*0.08333333)) -> 0.4155941832 | K24: 4.059876054 | L24: =K24*'Input Data'!$C$12 -> 1.583351661 | M24: =IF(K24*'Input Data'!$B$12-('Input Data'!$B$13*0.08333333)<0,0,K24*'Input Data'!$B$12-('Input Data'!$B$13*0.08333333)) -> 1.841913278 | P24: 16 | Q24: 0.25 | R24: 0.9109707988 | S24: 0.007489663011 | T24: 0.2798747418 | U24: =T24*'Input Data'!$C$12 -> 0.1091511493 | V24: =IF(T24*'Input Data'!$B$12-('Input Data'!$B$13*0.08333333)<0,0,T24*'Input Data'!$B$12-('Input Data'!$B$13*0.08333333)) -> 0 | W24: 0.4040854252 | X24: =W24*'Input Data'!$C$12 -> 0.1575933158 | Y24: =IF(W24*'Input Data'!$B$12-('Input Data'!$B$13*0.08333333)<0,0,W24*'Input Data'!$B$12-('Input Data'!$B$13*0.08333333)) -> 0 | Z24: 0.8112323187 | AA24: =Z24*'Input Data'!$C$12 -> 0.3163806043 | AB24: =IF(Z24*'Input Data'!$B$12-('Input Data'!$B$13*0.08333333)<0,0,Z24*'Input Data'!$B$12-('Input Data'!$B$13*0.08333333)) -> 0 | AE24: 34 | AF24: 0.25 | AG24: 0.9551110684 | AH24: 0.003294291008 | AI24: 0.1231015126 | AJ24: =AI24*'Input Data'!$C$12 -> 0.04800958991 | AK24: =IF(AI24*'Input Data'!$B$12-('Input Data'!$B$13*0.08333333)<0,0,AI24*'Input Data'!$B$12-('Input Data'!$B$13*0.08333333)) -> 0 | AL24: 0.1777349636 | AM24: =AL24*'Input Data'!$C$12 -> 0.06931663581 | AN24: =IF(AL24*'Input Data'!$B$12-('Input Data'!$B$13*0.08333333)<0,0,AL24*'Input Data'!$B$12-('Input Data'!$B$13*0.08333333)) -> 0 | AO24: 0.3568164989 | AP24: =AO24*'Input Data'!$C$12 -> 0.1391584346 | AQ24: =IF(AO24*'Input Data'!$B$12-('Input Data'!$B$13*0.08333333)<0,0,AO24*'Input Data'!$B$12-('Input Data'!$B$13*0.08333333)) -> 0
A25: 3 | B25: 0.3333333333 | C25: 0.6037971663 | D25: 0.05474870231 | E25: 2.045856923 | F25: =E25*'Input Data'!$C$12 -> 0.7978842001 | G25: =IF(E25*'Input Data'!$B$12-('Input Data'!$B$13*0.08333333)<0,0,E25*'Input Data'!$B$12-('Input Data'!$B$13*0.08333333)) -> 0.4320998864 | H25: 2.953824841 | I25: =H25*'Input Data'!$C$12 -> 1.151991688 | J25: =IF(H25*'Input Data'!$B$12-('Input Data'!$B$13*0.08333333)<0,0,H25*'Input Data'!$B$12-('Input Data'!$B$13*0.08333333)) -> 1.067677429 | K25: 5.930028715 | L25: =K25*'Input Data'!$C$12 -> 2.312711199 | M25: =IF(K25*'Input Data'!$B$12-('Input Data'!$B$13*0.08333333)<0,0,K25*'Input Data'!$B$12-('Input Data'!$B$13*0.08333333)) -> 3.15102014 | P25: 15 | Q25: 0.3333333333 | R25: 0.8657158629 | S25: 0.008417464798 | T25: 0.3145449647 | U25: =T25*'Input Data'!$C$12 -> 0.1226725362 | V25: =IF(T25*'Input Data'!$B$12-('Input Data'!$B$13*0.08333333)<0,0,T25*'Input Data'!$B$12-('Input Data'!$B$13*0.08333333)) -> 0 | W25: 0.4541425745 | X25: =W25*'Input Data'!$C$12 -> 0.1771156041 | Y25: =IF(W25*'Input Data'!$B$12-('Input Data'!$B$13*0.08333333)<0,0,W25*'Input Data'!$B$12-('Input Data'!$B$13*0.08333333)) -> 0 | Z25: 0.9117258648 | AA25: =Z25*'Input Data'!$C$12 -> 0.3555730873 | AB25: =IF(Z25*'Input Data'!$B$12-('Input Data'!$B$13*0.08333333)<0,0,Z25*'Input Data'!$B$12-('Input Data'!$B$13*0.08333333)) -> 0 | AE25: 33 | AF25: 0.3333333333 | AG25: 0.9324871015 | AH25: 0.003490180255 | AI25: 0.1304215285 | AJ25: =AI25*'Input Data'!$C$12 -> 0.05086439612 | AK25: =IF(AI25*'Input Data'!$B$12-('Input Data'!$B$13*0.08333333)<0,0,AI25*'Input Data'!$B$12-('Input Data'!$B$13*0.08333333)) -> 0 | AL25: 0.1883036621 | AM25: =AL25*'Input Data'!$C$12 -> 0.0734384282 | AN25: =IF(AL25*'Input Data'!$B$12-('Input Data'!$B$13*0.08333333)<0,0,AL25*'Input Data'!$B$12-('Input Data'!$B$13*0.08333333)) -> 0 | AO25: 0.3780339672 | AP25: =AO25*'Input Data'!$C$12 -> 0.1474332472 | AQ25: =IF(AO25*'Input Data'!$B$12-('Input Data'!$B$13*0.08333333)<0,0,AO25*'Input Data'!$B$12-('Input Data'!$B$13*0.08333333)) -> 0
A26: 2 | B26: 0.4166666667 | C26: 0.458983128 | D26: 0.08363849729 | E26: 3.125414695 | F26: =E26*'Input Data'!$C$12 -> 1.218911731 | G26: =IF(E26*'Input Data'!$B$12-('Input Data'!$B$13*0.08333333)<0,0,E26*'Input Data'!$B$12-('Input Data'!$B$13*0.08333333)) -> 1.187790327 | H26: 4.51249912 | I26: =H26*'Input Data'!$C$12 -> 1.759874657 | J26: =IF(H26*'Input Data'!$B$12-('Input Data'!$B$13*0.08333333)<0,0,H26*'Input Data'!$B$12-('Input Data'!$B$13*0.08333333)) -> 2.158749424 | K26: 9.05918624 | L26: =K26*'Input Data'!$C$12 -> 3.533082634 | M26: =IF(K26*'Input Data'!$B$12-('Input Data'!$B$13*0.08333333)<0,0,K26*'Input Data'!$B$12-('Input Data'!$B$13*0.08333333)) -> 5.341430408 | P26: 14 | Q26: 0.4166666667 | R26: 0.8199171361 | S26: 0.009480371156 | T26: 0.3542637934 | U26: =T26*'Input Data'!$C$12 -> 0.1381628794 | V26: =IF(T26*'Input Data'!$B$12-('Input Data'!$B$13*0.08333333)<0,0,T26*'Input Data'!$B$12-('Input Data'!$B$13*0.08333333)) -> 0 | W26: 0.511488942 | X26: =W26*'Input Data'!$C$12 -> 0.1994806874 | Y26: =IF(W26*'Input Data'!$B$12-('Input Data'!$B$13*0.08333333)<0,0,W26*'Input Data'!$B$12-('Input Data'!$B$13*0.08333333)) -> 0 | Z26: 1.026853073 | AA26: =Z26*'Input Data'!$C$12 -> 0.4004726983 | AB26: =IF(Z26*'Input Data'!$B$12-('Input Data'!$B$13*0.08333333)<0,0,Z26*'Input Data'!$B$12-('Input Data'!$B$13*0.08333333)) -> 0 | AE26: 32 | AF26: 0.4166666667 | AG26: 0.9097378303 | AH26: 0.00369943333 | AI26: 0.1382409258 | AJ26: =AI26*'Input Data'!$C$12 -> 0.05391396105 | AK26: =IF(AI26*'Input Data'!$B$12-('Input Data'!$B$13*0.08333333)<0,0,AI26*'Input Data'!$B$12-('Input Data'!$B$13*0.08333333)) -> 0 | AL26: 0.1995933713 | AM26: =AL26*'Input Data'!$C$12 -> 0.07784141481 | AN26: =IF(AL26*'Input Data'!$B$12-('Input Data'!$B$13*0.08333333)<0,0,AL26*'Input Data'!$B$12-('Input Data'!$B$13*0.08333333)) -> 0 | AO26: 0.4006989198 | AP26: =AO26*'Input Data'!$C$12 -> 0.1562725787 | AQ26: =IF(AO26*'Input Data'!$B$12-('Input Data'!$B$13*0.08333333)<0,0,AO26*'Input Data'!$B$12-('Input Data'!$B$13*0.08333333)) -> 0
A27: 1 | B27: 0.5 | C27: 0.3026843665 | D27: 0.1411991634 | E27: 5.276349464 | F27: =E27*'Input Data'!$C$12 -> 2.057776291 | G27: =IF(E27*'Input Data'!$B$12-('Input Data'!$B$13*0.08333333)<0,0,E27*'Input Data'!$B$12-('Input Data'!$B$13*0.08333333)) -> 2.693444665 | H27: 7.618036207 | I27: =H27*'Input Data'!$C$12 -> 2.971034121 | J27: =IF(H27*'Input Data'!$B$12-('Input Data'!$B$13*0.08333333)<0,0,H27*'Input Data'!$B$12-('Input Data'!$B$13*0.08333333)) -> 4.332625385 | K27: 15.29378886 | L27: =K27*'Input Data'!$C$12 -> 5.964577657 | M27: =IF(K27*'Input Data'!$B$12-('Input Data'!$B$13*0.08333333)<0,0,K27*'Input Data'!$B$12-('Input Data'!$B$13*0.08333333)) -> 9.705652245 | P27: 13 | Q27: 0.5 | R27: 0.7735298236 | S27: 0.01070276886 | T27: 0.3999425163 | U27: =T27*'Input Data'!$C$12 -> 0.1559775814 | V27: =IF(T27*'Input Data'!$B$12-('Input Data'!$B$13*0.08333333)<0,0,T27*'Input Data'!$B$12-('Input Data'!$B$13*0.08333333)) -> 0 | W27: 0.577440253 | X27: =W27*'Input Data'!$C$12 -> 0.2252016987 | Y27: =IF(W27*'Input Data'!$B$12-('Input Data'!$B$13*0.08333333)<0,0,W27*'Input Data'!$B$12-('Input Data'!$B$13*0.08333333)) -> 0 | Z27: 1.159255361 | AA27: =Z27*'Input Data'!$C$12 -> 0.4521095907 | AB27: =IF(Z27*'Input Data'!$B$12-('Input Data'!$B$13*0.08333333)<0,0,Z27*'Input Data'!$B$12-('Input Data'!$B$13*0.08333333)) -> 0 | AE27: 31 | AF27: 0.5 | AG27: 0.8868586715 | AH27: 0.003923136679 | AI27: 0.1466003028 | AJ27: =AI27*'Input Data'!$C$12 -> 0.05717411809 | AK27: =IF(AI27*'Input Data'!$B$12-('Input Data'!$B$13*0.08333333)<0,0,AI27*'Input Data'!$B$12-('Input Data'!$B$13*0.08333333)) -> 0 | AL27: 0.2116627077 | AM27: =AL27*'Input Data'!$C$12 -> 0.08254845602 | AN27: =IF(AL27*'Input Data'!$B$12-('Input Data'!$B$13*0.08333333)<0,0,AL27*'Input Data'!$B$12-('Input Data'!$B$13*0.08333333)) -> 0 | AO27: 0.4249290335 | AP27: =AO27*'Input Data'!$C$12 -> 0.1657223231 | AQ27: =IF(AO27*'Input Data'!$B$12-('Input Data'!$B$13*0.08333333)<0,0,AO27*'Input Data'!$B$12-('Input Data'!$B$13*0.08333333)) -> 0
A28: 0 | B28: 0.5833333333 | C28: 0.1236335011 | D28: 0.2752694972 | E28: 10.28630786 | F28: =E28*'Input Data'!$C$12 -> 4.011660064 | G28: =IF(E28*'Input Data'!$B$12-('Input Data'!$B$13*0.08333333)<0,0,E28*'Input Data'!$B$12-('Input Data'!$B$13*0.08333333)) -> 6.20041554 | H28: 14.85145482 | I28: =H28*'Input Data'!$C$12 -> 5.792067381 | J28: =IF(H28*'Input Data'!$B$12-('Input Data'!$B$13*0.08333333)<0,0,H28*'Input Data'!$B$12-('Input Data'!$B$13*0.08333333)) -> 9.396018415 | K28: 29.81542857 | L28: =K28*'Input Data'!$C$12 -> 11.62801714 | M28: =IF(K28*'Input Data'!$B$12-('Input Data'!$B$13*0.08333333)<0,0,K28*'Input Data'!$B$12-('Input Data'!$B$13*0.08333333)) -> 19.87080004 | P28: 12 | Q28: 0.5833333333 | R28: 0.7265018122 | S28: 0.01211481023 | T28: 0.4527078698 | U28: =T28*'Input Data'!$C$12 -> 0.1765560692 | V28: =IF(T28*'Input Data'!$B$12-('Input Data'!$B$13*0.08333333)<0,0,T28*'Input Data'!$B$12-('Input Data'!$B$13*0.08333333)) -> 0 | W28: 0.6536232989 | X28: =W28*'Input Data'!$C$12 -> 0.2549130866 | Y28: =IF(W28*'Input Data'!$B$12-('Input Data'!$B$13*0.08333333)<0,0,W28*'Input Data'!$B$12-('Input Data'!$B$13*0.08333333)) -> 0 | Z28: 1.312198637 | AA28: =Z28*'Input Data'!$C$12 -> 0.5117574686 | AB28: =IF(Z28*'Input Data'!$B$12-('Input Data'!$B$13*0.08333333)<0,0,Z28*'Input Data'!$B$12-('Input Data'!$B$13*0.08333333)) -> 0 | AE28: 30 | AF28: 0.5833333333 | AG28: 0.8638447229 | AH28: 0.00416248605 | AI28: 0.1555443425 | AJ28: =AI28*'Input Data'!$C$12 -> 0.06066229359 | AK28: =IF(AI28*'Input Data'!$B$12-('Input Data'!$B$13*0.08333333)<0,0,AI28*'Input Data'!$B$12-('Input Data'!$B$13*0.08333333)) -> 0 | AL28: 0.224576185 | AM28: =AL28*'Input Data'!$C$12 -> 0.08758471213 | AN28: =IF(AL28*'Input Data'!$B$12-('Input Data'!$B$13*0.08333333)<0,0,AL28*'Input Data'!$B$12-('Input Data'!$B$13*0.08333333)) -> 0 | AO28: 0.4508538242 | AP28: =AO28*'Input Data'!$C$12 -> 0.1758329914 | AQ28: =IF(AO28*'Input Data'!$B$12-('Input Data'!$B$13*0.08333333)<0,0,AO28*'Input Data'!$B$12-('Input Data'!$B$13*0.08333333)) -> 0
A29: 1 | B29: 0.6666666667 | C29: 0.303 | D29: 0.1411991634 | E29: =E27 -> 5.276349464 | F29: =E29*'Input Data'!$C$12 -> 2.057776291 | G29: =IF(E29*'Input Data'!$B$12-('Input Data'!$B$13*0.08333333)<0,0,E29*'Input Data'!$B$12-('Input Data'!$B$13*0.08333333)) -> 2.693444665 | H29: 7.618036207 | I29: =H29*'Input Data'!$C$12 -> 2.971034121 | J29: =IF(H29*'Input Data'!$B$12-('Input Data'!$B$13*0.08333333)<0,0,H29*'Input Data'!$B$12-('Input Data'!$B$13*0.08333333)) -> 4.332625385 | K29: 15.29378886 | L29: =K29*'Input Data'!$C$12 -> 5.964577657 | M29: =IF(K29*'Input Data'!$B$12-('Input Data'!$B$13*0.08333333)<0,0,K29*'Input Data'!$B$12-('Input Data'!$B$13*0.08333333)) -> 9.705652245 | P29: 11 | Q29: 0.6666666667 | R29: 0.6787717848 | S29: 0.01375426806 | T29: 0.5139713519 | U29: =T29*'Input Data'!$C$12 -> 0.2004488272 | V29: =IF(T29*'Input Data'!$B$12-('Input Data'!$B$13*0.08333333)<0,0,T29*'Input Data'!$B$12-('Input Data'!$B$13*0.08333333)) -> 0 | W29: 0.7420760119 | X29: =W29*'Input Data'!$C$12 -> 0.2894096447 | Y29: =IF(W29*'Input Data'!$B$12-('Input Data'!$B$13*0.08333333)<0,0,W29*'Input Data'!$B$12-('Input Data'!$B$13*0.08333333)) -> 0 | Z29: 1.489774207 | AA29: =Z29*'Input Data'!$C$12 -> 0.5810119407 | AB29: =IF(Z29*'Input Data'!$B$12-('Input Data'!$B$13*0.08333333)<0,0,Z29*'Input Data'!$B$12-('Input Data'!$B$13*0.08333333)) -> 0.04284198479 | AE29: 29 | AF29: 0.6666666667 | AG29: 0.8406907297 | AH29: 0.004418800457 | AI29: 0.165122334 | AJ29: =AI29*'Input Data'!$C$12 -> 0.06439771025 | AK29: =IF(AI29*'Input Data'!$B$12-('Input Data'!$B$13*0.08333333)<0,0,AI29*'Input Data'!$B$12-('Input Data'!$B$13*0.08333333)) -> 0 | AL29: 0.2384049668 | AM29: =AL29*'Input Data'!$C$12 -> 0.09297793705 | AN29: =IF(AL29*'Input Data'!$B$12-('Input Data'!$B$13*0.08333333)<0,0,AL29*'Input Data'!$B$12-('Input Data'!$B$13*0.08333333)) -> 0 | AO29: 0.4786161587 | AP29: =AO29*'Input Data'!$C$12 -> 0.1866603019 | AQ29: =IF(AO29*'Input Data'!$B$12-('Input Data'!$B$13*0.08333333)<0,0,AO29*'Input Data'!$B$12-('Input Data'!$B$13*0.08333333)) -> 0
A30: 2 | B30: 0.75 | C30: 0.459 | D30: 0.08363849729 | E30: =E26 -> 3.125414695 | F30: =E30*'Input Data'!$C$12 -> 1.218911731 | G30: =IF(E30*'Input Data'!$B$12-('Input Data'!$B$13*0.08333333)<0,0,E30*'Input Data'!$B$12-('Input Data'!$B$13*0.08333333)) -> 1.187790327 | H30: 4.51249912 | I30: =H30*'Input Data'!$C$12 -> 1.759874657 | J30: =IF(H30*'Input Data'!$B$12-('Input Data'!$B$13*0.08333333)<0,0,H30*'Input Data'!$B$12-('Input Data'!$B$13*0.08333333)) -> 2.158749424 | K30: 9.05918624 | L30: =K30*'Input Data'!$C$12 -> 3.533082634 | M30: =IF(K30*'Input Data'!$B$12-('Input Data'!$B$13*0.08333333)<0,0,K30*'Input Data'!$B$12-('Input Data'!$B$13*0.08333333)) -> 5.341430408 | P30: 10 | Q30: 0.75 | R30: 0.6302666394 | S30: 0.01566920976 | T30: 0.5855291527 | U30: =T30*'Input Data'!$C$12 -> 0.2283563695 | V30: =IF(T30*'Input Data'!$B$12-('Input Data'!$B$13*0.08333333)<0,0,T30*'Input Data'!$B$12-('Input Data'!$B$13*0.08333333)) -> 0 | W30: 0.8453917458 | X30: =W30*'Input Data'!$C$12 -> 0.3297027809 | Y30: =IF(W30*'Input Data'!$B$12-('Input Data'!$B$13*0.08333333)<0,0,W30*'Input Data'!$B$12-('Input Data'!$B$13*0.08333333)) -> 0 | Z30: 1.697188425 | AA30: =Z30*'Input Data'!$C$12 -> 0.6619034856 | AB30: =IF(Z30*'Input Data'!$B$12-('Input Data'!$B$13*0.08333333)<0,0,Z30*'Input Data'!$B$12-('Input Data'!$B$13*0.08333333)) -> 0.1880319372 | AE30: 28 | AF30: 0.75 | AG30: 0.8173910467 | AH30: 0.004693538402 | AI30: 0.1753887787 | AJ30: =AI30*'Input Data'!$C$12 -> 0.06840162371 | AK30: =IF(AI30*'Input Data'!$B$12-('Input Data'!$B$13*0.08333333)<0,0,AI30*'Input Data'!$B$12-('Input Data'!$B$13*0.08333333)) -> 0 | AL30: 0.2532277431 | AM30: =AL30*'Input Data'!$C$12 -> 0.09875881981 | AN30: =IF(AL30*'Input Data'!$B$12-('Input Data'!$B$13*0.08333333)<0,0,AL30*'Input Data'!$B$12-('Input Data'!$B$13*0.08333333)) -> 0 | AO30: 0.508374013 | AP30: =AO30*'Input Data'!$C$12 -> 0.1982658651 | AQ30: =IF(AO30*'Input Data'!$B$12-('Input Data'!$B$13*0.08333333)<0,0,AO30*'Input Data'!$B$12-('Input Data'!$B$13*0.08333333)) -> 0
A31: 3 | B31: 0.8333333333 | C31: 0.604 | D31: 0.05474870231 | E31: =E25 -> 2.045856923 | F31: =E31*'Input Data'!$C$12 -> 0.7978842001 | G31: =IF(E31*'Input Data'!$B$12-('Input Data'!$B$13*0.08333333)<0,0,E31*'Input Data'!$B$12-('Input Data'!$B$13*0.08333333)) -> 0.4320998864 | H31: 2.953824841 | I31: =H31*'Input Data'!$C$12 -> 1.151991688 | J31: =IF(H31*'Input Data'!$B$12-('Input Data'!$B$13*0.08333333)<0,0,H31*'Input Data'!$B$12-('Input Data'!$B$13*0.08333333)) -> 1.067677429 | K31: 5.930028715 | L31: =K31*'Input Data'!$C$12 -> 2.312711199 | M31: =IF(K31*'Input Data'!$B$12-('Input Data'!$B$13*0.08333333)<0,0,K31*'Input Data'!$B$12-('Input Data'!$B$13*0.08333333)) -> 3.15102014 | P31: 9 | Q31: 0.8333333333 | R31: 0.5808978642 | S31: 0.01792198182 | T31: 0.6697110443 | U31: =T31*'Input Data'!$C$12 -> 0.2611873073 | V31: =IF(T31*'Input Data'!$B$12-('Input Data'!$B$13*0.08333333)<0,0,T31*'Input Data'!$B$12-('Input Data'!$B$13*0.08333333)) -> 0 | W31: 0.9669342447 | X31: =W31*'Input Data'!$C$12 -> 0.3771043554 | Y31: =IF(W31*'Input Data'!$B$12-('Input Data'!$B$13*0.08333333)<0,0,W31*'Input Data'!$B$12-('Input Data'!$B$13*0.08333333)) -> 0 | Z31: 1.941194263 | AA31: =Z31*'Input Data'!$C$12 -> 0.7570657627 | AB31: =IF(Z31*'Input Data'!$B$12-('Input Data'!$B$13*0.08333333)<0,0,Z31*'Input Data'!$B$12-('Input Data'!$B$13*0.08333333)) -> 0.3588360244 | AE31: 27 | AF31: 0.8333333333 | AG31: 0.7939395941 | AH31: 0.004988316852 | AI31: 0.1864040998 | AJ31: =AI31*'Input Data'!$C$12 -> 0.07269759891 | AK31: =IF(AI31*'Input Data'!$B$12-('Input Data'!$B$13*0.08333333)<0,0,AI31*'Input Data'!$B$12-('Input Data'!$B$13*0.08333333)) -> 0 | AL31: 0.2691317531 | AM31: =AL31*'Input Data'!$C$12 -> 0.1049613837 | AN31: =IF(AL31*'Input Data'!$B$12-('Input Data'!$B$13*0.08333333)<0,0,AL31*'Input Data'!$B$12-('Input Data'!$B$13*0.08333333)) -> 0 | AO31: 0.5403025263 | AP31: =AO31*'Input Data'!$C$12 -> 0.2107179853 | AQ31: =IF(AO31*'Input Data'!$B$12-('Input Data'!$B$13*0.08333333)<0,0,AO31*'Input Data'!$B$12-('Input Data'!$B$13*0.08333333)) -> 0
A32: 4 | B32: 0.9166666667 | C32: 0.741 | D32: 0.03748260863 | E32: =E24 -> 1.400655196 | F32: =E32*'Input Data'!$C$12 -> 0.5462555265 | G32: =IF(E32*'Input Data'!$B$12-('Input Data'!$B$13*0.08333333)<0,0,E32*'Input Data'!$B$12-('Input Data'!$B$13*0.08333333)) -> 0 | H32: 2.022277347 | I32: =H32*'Input Data'!$C$12 -> 0.7886881655 | J32: =IF(H32*'Input Data'!$B$12-('Input Data'!$B$13*0.08333333)<0,0,H32*'Input Data'!$B$12-('Input Data'!$B$13*0.08333333)) -> 0.4155941832 | K32: 4.059876054 | L32: =K32*'Input Data'!$C$12 -> 1.583351661 | M32: =IF(K32*'Input Data'!$B$12-('Input Data'!$B$13*0.08333333)<0,0,K32*'Input Data'!$B$12-('Input Data'!$B$13*0.08333333)) -> 1.841913278 | P32: 8 | Q32: 0.9166666667 | R32: 0.5305562877 | S32: 0.02059538749 | T32: 0.7696112294 | U32: =T32*'Input Data'!$C$12 -> 0.3001483795 | V32: =IF(T32*'Input Data'!$B$12-('Input Data'!$B$13*0.08333333)<0,0,T32*'Input Data'!$B$12-('Input Data'!$B$13*0.08333333)) -> 0 | W32: 1.111170943 | X32: =W32*'Input Data'!$C$12 -> 0.4333566678 | Y32: =IF(W32*'Input Data'!$B$12-('Input Data'!$B$13*0.08333333)<0,0,W32*'Input Data'!$B$12-('Input Data'!$B$13*0.08333333)) -> 0 | Z32: 2.230760439 | AA32: =Z32*'Input Data'!$C$12 -> 0.8699965714 | AB32: =IF(Z32*'Input Data'!$B$12-('Input Data'!$B$13*0.08333333)<0,0,Z32*'Input Data'!$B$12-('Input Data'!$B$13*0.08333333)) -> 0.5615323476 | AE32: 26 | AF32: 0.9166666667 | AG32: 0.7703298071 | AH32: 0.00530493352 | AI32: 0.1982354743 | AJ32: =AI32*'Input Data'!$C$12 -> 0.07731183498 | AK32: =IF(AI32*'Input Data'!$B$12-('Input Data'!$B$13*0.08333333)<0,0,AI32*'Input Data'!$B$12-('Input Data'!$B$13*0.08333333)) -> 0 | AL32: 0.2862139877 | AM32: =AL32*'Input Data'!$C$12 -> 0.1116234552 | AN32: =IF(AL32*'Input Data'!$B$12-('Input Data'!$B$13*0.08333333)<0,0,AL32*'Input Data'!$B$12-('Input Data'!$B$13*0.08333333)) -> 0 | AO32: 0.5745964156 | AP32: =AO32*'Input Data'!$C$12 -> 0.2240926021 | AQ32: =IF(AO32*'Input Data'!$B$12-('Input Data'!$B$13*0.08333333)<0,0,AO32*'Input Data'!$B$12-('Input Data'!$B$13*0.08333333)) -> 0
A33: 5 | B33: 1 | C33: 0.873 | D33: 0.02637606988 | E33: =E23 -> 0.9856245519 | F33: =E33*'Input Data'!$C$12 -> 0.3843935753 | G33: =IF(E33*'Input Data'!$B$12-('Input Data'!$B$13*0.08333333)<0,0,E33*'Input Data'!$B$12-('Input Data'!$B$13*0.08333333)) -> 0 | H33: 1.423052733 | I33: =H33*'Input Data'!$C$12 -> 0.5549905657 | J33: =IF(H33*'Input Data'!$B$12-('Input Data'!$B$13*0.08333333)<0,0,H33*'Input Data'!$B$12-('Input Data'!$B$13*0.08333333)) -> 0 | K33: 2.856886925 | L33: =K33*'Input Data'!$C$12 -> 1.114185901 | M33: =IF(K33*'Input Data'!$B$12-('Input Data'!$B$13*0.08333333)<0,0,K33*'Input Data'!$B$12-('Input Data'!$B$13*0.08333333)) -> 0.9998208876 | P33: 7 | Q33: 1 | R33: 0.4791041922 | S33: 0.02380274683 | T33: 0.8894642674 | U33: =T33*'Input Data'!$C$12 -> 0.3468910643 | V33: =IF(T33*'Input Data'!$B$12-('Input Data'!$B$13*0.08333333)<0,0,T33*'Input Data'!$B$12-('Input Data'!$B$13*0.08333333)) -> 0 | W33: 1.284215733 | X33: =W33*'Input Data'!$C$12 -> 0.5008441358 | Y33: =IF(W33*'Input Data'!$B$12-('Input Data'!$B$13*0.08333333)<0,0,W33*'Input Data'!$B$12-('Input Data'!$B$13*0.08333333)) -> 0 | Z33: 2.578161056 | AA33: =Z33*'Input Data'!$C$12 -> 1.005482812 | AB33: =IF(Z33*'Input Data'!$B$12-('Input Data'!$B$13*0.08333333)<0,0,Z33*'Input Data'!$B$12-('Input Data'!$B$13*0.08333333)) -> 0.8047127795 | AE33: 25 | AF33: 1 | AG33: 0.7465545772 | AH33: 0.005645393211 | AI33: 0.2109578182 | AJ33: =AI33*'Input Data'!$C$12 -> 0.08227354908 | AK33: =IF(AI33*'Input Data'!$B$12-('Input Data'!$B$13*0.08333333)<0,0,AI33*'Input Data'!$B$12-('Input Data'!$B$13*0.08333333)) -> 0 | AL33: 0.3045826111 | AM33: =AL33*'Input Data'!$C$12 -> 0.1187872183 | AN33: =IF(AL33*'Input Data'!$B$12-('Input Data'!$B$13*0.08333333)<0,0,AL33*'Input Data'!$B$12-('Input Data'!$B$13*0.08333333)) -> 0 | AO33: 0.6114728283 | AP33: =AO33*'Input Data'!$C$12 -> 0.238474403 | AQ33: =IF(AO33*'Input Data'!$B$12-('Input Data'!$B$13*0.08333333)<0,0,AO33*'Input Data'!$B$12-('Input Data'!$B$13*0.08333333)) -> 0
A34: 6 | B34: 1.083333333 | C34: 1 | D34: 0.01892020984 | E34: =E22 -> 0.7070129641 | F34: =E34*'Input Data'!$C$12 -> 0.275735056 | G34: =IF(E34*'Input Data'!$B$12-('Input Data'!$B$13*0.08333333)<0,0,E34*'Input Data'!$B$12-('Input Data'!$B$13*0.08333333)) -> 0 | H34: 1.020791059 | I34: =H34*'Input Data'!$C$12 -> 0.3981085132 | J34: =IF(H34*'Input Data'!$B$12-('Input Data'!$B$13*0.08333333)<0,0,H34*'Input Data'!$B$12-('Input Data'!$B$13*0.08333333)) -> 0 | K34: 2.049315928 | L34: =K34*'Input Data'!$C$12 -> 0.7992332118 | M34: =IF(K34*'Input Data'!$B$12-('Input Data'!$B$13*0.08333333)<0,0,K34*'Input Data'!$B$12-('Input Data'!$B$13*0.08333333)) -> 0.4345211894 | P34: 6 | Q34: 1.083333333 | R34: 0.4263629192 | S34: 0.02770532511 | T34: 1.035296341 | U34: =T34*'Input Data'!$C$12 -> 0.4037655731 | V34: =IF(T34*'Input Data'!$B$12-('Input Data'!$B$13*0.08333333)<0,0,T34*'Input Data'!$B$12-('Input Data'!$B$13*0.08333333)) -> 0 | W34: 1.494769265 | X34: =W34*'Input Data'!$C$12 -> 0.5829600135 | Y34: =IF(W34*'Input Data'!$B$12-('Input Data'!$B$13*0.08333333)<0,0,W34*'Input Data'!$B$12-('Input Data'!$B$13*0.08333333)) -> 0.04633852583 | Z34: 3.000863336 | AA34: =Z34*'Input Data'!$C$12 -> 1.170336701 | AB34: =IF(Z34*'Input Data'!$B$12-('Input Data'!$B$13*0.08333333)<0,0,Z34*'Input Data'!$B$12-('Input Data'!$B$13*0.08333333)) -> 1.100604375 | AE34: 24 | AF34: 1.083333333 | AG34: 0.7226061845 | AH34: 0.006011939148 | AI34: 0.2246549564 | AJ34: =AI34*'Input Data'!$C$12 -> 0.08761543299 | AK34: =IF(AI34*'Input Data'!$B$12-('Input Data'!$B$13*0.08333333)<0,0,AI34*'Input Data'!$B$12-('Input Data'!$B$13*0.08333333)) -> 0 | AL34: 0.3243586505 | AM34: =AL34*'Input Data'!$C$12 -> 0.1264998737 | AN34: =IF(AL34*'Input Data'!$B$12-('Input Data'!$B$13*0.08333333)<0,0,AL34*'Input Data'!$B$12-('Input Data'!$B$13*0.08333333)) -> 0 | AO34: 0.6511747362 | AP34: =AO34*'Input Data'!$C$12 -> 0.2539581471 | AQ34: =IF(AO34*'Input Data'!$B$12-('Input Data'!$B$13*0.08333333)<0,0,AO34*'Input Data'!$B$12-('Input Data'!$B$13*0.08333333)) -> 0
A35: Sum Rf (mm) | E35: =SUM(E22:E34) -> 37.36813545 | F35: =SUM(F22:F34) -> 14.57357282 | G35: =SUM(G22:G34) -> 14.8270853 | H35: =SUM(H22:H34) -> 53.95241744 | I35: 21.0414428 | J35: 25.34531126 | K35: 108.313594 | L35: 42.24230167 | M35: 62.81951634 | P35: 5 | Q35: 1.166666667 | R35: 0.3720922575 | S35: 0.03254505474 | T35: 1.216148014 | U35: =T35*'Input Data'!$C$12 -> 0.4742977254 | V35: =IF(T35*'Input Data'!$B$12-('Input Data'!$B$13*0.08333333)<0,0,T35*'Input Data'!$B$12-('Input Data'!$B$13*0.08333333)) -> 0 | W35: 1.755884379 | X35: =W35*'Input Data'!$C$12 -> 0.6847949078 | Y35: =IF(W35*'Input Data'!$B$12-('Input Data'!$B$13*0.08333333)<0,0,W35*'Input Data'!$B$12-('Input Data'!$B$13*0.08333333)) -> 0.2291191053 | Z35: 3.525071847 | AA35: =Z35*'Input Data'!$C$12 -> 1.37477802 | AB35: =IF(Z35*'Input Data'!$B$12-('Input Data'!$B$13*0.08333333)<0,0,Z35*'Input Data'!$B$12-('Input Data'!$B$13*0.08333333)) -> 1.467550333 | AE35: 23 | AF35: 1.166666667 | AG35: 0.6984762173 | AH35: 0.006407090498 | AI35: 0.2394210256 | AJ35: =AI35*'Input Data'!$C$12 -> 0.09337419997 | AK35: =IF(AI35*'Input Data'!$B$12-('Input Data'!$B$13*0.08333333)<0,0,AI35*'Input Data'!$B$12-('Input Data'!$B$13*0.08333333)) -> 0 | AL35: 0.3456780211 | AM35: =AL35*'Input Data'!$C$12 -> 0.1348144282 | AN35: =IF(AL35*'Input Data'!$B$12-('Input Data'!$B$13*0.08333333)<0,0,AL35*'Input Data'!$B$12-('Input Data'!$B$13*0.08333333)) -> 0 | AO35: 0.6939749991 | AP35: =AO35*'Input Data'!$C$12 -> 0.2706502496 | AQ35: =IF(AO35*'Input Data'!$B$12-('Input Data'!$B$13*0.08333333)<0,0,AO35*'Input Data'!$B$12-('Input Data'!$B$13*0.08333333)) -> 0
A36: Max Rf (mm) | E36: =MAX(E22:E34) -> 10.28630786 | F36: =MAX(F22:F34) -> 4.011660064 | G36: =MAX(G22:G34) -> 6.20041554 | H36: =MAX(H22:H34) -> 14.85145482 | I36: 5.792067381 | J36: 9.396018415 | K36: 29.81542857 | L36: 11.62801714 | M36: 19.87080004 | P36: 4 | Q36: 1.25 | R36: 0.3159535505 | S36: 0.03871304192 | T36: 1.446634194 | U36: =T36*'Input Data'!$C$12 -> 0.5641873357 | V36: =IF(T36*'Input Data'!$B$12-('Input Data'!$B$13*0.08333333)<0,0,T36*'Input Data'!$B$12-('Input Data'!$B$13*0.08333333)) -> 0.01264397588 | W36: 2.088662198 | X36: =W36*'Input Data'!$C$12 -> 0.8145782572 | Y36: =IF(W36*'Input Data'!$B$12-('Input Data'!$B$13*0.08333333)<0,0,W36*'Input Data'!$B$12-('Input Data'!$B$13*0.08333333)) -> 0.4620635785 | Z36: 4.193148706 | AA36: =Z36*'Input Data'!$C$12 -> 1.635327995 | AB36: =IF(Z36*'Input Data'!$B$12-('Input Data'!$B$13*0.08333333)<0,0,Z36*'Input Data'!$B$12-('Input Data'!$B$13*0.08333333)) -> 1.935204134 | AE36: 22 | AF36: 1.25 | AG36: 0.6741554778 | AH36: 0.00683368764 | AI36: 0.2553621654 | AJ36: =AI36*'Input Data'!$C$12 -> 0.09959124449 | AK36: =IF(AI36*'Input Data'!$B$12-('Input Data'!$B$13*0.08333333)<0,0,AI36*'Input Data'!$B$12-('Input Data'!$B$13*0.08333333)) -> 0 | AL36: 0.3686939682 | AM36: =AL36*'Input Data'!$C$12 -> 0.1437906476 | AN36: =IF(AL36*'Input Data'!$B$12-('Input Data'!$B$13*0.08333333)<0,0,AL36*'Input Data'!$B$12-('Input Data'!$B$13*0.08333333)) -> 0 | AO36: 0.7401812688 | AP36: =AO36*'Input Data'!$C$12 -> 0.2886706948 | AQ36: =IF(AO36*'Input Data'!$B$12-('Input Data'!$B$13*0.08333333)<0,0,AO36*'Input Data'!$B$12-('Input Data'!$B$13*0.08333333)) -> 0
P37: 3 | Q37: 1.333333333 | R37: 0.2574367224 | S37: 0.046917397 | T37: 1.753215646 | U37: =T37*'Input Data'!$C$12 -> 0.683754102 | V37: =IF(T37*'Input Data'!$B$12-('Input Data'!$B$13*0.08333333)<0,0,T37*'Input Data'!$B$12-('Input Data'!$B$13*0.08333333)) -> 0.2272509923 | W37: 2.531306988 | X37: =W37*'Input Data'!$C$12 -> 0.9872097254 | Y37: =IF(W37*'Input Data'!$B$12-('Input Data'!$B$13*0.08333333)<0,0,W37*'Input Data'!$B$12-('Input Data'!$B$13*0.08333333)) -> 0.7719149317 | Z37: 5.081791892 | AA37: =Z37*'Input Data'!$C$12 -> 1.981898838 | AB37: =IF(Z37*'Input Data'!$B$12-('Input Data'!$B$13*0.08333333)<0,0,Z37*'Input Data'!$B$12-('Input Data'!$B$13*0.08333333)) -> 2.557254364 | AE37: 21 | AF37: 1.333333333 | AG37: 0.649633871 | AH37: 0.007294947244 | AI37: 0.2725985767 | AJ37: =AI37*'Input Data'!$C$12 -> 0.1063134449 | AK37: =IF(AI37*'Input Data'!$B$12-('Input Data'!$B$13*0.08333333)<0,0,AI37*'Input Data'!$B$12-('Input Data'!$B$13*0.08333333)) -> 0 | AL37: 0.3935800389 | AM37: =AL37*'Input Data'!$C$12 -> 0.1534962152 | AN37: =IF(AL37*'Input Data'!$B$12-('Input Data'!$B$13*0.08333333)<0,0,AL37*'Input Data'!$B$12-('Input Data'!$B$13*0.08333333)) -> 0 | AO37: 0.7901419542 | AP37: =AO37*'Input Data'!$C$12 -> 0.3081553621 | AQ37: =IF(AO37*'Input Data'!$B$12-('Input Data'!$B$13*0.08333333)<0,0,AO37*'Input Data'!$B$12-('Input Data'!$B$13*0.08333333)) -> 0
P38: 2 | Q38: 1.416666667 | R38: 0.1956933863 | S38: 0.05871252243 | T38: 2.193977491 | U38: =T38*'Input Data'!$C$12 -> 0.8556512214 | V38: =IF(T38*'Input Data'!$B$12-('Input Data'!$B$13*0.08333333)<0,0,T38*'Input Data'!$B$12-('Input Data'!$B$13*0.08333333)) -> 0.5357842836 | W38: 3.167682519 | X38: =W38*'Input Data'!$C$12 -> 1.235396182 | Y38: =IF(W38*'Input Data'!$B$12-('Input Data'!$B$13*0.08333333)<0,0,W38*'Input Data'!$B$12-('Input Data'!$B$13*0.08333333)) -> 1.217377803 | Z38: 6.359364319 | AA38: =Z38*'Input Data'!$C$12 -> 2.480152084 | AB38: =IF(Z38*'Input Data'!$B$12-('Input Data'!$B$13*0.08333333)<0,0,Z38*'Input Data'!$B$12-('Input Data'!$B$13*0.08333333)) -> 3.451555063 | AE38: 20 | AF38: 1.416666667 | AG38: 0.6249002699 | AH38: 0.007794529865 | AI38: 0.2912670477 | AJ38: =AI38*'Input Data'!$C$12 -> 0.1135941486 | AK38: =IF(AI38*'Input Data'!$B$12-('Input Data'!$B$13*0.08333333)<0,0,AI38*'Input Data'!$B$12-('Input Data'!$B$13*0.08333333)) -> 0 | AL38: 0.420533729 | AM38: =AL38*'Input Data'!$C$12 -> 0.1640081543 | AN38: =IF(AL38*'Input Data'!$B$12-('Input Data'!$B$13*0.08333333)<0,0,AL38*'Input Data'!$B$12-('Input Data'!$B$13*0.08333333)) -> 0 | AO38: 0.8442535434 | AP38: =AO38*'Input Data'!$C$12 -> 0.3292588819 | AQ38: =IF(AO38*'Input Data'!$B$12-('Input Data'!$B$13*0.08333333)<0,0,AO38*'Input Data'!$B$12-('Input Data'!$B$13*0.08333333)) -> 0
P39: 1 | Q39: 1.5 | R39: 0.1290533901 | S39: 0.07931858541 | T39: 2.963987643 | U39: =T39*'Input Data'!$C$12 -> 1.155955181 | V39: =IF(T39*'Input Data'!$B$12-('Input Data'!$B$13*0.08333333)<0,0,T39*'Input Data'!$B$12-('Input Data'!$B$13*0.08333333)) -> 1.07479139 | W39: 4.27942943 | X39: =W39*'Input Data'!$C$12 -> 1.668977478 | Y39: =IF(W39*'Input Data'!$B$12-('Input Data'!$B$13*0.08333333)<0,0,W39*'Input Data'!$B$12-('Input Data'!$B$13*0.08333333)) -> 1.995600641 | Z39: 8.591281059 | AA39: =Z39*'Input Data'!$C$12 -> 3.350599613 | AB39: =IF(Z39*'Input Data'!$B$12-('Input Data'!$B$13*0.08333333)<0,0,Z39*'Input Data'!$B$12-('Input Data'!$B$13*0.08333333)) -> 5.013896781 | AE39: 19 | AF39: 1.5 | AG39: 0.5999423553 | AH39: 0.008336623744 | AI39: 0.3115240852 | AJ39: =AI39*'Input Data'!$C$12 -> 0.1214943932 | AK39: =IF(AI39*'Input Data'!$B$12-('Input Data'!$B$13*0.08333333)<0,0,AI39*'Input Data'!$B$12-('Input Data'!$B$13*0.08333333)) -> 0 | AL39: 0.4497810042 | AM39: =AL39*'Input Data'!$C$12 -> 0.1754145916 | AN39: =IF(AL39*'Input Data'!$B$12-('Input Data'!$B$13*0.08333333)<0,0,AL39*'Input Data'!$B$12-('Input Data'!$B$13*0.08333333)) -> 0 | AO39: 0.9029696797 | AP39: =AO39*'Input Data'!$C$12 -> 0.3521581751 | AQ39: =IF(AO39*'Input Data'!$B$12-('Input Data'!$B$13*0.08333333)<0,0,AO39*'Input Data'!$B$12-('Input Data'!$B$13*0.08333333)) -> 0
K40: Total rainfall | P40: 0 | Q40: 1.583333333 | R40: 0.05271274043 | S40: 0.1269986066 | T40: 4.745701135 | U40: =T40*'Input Data'!$C$12 -> 1.850823443 | V40: =IF(T40*'Input Data'!$B$12-('Input Data'!$B$13*0.08333333)<0,0,T40*'Input Data'!$B$12-('Input Data'!$B$13*0.08333333)) -> 2.321990835 | W40: 6.85188184 | X40: =W40*'Input Data'!$C$12 -> 2.672233917 | Y40: =IF(W40*'Input Data'!$B$12-('Input Data'!$B$13*0.08333333)<0,0,W40*'Input Data'!$B$12-('Input Data'!$B$13*0.08333333)) -> 3.796317328 | Z40: 13.75567552 | AA40: =Z40*'Input Data'!$C$12 -> 5.364713454 | AB40: =IF(Z40*'Input Data'!$B$12-('Input Data'!$B$13*0.08333333)<0,0,Z40*'Input Data'!$B$12-('Input Data'!$B$13*0.08333333)) -> 8.628972906 | AE40: 18 | AF40: 1.583333333 | AG40: 0.5747464191 | AH40: 0.008926049806 | AI40: 0.3335498382 | AJ40: =AI40*'Input Data'!$C$12 -> 0.1300844369 | AK40: =IF(AI40*'Input Data'!$B$12-('Input Data'!$B$13*0.08333333)<0,0,AI40*'Input Data'!$B$12-('Input Data'!$B$13*0.08333333)) -> 0 | AL40: 0.4815819652 | AM40: =AL40*'Input Data'!$C$12 -> 0.1878169664 | AN40: =IF(AL40*'Input Data'!$B$12-('Input Data'!$B$13*0.08333333)<0,0,AL40*'Input Data'!$B$12-('Input Data'!$B$13*0.08333333)) -> 0 | AO40: 0.966812535 | AP40: =AO40*'Input Data'!$C$12 -> 0.3770568886 | AQ40: =IF(AO40*'Input Data'!$B$12-('Input Data'!$B$13*0.08333333)<0,0,AO40*'Input Data'!$B$12-('Input Data'!$B$13*0.08333333)) -> 0
K41: Net rainfall (local estimate) | P41: 1 | Q41: 1.666666667 | R41: 0.1290533901 | S41: 0.07931858541 | T41: 2.963987643 | U41: =T41*'Input Data'!$C$12 -> 1.155955181 | V41: =IF(T41*'Input Data'!$B$12-('Input Data'!$B$13*0.08333333)<0,0,T41*'Input Data'!$B$12-('Input Data'!$B$13*0.08333333)) -> 1.07479139 | W41: 4.27942943 | X41: =W41*'Input Data'!$C$12 -> 1.668977478 | Y41: =IF(W41*'Input Data'!$B$12-('Input Data'!$B$13*0.08333333)<0,0,W41*'Input Data'!$B$12-('Input Data'!$B$13*0.08333333)) -> 1.995600641 | Z41: 8.591281059 | AA41: =Z41*'Input Data'!$C$12 -> 3.350599613 | AB41: =IF(Z41*'Input Data'!$B$12-('Input Data'!$B$13*0.08333333)<0,0,Z41*'Input Data'!$B$12-('Input Data'!$B$13*0.08333333)) -> 5.013896781 | AE41: 17 | AF41: 1.666666667 | AG41: 0.549297124 | AH41: 0.00956839484 | AI41: 0.3575530744 | AJ41: =AI41*'Input Data'!$C$12 -> 0.139445699 | AK41: =IF(AI41*'Input Data'!$B$12-('Input Data'!$B$13*0.08333333)<0,0,AI41*'Input Data'!$B$12-('Input Data'!$B$13*0.08333333)) -> 0 | AL41: 0.5162380326 | AM41: =AL41*'Input Data'!$C$12 -> 0.2013328327 | AN41: =IF(AL41*'Input Data'!$B$12-('Input Data'!$B$13*0.08333333)<0,0,AL41*'Input Data'!$B$12-('Input Data'!$B$13*0.08333333)) -> 0 | AO41: 1.036387234 | AP41: =AO41*'Input Data'!$C$12 -> 0.4041910213 | AQ41: =IF(AO41*'Input Data'!$B$12-('Input Data'!$B$13*0.08333333)<0,0,AO41*'Input Data'!$B$12-('Input Data'!$B$13*0.08333333)) -> 0
P42: 2 | Q42: 1.75 | R42: 0.1956933863 | S42: 0.05871252243 | T42: 2.193977491 | U42: =T42*'Input Data'!$C$12 -> 0.8556512214 | V42: =IF(T42*'Input Data'!$B$12-('Input Data'!$B$13*0.08333333)<0,0,T42*'Input Data'!$B$12-('Input Data'!$B$13*0.08333333)) -> 0.5357842836 | W42: 3.167682519 | X42: =W42*'Input Data'!$C$12 -> 1.235396182 | Y42: =IF(W42*'Input Data'!$B$12-('Input Data'!$B$13*0.08333333)<0,0,W42*'Input Data'!$B$12-('Input Data'!$B$13*0.08333333)) -> 1.217377803 | Z42: 6.359364319 | AA42: =Z42*'Input Data'!$C$12 -> 2.480152084 | AB42: =IF(Z42*'Input Data'!$B$12-('Input Data'!$B$13*0.08333333)<0,0,Z42*'Input Data'!$B$12-('Input Data'!$B$13*0.08333333)) -> 3.451555063 | AE42: 16 | AF42: 1.75 | AG42: 0.5235772045 | AH42: 0.01027018268 | AI42: 0.3837775773 | AJ42: =AI42*'Input Data'!$C$12 -> 0.1496732551 | AK42: =IF(AI42*'Input Data'!$B$12-('Input Data'!$B$13*0.08333333)<0,0,AI42*'Input Data'!$B$12-('Input Data'!$B$13*0.08333333)) -> 0 | AL42: 0.5541011829 | AM42: =AL42*'Input Data'!$C$12 -> 0.2160994613 | AN42: =IF(AL42*'Input Data'!$B$12-('Input Data'!$B$13*0.08333333)<0,0,AL42*'Input Data'!$B$12-('Input Data'!$B$13*0.08333333)) -> 0 | AO42: 1.112400397 | AP42: =AO42*'Input Data'!$C$12 -> 0.4338361548 | AQ42: =IF(AO42*'Input Data'!$B$12-('Input Data'!$B$13*0.08333333)<0,0,AO42*'Input Data'!$B$12-('Input Data'!$B$13*0.08333333)) -> 0
P43: 3 | Q43: 1.833333333 | R43: 0.2574367224 | S43: 0.046917397 | T43: 1.753215646 | U43: =T43*'Input Data'!$C$12 -> 0.683754102 | V43: =IF(T43*'Input Data'!$B$12-('Input Data'!$B$13*0.08333333)<0,0,T43*'Input Data'!$B$12-('Input Data'!$B$13*0.08333333)) -> 0.2272509923 | W43: 2.531306988 | X43: =W43*'Input Data'!$C$12 -> 0.9872097254 | Y43: =IF(W43*'Input Data'!$B$12-('Input Data'!$B$13*0.08333333)<0,0,W43*'Input Data'!$B$12-('Input Data'!$B$13*0.08333333)) -> 0.7719149317 | Z43: 5.081791892 | AA43: =Z43*'Input Data'!$C$12 -> 1.981898838 | AB43: =IF(Z43*'Input Data'!$B$12-('Input Data'!$B$13*0.08333333)<0,0,Z43*'Input Data'!$B$12-('Input Data'!$B$13*0.08333333)) -> 2.557254364 | AE43: 15 | AF43: 1.833333333 | AG43: 0.4975670922 | AH43: 0.01103909755 | AI43: 0.4125104926 | AJ43: =AI43*'Input Data'!$C$12 -> 0.1608790921 | AK43: =IF(AI43*'Input Data'!$B$12-('Input Data'!$B$13*0.08333333)<0,0,AI43*'Input Data'!$B$12-('Input Data'!$B$13*0.08333333)) -> 0 | AL43: 0.5955859993 | AM43: =AL43*'Input Data'!$C$12 -> 0.2322785397 | AN43: =IF(AL43*'Input Data'!$B$12-('Input Data'!$B$13*0.08333333)<0,0,AL43*'Input Data'!$B$12-('Input Data'!$B$13*0.08333333)) -> 0 | AO43: 1.195684331 | AP43: =AO43*'Input Data'!$C$12 -> 0.466316889 | AQ43: =IF(AO43*'Input Data'!$B$12-('Input Data'!$B$13*0.08333333)<0,0,AO43*'Input Data'!$B$12-('Input Data'!$B$13*0.08333333)) -> 0
P44: 4 | Q44: 1.916666667 | R44: 0.3159535505 | S44: 0.03871304192 | T44: 1.446634194 | U44: =T44*'Input Data'!$C$12 -> 0.5641873357 | V44: =IF(T44*'Input Data'!$B$12-('Input Data'!$B$13*0.08333333)<0,0,T44*'Input Data'!$B$12-('Input Data'!$B$13*0.08333333)) -> 0.01264397588 | W44: 2.088662198 | X44: =W44*'Input Data'!$C$12 -> 0.8145782572 | Y44: =IF(W44*'Input Data'!$B$12-('Input Data'!$B$13*0.08333333)<0,0,W44*'Input Data'!$B$12-('Input Data'!$B$13*0.08333333)) -> 0.4620635785 | Z44: 4.193148706 | AA44: =Z44*'Input Data'!$C$12 -> 1.635327995 | AB44: =IF(Z44*'Input Data'!$B$12-('Input Data'!$B$13*0.08333333)<0,0,Z44*'Input Data'!$B$12-('Input Data'!$B$13*0.08333333)) -> 1.935204134 | AE44: 14 | AF44: 1.916666667 | AG44: 0.4712444379 | AH44: 0.01188428056 | AI44: 0.4440934056 | AJ44: =AI44*'Input Data'!$C$12 -> 0.1731964282 | AK44: =IF(AI44*'Input Data'!$B$12-('Input Data'!$B$13*0.08333333)<0,0,AI44*'Input Data'!$B$12-('Input Data'!$B$13*0.08333333)) -> 0 | AL44: 0.6411856655 | AM44: =AL44*'Input Data'!$C$12 -> 0.2500624096 | AN44: =IF(AL44*'Input Data'!$B$12-('Input Data'!$B$13*0.08333333)<0,0,AL44*'Input Data'!$B$12-('Input Data'!$B$13*0.08333333)) -> 0 | AO44: 1.28722914 | AP44: =AO44*'Input Data'!$C$12 -> 0.5020193644 | AQ44: =IF(AO44*'Input Data'!$B$12-('Input Data'!$B$13*0.08333333)<0,0,AO44*'Input Data'!$B$12-('Input Data'!$B$13*0.08333333)) -> 0
P45: 5 | Q45: 2 | R45: 0.3720922575 | S45: 0.03254505474 | T45: 1.216148014 | U45: =T45*'Input Data'!$C$12 -> 0.4742977254 | V45: =IF(T45*'Input Data'!$B$12-('Input Data'!$B$13*0.08333333)<0,0,T45*'Input Data'!$B$12-('Input Data'!$B$13*0.08333333)) -> 0 | W45: 1.755884379 | X45: =W45*'Input Data'!$C$12 -> 0.6847949078 | Y45: =IF(W45*'Input Data'!$B$12-('Input Data'!$B$13*0.08333333)<0,0,W45*'Input Data'!$B$12-('Input Data'!$B$13*0.08333333)) -> 0.2291191053 | Z45: 3.525071847 | AA45: =Z45*'Input Data'!$C$12 -> 1.37477802 | AB45: =IF(Z45*'Input Data'!$B$12-('Input Data'!$B$13*0.08333333)<0,0,Z45*'Input Data'!$B$12-('Input Data'!$B$13*0.08333333)) -> 1.467550333 | AE45: 13 | AF45: 2 | AG45: 0.4445834962 | AH45: 0.01281673063 | AI45: 0.4789373263 | AJ45: =AI45*'Input Data'!$C$12 -> 0.1867855573 | AK45: =IF(AI45*'Input Data'!$B$12-('Input Data'!$B$13*0.08333333)<0,0,AI45*'Input Data'!$B$12-('Input Data'!$B$13*0.08333333)) -> 0 | AL45: 0.6914936013 | AM45: =AL45*'Input Data'!$C$12 -> 0.2696825045 | AN45: =IF(AL45*'Input Data'!$B$12-('Input Data'!$B$13*0.08333333)<0,0,AL45*'Input Data'!$B$12-('Input Data'!$B$13*0.08333333)) -> 0 | AO45: 1.388226159 | AP45: =AO45*'Input Data'!$C$12 -> 0.5414082018 | AQ45: =IF(AO45*'Input Data'!$B$12-('Input Data'!$B$13*0.08333333)<0,0,AO45*'Input Data'!$B$12-('Input Data'!$B$13*0.08333333)) -> 0
P46: 6 | Q46: 2.083333333 | R46: 0.4263629192 | S46: 0.02770532511 | T46: 1.035296341 | U46: =T46*'Input Data'!$C$12 -> 0.4037655731 | V46: =IF(T46*'Input Data'!$B$12-('Input Data'!$B$13*0.08333333)<0,0,T46*'Input Data'!$B$12-('Input Data'!$B$13*0.08333333)) -> 0 | W46: 1.494769265 | X46: =W46*'Input Data'!$C$12 -> 0.5829600135 | Y46: =IF(W46*'Input Data'!$B$12-('Input Data'!$B$13*0.08333333)<0,0,W46*'Input Data'!$B$12-('Input Data'!$B$13*0.08333333)) -> 0.04633852583 | Z46: 3.000863336 | AA46: =Z46*'Input Data'!$C$12 -> 1.170336701 | AB46: =IF(Z46*'Input Data'!$B$12-('Input Data'!$B$13*0.08333333)<0,0,Z46*'Input Data'!$B$12-('Input Data'!$B$13*0.08333333)) -> 1.100604375 | AE46: 12 | AF46: 2.083333333 | AG46: 0.417554315 | AH46: 0.01384985913 | AI46: 0.5175434118 | AJ46: =AI46*'Input Data'!$C$12 -> 0.2018419306 | AK46: =IF(AI46*'Input Data'!$B$12-('Input Data'!$B$13*0.08333333)<0,0,AI46*'Input Data'!$B$12-('Input Data'!$B$13*0.08333333)) -> 0 | AL46: 0.747233381 | AM46: =AL46*'Input Data'!$C$12 -> 0.2914210186 | AN46: =IF(AL46*'Input Data'!$B$12-('Input Data'!$B$13*0.08333333)<0,0,AL46*'Input Data'!$B$12-('Input Data'!$B$13*0.08333333)) -> 0 | AO46: 1.500128019 | AP46: =AO46*'Input Data'!$C$12 -> 0.5850499273 | AQ46: =IF(AO46*'Input Data'!$B$12-('Input Data'!$B$13*0.08333333)<0,0,AO46*'Input Data'!$B$12-('Input Data'!$B$13*0.08333333)) -> 0.05008965312
P47: 7 | Q47: 2.166666667 | R47: 0.4791041922 | S47: 0.02380274683 | T47: 0.8894642674 | U47: =T47*'Input Data'!$C$12 -> 0.3468910643 | V47: =IF(T47*'Input Data'!$B$12-('Input Data'!$B$13*0.08333333)<0,0,T47*'Input Data'!$B$12-('Input Data'!$B$13*0.08333333)) -> 0 | W47: 1.284215733 | X47: =W47*'Input Data'!$C$12 -> 0.5008441358 | Y47: =IF(W47*'Input Data'!$B$12-('Input Data'!$B$13*0.08333333)<0,0,W47*'Input Data'!$B$12-('Input Data'!$B$13*0.08333333)) -> 0 | Z47: 2.578161056 | AA47: =Z47*'Input Data'!$C$12 -> 1.005482812 | AB47: =IF(Z47*'Input Data'!$B$12-('Input Data'!$B$13*0.08333333)<0,0,Z47*'Input Data'!$B$12-('Input Data'!$B$13*0.08333333)) -> 0.8047127795 | AE47: 11 | AF47: 2.166666667 | AG47: 0.3901216527 | AH47: 0.01500027625 | AI47: 0.5605323547 | AJ47: =AI47*'Input Data'!$C$12 -> 0.2186076183 | AK47: =IF(AI47*'Input Data'!$B$12-('Input Data'!$B$13*0.08333333)<0,0,AI47*'Input Data'!$B$12-('Input Data'!$B$13*0.08333333)) -> 0 | AL47: 0.8093011659 | AM47: =AL47*'Input Data'!$C$12 -> 0.3156274547 | AN47: =IF(AL47*'Input Data'!$B$12-('Input Data'!$B$13*0.08333333)<0,0,AL47*'Input Data'!$B$12-('Input Data'!$B$13*0.08333333)) -> 0 | AO47: 1.624733832 | AP47: =AO47*'Input Data'!$C$12 -> 0.6336461945 | AQ47: =IF(AO47*'Input Data'!$B$12-('Input Data'!$B$13*0.08333333)<0,0,AO47*'Input Data'!$B$12-('Input Data'!$B$13*0.08333333)) -> 0.1373137225
P48: 8 | Q48: 2.25 | R48: 0.5305562877 | S48: 0.02059538749 | T48: 0.7696112294 | U48: =T48*'Input Data'!$C$12 -> 0.3001483795 | V48: =IF(T48*'Input Data'!$B$12-('Input Data'!$B$13*0.08333333)<0,0,T48*'Input Data'!$B$12-('Input Data'!$B$13*0.08333333)) -> 0 | W48: 1.111170943 | X48: =W48*'Input Data'!$C$12 -> 0.4333566678 | Y48: =IF(W48*'Input Data'!$B$12-('Input Data'!$B$13*0.08333333)<0,0,W48*'Input Data'!$B$12-('Input Data'!$B$13*0.08333333)) -> 0 | Z48: 2.230760439 | AA48: =Z48*'Input Data'!$C$12 -> 0.8699965714 | AB48: =IF(Z48*'Input Data'!$B$12-('Input Data'!$B$13*0.08333333)<0,0,Z48*'Input Data'!$B$12-('Input Data'!$B$13*0.08333333)) -> 0.5615323476 | AE48: 10 | AF48: 2.25 | AG48: 0.362243494 | AH48: 0.01628893989 | AI48: 0.6086873122 | AJ48: =AI48*'Input Data'!$C$12 -> 0.2373880517 | AK48: =IF(AI48*'Input Data'!$B$12-('Input Data'!$B$13*0.08333333)<0,0,AI48*'Input Data'!$B$12-('Input Data'!$B$13*0.08333333)) -> 0 | AL48: 0.8788276846 | AM48: =AL48*'Input Data'!$C$12 -> 0.342742797 | AN48: =IF(AL48*'Input Data'!$B$12-('Input Data'!$B$13*0.08333333)<0,0,AL48*'Input Data'!$B$12-('Input Data'!$B$13*0.08333333)) -> 0 | AO48: 1.764313622 | AP48: =AO48*'Input Data'!$C$12 -> 0.6880823128 | AQ48: =IF(AO48*'Input Data'!$B$12-('Input Data'!$B$13*0.08333333)<0,0,AO48*'Input Data'!$B$12-('Input Data'!$B$13*0.08333333)) -> 0.2350195757
P49: 9 | Q49: 2.333333333 | R49: 0.5808978642 | S49: 0.01792198182 | T49: 0.6697110443 | U49: =T49*'Input Data'!$C$12 -> 0.2611873073 | V49: =IF(T49*'Input Data'!$B$12-('Input Data'!$B$13*0.08333333)<0,0,T49*'Input Data'!$B$12-('Input Data'!$B$13*0.08333333)) -> 0 | W49: 0.9669342447 | X49: =W49*'Input Data'!$C$12 -> 0.3771043554 | Y49: =IF(W49*'Input Data'!$B$12-('Input Data'!$B$13*0.08333333)<0,0,W49*'Input Data'!$B$12-('Input Data'!$B$13*0.08333333)) -> 0 | Z49: 1.941194263 | AA49: =Z49*'Input Data'!$C$12 -> 0.7570657627 | AB49: =IF(Z49*'Input Data'!$B$12-('Input Data'!$B$13*0.08333333)<0,0,Z49*'Input Data'!$B$12-('Input Data'!$B$13*0.08333333)) -> 0.3588360244 | AE49: 9 | AF49: 2.333333333 | AG49: 0.3338689673 | AH49: 0.01774289313 | AI49: 0.6630188336 | AJ49: =AI49*'Input Data'!$C$12 -> 0.2585773451 | AK49: =IF(AI49*'Input Data'!$B$12-('Input Data'!$B$13*0.08333333)<0,0,AI49*'Input Data'!$B$12-('Input Data'!$B$13*0.08333333)) -> 0 | AL49: 0.9572719765 | AM49: =AL49*'Input Data'!$C$12 -> 0.3733360708 | AN49: =IF(AL49*'Input Data'!$B$12-('Input Data'!$B$13*0.08333333)<0,0,AL49*'Input Data'!$B$12-('Input Data'!$B$13*0.08333333)) -> 0 | AO49: 1.921796523 | AP49: =AO49*'Input Data'!$C$12 -> 0.749500644 | AQ49: =IF(AO49*'Input Data'!$B$12-('Input Data'!$B$13*0.08333333)<0,0,AO49*'Input Data'!$B$12-('Input Data'!$B$13*0.08333333)) -> 0.3452576061
P50: 10 | Q50: 2.416666667 | R50: 0.6302666394 | S50: 0.01566920976 | T50: 0.5855291527 | U50: =T50*'Input Data'!$C$12 -> 0.2283563695 | V50: =IF(T50*'Input Data'!$B$12-('Input Data'!$B$13*0.08333333)<0,0,T50*'Input Data'!$B$12-('Input Data'!$B$13*0.08333333)) -> 0 | W50: 0.8453917458 | X50: =W50*'Input Data'!$C$12 -> 0.3297027809 | Y50: =IF(W50*'Input Data'!$B$12-('Input Data'!$B$13*0.08333333)<0,0,W50*'Input Data'!$B$12-('Input Data'!$B$13*0.08333333)) -> 0 | Z50: 1.697188425 | AA50: =Z50*'Input Data'!$C$12 -> 0.6619034856 | AB50: =IF(Z50*'Input Data'!$B$12-('Input Data'!$B$13*0.08333333)<0,0,Z50*'Input Data'!$B$12-('Input Data'!$B$13*0.08333333)) -> 0.1880319372 | AE50: 8 | AF50: 2.416666667 | AG50: 0.3049353265 | AH50: 0.0193980042 | AI50: 0.7248672484 | AJ50: =AI50*'Input Data'!$C$12 -> 0.2826982269 | AK50: =IF(AI50*'Input Data'!$B$12-('Input Data'!$B$13*0.08333333)<0,0,AI50*'Input Data'!$B$12-('Input Data'!$B$13*0.08333333)) -> 0 | AL50: 1.04656922 | AM50: =AL50*'Input Data'!$C$12 -> 0.4081619958 | AN50: =IF(AL50*'Input Data'!$B$12-('Input Data'!$B$13*0.08333333)<0,0,AL50*'Input Data'!$B$12-('Input Data'!$B$13*0.08333333)) -> 0 | AO50: 2.101067552 | AP50: =AO50*'Input Data'!$C$12 -> 0.8194163452 | AQ50: =IF(AO50*'Input Data'!$B$12-('Input Data'!$B$13*0.08333333)<0,0,AO50*'Input Data'!$B$12-('Input Data'!$B$13*0.08333333)) -> 0.4707473262
P51: 11 | Q51: 2.5 | R51: 0.6787717848 | S51: 0.01375426806 | T51: 0.5139713519 | U51: =T51*'Input Data'!$C$12 -> 0.2004488272 | V51: =IF(T51*'Input Data'!$B$12-('Input Data'!$B$13*0.08333333)<0,0,T51*'Input Data'!$B$12-('Input Data'!$B$13*0.08333333)) -> 0 | W51: 0.7420760119 | X51: =W51*'Input Data'!$C$12 -> 0.2894096447 | Y51: =IF(W51*'Input Data'!$B$12-('Input Data'!$B$13*0.08333333)<0,0,W51*'Input Data'!$B$12-('Input Data'!$B$13*0.08333333)) -> 0 | Z51: 1.489774207 | AA51: =Z51*'Input Data'!$C$12 -> 0.5810119407 | AB51: =IF(Z51*'Input Data'!$B$12-('Input Data'!$B$13*0.08333333)<0,0,Z51*'Input Data'!$B$12-('Input Data'!$B$13*0.08333333)) -> 0.04284198479 | AE51: 7 | AF51: 2.5 | AG51: 0.2753634189 | AH51: 0.02130351322 | AI51: 0.7960725676 | AJ51: =AI51*'Input Data'!$C$12 -> 0.3104683014 | AK51: =IF(AI51*'Input Data'!$B$12-('Input Data'!$B$13*0.08333333)<0,0,AI51*'Input Data'!$B$12-('Input Data'!$B$13*0.08333333)) -> 0 | AL51: 1.149376038 | AM51: =AL51*'Input Data'!$C$12 -> 0.4482566549 | AN51: =IF(AL51*'Input Data'!$B$12-('Input Data'!$B$13*0.08333333)<0,0,AL51*'Input Data'!$B$12-('Input Data'!$B$13*0.08333333)) -> 0 | AO51: 2.307460082 | AP51: =AO51*'Input Data'!$C$12 -> 0.8999094322 | AQ51: =IF(AO51*'Input Data'!$B$12-('Input Data'!$B$13*0.08333333)<0,0,AO51*'Input Data'!$B$12-('Input Data'!$B$13*0.08333333)) -> 0.6152220977
P52: 12 | Q52: 2.583333333 | R52: 0.7265018122 | S52: 0.01211481023 | T52: 0.4527078698 | U52: =T52*'Input Data'!$C$12 -> 0.1765560692 | V52: =IF(T52*'Input Data'!$B$12-('Input Data'!$B$13*0.08333333)<0,0,T52*'Input Data'!$B$12-('Input Data'!$B$13*0.08333333)) -> 0 | W52: 0.6536232989 | X52: =W52*'Input Data'!$C$12 -> 0.2549130866 | Y52: =IF(W52*'Input Data'!$B$12-('Input Data'!$B$13*0.08333333)<0,0,W52*'Input Data'!$B$12-('Input Data'!$B$13*0.08333333)) -> 0 | Z52: 1.312198637 | AA52: =Z52*'Input Data'!$C$12 -> 0.5117574686 | AB52: =IF(Z52*'Input Data'!$B$12-('Input Data'!$B$13*0.08333333)<0,0,Z52*'Input Data'!$B$12-('Input Data'!$B$13*0.08333333)) -> 0 | AE52: 6 | AF52: 2.583333333 | AG52: 0.245050561 | AH52: 0.02353007371 | AI52: 0.8792749817 | AJ52: =AI52*'Input Data'!$C$12 -> 0.3429172429 | AK52: =IF(AI52*'Input Data'!$B$12-('Input Data'!$B$13*0.08333333)<0,0,AI52*'Input Data'!$B$12-('Input Data'!$B$13*0.08333333)) -> 0 | AL52: 1.269504359 | AM52: =AL52*'Input Data'!$C$12 -> 0.4951067001 | AN52: =IF(AL52*'Input Data'!$B$12-('Input Data'!$B$13*0.08333333)<0,0,AL52*'Input Data'!$B$12-('Input Data'!$B$13*0.08333333)) -> 0 | AO52: 2.548626852 | AP52: =AO52*'Input Data'!$C$12 -> 0.9939644722 | AQ52: =IF(AO52*'Input Data'!$B$12-('Input Data'!$B$13*0.08333333)<0,0,AO52*'Input Data'!$B$12-('Input Data'!$B$13*0.08333333)) -> 0.7840388362
P53: 13 | Q53: 2.666666667 | R53: 0.7735298236 | S53: 0.01070276886 | T53: 0.3999425163 | U53: =T53*'Input Data'!$C$12 -> 0.1559775814 | V53: =IF(T53*'Input Data'!$B$12-('Input Data'!$B$13*0.08333333)<0,0,T53*'Input Data'!$B$12-('Input Data'!$B$13*0.08333333)) -> 0 | W53: 0.577440253 | X53: =W53*'Input Data'!$C$12 -> 0.2252016987 | Y53: =IF(W53*'Input Data'!$B$12-('Input Data'!$B$13*0.08333333)<0,0,W53*'Input Data'!$B$12-('Input Data'!$B$13*0.08333333)) -> 0 | Z53: 1.159255361 | AA53: =Z53*'Input Data'!$C$12 -> 0.4521095907 | AB53: =IF(Z53*'Input Data'!$B$12-('Input Data'!$B$13*0.08333333)<0,0,Z53*'Input Data'!$B$12-('Input Data'!$B$13*0.08333333)) -> 0 | AE53: 5 | AF53: 2.666666667 | AG53: 0.2138586926 | AH53: 0.02618519468 | AI53: 0.9784919017 | AJ53: =AI53*'Input Data'!$C$12 -> 0.3816118417 | AK53: =IF(AI53*'Input Data'!$B$12-('Input Data'!$B$13*0.08333333)<0,0,AI53*'Input Data'!$B$12-('Input Data'!$B$13*0.08333333)) -> 0 | AL53: 1.412754554 | AM53: =AL53*'Input Data'!$C$12 -> 0.5509742762 | AN53: =IF(AL53*'Input Data'!$B$12-('Input Data'!$B$13*0.08333333)<0,0,AL53*'Input Data'!$B$12-('Input Data'!$B$13*0.08333333)) -> 0 | AO53: 2.836212547 | AP53: =AO53*'Input Data'!$C$12 -> 1.106122893 | AQ53: =IF(AO53*'Input Data'!$B$12-('Input Data'!$B$13*0.08333333)<0,0,AO53*'Input Data'!$B$12-('Input Data'!$B$13*0.08333333)) -> 0.9853488226
P54: 14 | Q54: 2.75 | R54: 0.8199171361 | S54: 0.009480371156 | T54: 0.3542637934 | U54: =T54*'Input Data'!$C$12 -> 0.1381628794 | V54: =IF(T54*'Input Data'!$B$12-('Input Data'!$B$13*0.08333333)<0,0,T54*'Input Data'!$B$12-('Input Data'!$B$13*0.08333333)) -> 0 | W54: 0.511488942 | X54: =W54*'Input Data'!$C$12 -> 0.1994806874 | Y54: =IF(W54*'Input Data'!$B$12-('Input Data'!$B$13*0.08333333)<0,0,W54*'Input Data'!$B$12-('Input Data'!$B$13*0.08333333)) -> 0 | Z54: 1.026853073 | AA54: =Z54*'Input Data'!$C$12 -> 0.4004726983 | AB54: =IF(Z54*'Input Data'!$B$12-('Input Data'!$B$13*0.08333333)<0,0,Z54*'Input Data'!$B$12-('Input Data'!$B$13*0.08333333)) -> 0 | AE54: 4 | AF54: 2.75 | AG54: 0.1815931718 | AH54: 0.02944636891 | AI54: 1.100355902 | AJ54: =AI54*'Input Data'!$C$12 -> 0.4291388017 | AK54: =IF(AI54*'Input Data'!$B$12-('Input Data'!$B$13*0.08333333)<0,0,AI54*'Input Data'!$B$12-('Input Data'!$B$13*0.08333333)) -> 0 | AL54: 1.588702787 | AM54: =AL54*'Input Data'!$C$12 -> 0.619594087 | AN54: =IF(AL54*'Input Data'!$B$12-('Input Data'!$B$13*0.08333333)<0,0,AL54*'Input Data'!$B$12-('Input Data'!$B$13*0.08333333)) -> 0.112091991 | AO54: 3.189442047 | AP54: =AO54*'Input Data'!$C$12 -> 1.243882398 | AQ54: =IF(AO54*'Input Data'!$B$12-('Input Data'!$B$13*0.08333333)<0,0,AO54*'Input Data'!$B$12-('Input Data'!$B$13*0.08333333)) -> 1.232609473
P55: 15 | Q55: 2.833333333 | R55: 0.8657158629 | S55: 0.008417464798 | T55: 0.3145449647 | U55: =T55*'Input Data'!$C$12 -> 0.1226725362 | V55: =IF(T55*'Input Data'!$B$12-('Input Data'!$B$13*0.08333333)<0,0,T55*'Input Data'!$B$12-('Input Data'!$B$13*0.08333333)) -> 0 | W55: 0.4541425745 | X55: =W55*'Input Data'!$C$12 -> 0.1771156041 | Y55: =IF(W55*'Input Data'!$B$12-('Input Data'!$B$13*0.08333333)<0,0,W55*'Input Data'!$B$12-('Input Data'!$B$13*0.08333333)) -> 0 | Z55: 0.9117258648 | AA55: =Z55*'Input Data'!$C$12 -> 0.3555730873 | AB55: =IF(Z55*'Input Data'!$B$12-('Input Data'!$B$13*0.08333333)<0,0,Z55*'Input Data'!$B$12-('Input Data'!$B$13*0.08333333)) -> 0 | AE55: 3 | AF55: 2.833333333 | AG55: 0.1479608343 | AH55: 0.03364440934 | AI55: 1.257228845 | AJ55: =AI55*'Input Data'!$C$12 -> 0.4903192496 | AK55: =IF(AI55*'Input Data'!$B$12-('Input Data'!$B$13*0.08333333)<0,0,AI55*'Input Data'!$B$12-('Input Data'!$B$13*0.08333333)) -> 0 | AL55: 1.815197217 | AM55: =AL55*'Input Data'!$C$12 -> 0.7079269146 | AN55: =IF(AL55*'Input Data'!$B$12-('Input Data'!$B$13*0.08333333)<0,0,AL55*'Input Data'!$B$12-('Input Data'!$B$13*0.08333333)) -> 0.2706380919 | AO55: 3.644146894 | AP55: =AO55*'Input Data'!$C$12 -> 1.421217289 | AQ55: =IF(AO55*'Input Data'!$B$12-('Input Data'!$B$13*0.08333333)<0,0,AO55*'Input Data'!$B$12-('Input Data'!$B$13*0.08333333)) -> 1.550902866
P56: 16 | Q56: 2.916666667 | R56: 0.9109707988 | S56: 0.007489663011 | T56: 0.2798747418 | U56: =T56*'Input Data'!$C$12 -> 0.1091511493 | V56: =IF(T56*'Input Data'!$B$12-('Input Data'!$B$13*0.08333333)<0,0,T56*'Input Data'!$B$12-('Input Data'!$B$13*0.08333333)) -> 0 | W56: 0.4040854252 | X56: =W56*'Input Data'!$C$12 -> 0.1575933158 | Y56: =IF(W56*'Input Data'!$B$12-('Input Data'!$B$13*0.08333333)<0,0,W56*'Input Data'!$B$12-('Input Data'!$B$13*0.08333333)) -> 0 | Z56: 0.8112323187 | AA56: =Z56*'Input Data'!$C$12 -> 0.3163806043 | AB56: =IF(Z56*'Input Data'!$B$12-('Input Data'!$B$13*0.08333333)<0,0,Z56*'Input Data'!$B$12-('Input Data'!$B$13*0.08333333)) -> 0 | AE56: 2 | AF56: 2.916666667 | AG56: 0.112474073 | AH56: 0.03953407956 | AI56: 1.47731484 | AJ56: =AI56*'Input Data'!$C$12 -> 0.5761527876 | AK56: =IF(AI56*'Input Data'!$B$12-('Input Data'!$B$13*0.08333333)<0,0,AI56*'Input Data'!$B$12-('Input Data'!$B$13*0.08333333)) -> 0.03412042798 | AL56: 2.132959164 | AM56: =AL56*'Input Data'!$C$12 -> 0.8318540738 | AN56: =IF(AL56*'Input Data'!$B$12-('Input Data'!$B$13*0.08333333)<0,0,AL56*'Input Data'!$B$12-('Input Data'!$B$13*0.08333333)) -> 0.4930714545 | AO56: 4.282078244 | AP56: =AO56*'Input Data'!$C$12 -> 1.670010515 | AQ56: =IF(AO56*'Input Data'!$B$12-('Input Data'!$B$13*0.08333333)<0,0,AO56*'Input Data'!$B$12-('Input Data'!$B$13*0.08333333)) -> 1.997454811
P57: 17 | Q57: 3 | R57: 0.9557208288 | S57: 0.006677022062 | T57: 0.2495078648 | U57: =T57*'Input Data'!$C$12 -> 0.09730806728 | V57: =IF(T57*'Input Data'!$B$12-('Input Data'!$B$13*0.08333333)<0,0,T57*'Input Data'!$B$12-('Input Data'!$B$13*0.08333333)) -> 0 | W57: 0.3602414815 | X57: =W57*'Input Data'!$C$12 -> 0.1404941778 | Y57: =IF(W57*'Input Data'!$B$12-('Input Data'!$B$13*0.08333333)<0,0,W57*'Input Data'!$B$12-('Input Data'!$B$13*0.08333333)) -> 0 | Z57: 0.7232122569 | AA57: =Z57*'Input Data'!$C$12 -> 0.2820527802 | AB57: =IF(Z57*'Input Data'!$B$12-('Input Data'!$B$13*0.08333333)<0,0,Z57*'Input Data'!$B$12-('Input Data'!$B$13*0.08333333)) -> 0 | AE57: 1 | AF57: 3 | AG57: 0.07417297383 | AH57: 0.04978806845 | AI57: 1.860487286 | AJ57: =AI57*'Input Data'!$C$12 -> 0.7255900414 | AK57: =IF(AI57*'Input Data'!$B$12-('Input Data'!$B$13*0.08333333)<0,0,AI57*'Input Data'!$B$12-('Input Data'!$B$13*0.08333333)) -> 0.3023411399 | AL57: 2.686186652 | AM57: =AL57*'Input Data'!$C$12 -> 1.047612794 | AN57: =IF(AL57*'Input Data'!$B$12-('Input Data'!$B$13*0.08333333)<0,0,AL57*'Input Data'!$B$12-('Input Data'!$B$13*0.08333333)) -> 0.8803306967 | AO57: 5.392724634 | AP57: =AO57*'Input Data'!$C$12 -> 2.103162607 | AQ57: =IF(AO57*'Input Data'!$B$12-('Input Data'!$B$13*0.08333333)<0,0,AO57*'Input Data'!$B$12-('Input Data'!$B$13*0.08333333)) -> 2.774907284
P58: 18 | Q58: 3.083333333 | R58: 1 | S58: 0.005963075977 | T58: 0.2228290308 | U58: =T58*'Input Data'!$C$12 -> 0.08690332202 | V58: =IF(T58*'Input Data'!$B$12-('Input Data'!$B$13*0.08333333)<0,0,T58*'Input Data'!$B$12-('Input Data'!$B$13*0.08333333)) -> 0 | W58: 0.3217223643 | X58: =W58*'Input Data'!$C$12 -> 0.1254717221 | Y58: =IF(W58*'Input Data'!$B$12-('Input Data'!$B$13*0.08333333)<0,0,W58*'Input Data'!$B$12-('Input Data'!$B$13*0.08333333)) -> 0 | Z58: 0.6458821906 | AA58: =Z58*'Input Data'!$C$12 -> 0.2518940543 | AB58: =IF(Z58*'Input Data'!$B$12-('Input Data'!$B$13*0.08333333)<0,0,Z58*'Input Data'!$B$12-('Input Data'!$B$13*0.08333333)) -> 0 | AE58: 0 | AF58: 3.083333333 | AG58: 0.0302964588 | AH58: 0.07486949042 | AI58: 2.797733259 | AJ58: =AI58*'Input Data'!$C$12 -> 1.091115971 | AK58: =IF(AI58*'Input Data'!$B$12-('Input Data'!$B$13*0.08333333)<0,0,AI58*'Input Data'!$B$12-('Input Data'!$B$13*0.08333333)) -> 0.9584133212 | AL58: 4.03939 | AM58: =AL58*'Input Data'!$C$12 -> 1.5753621 | AN58: =IF(AL58*'Input Data'!$B$12-('Input Data'!$B$13*0.08333333)<0,0,AL58*'Input Data'!$B$12-('Input Data'!$B$13*0.08333333)) -> 1.82757304 | AO58: 8.10938359 | AP58: =AO58*'Input Data'!$C$12 -> 3.1626596 | AQ58: =IF(AO58*'Input Data'!$B$12-('Input Data'!$B$13*0.08333333)<0,0,AO58*'Input Data'!$B$12-('Input Data'!$B$13*0.08333333)) -> 4.676568553
P59: Sum Rf (mm) | T59: =SUM(T22:T58) -> 37.36813545 | U59: 14.57357282 | V59: 6.022932118 | W59: 53.95241744 | X59: 21.0414428 | Y59: 13.2411465 | Z59: 108.313594 | AA59: 42.24230167 | AB59: 43.59301316 | AE59: 1 | AF59: 3.166666667 | AG59: 0.07417297383 | AH59: 0.04978806845 | AI59: 1.860487286 | AJ59: =AI59*'Input Data'!$C$12 -> 0.7255900414 | AK59: =IF(AI59*'Input Data'!$B$12-('Input Data'!$B$13*0.08333333)<0,0,AI59*'Input Data'!$B$12-('Input Data'!$B$13*0.08333333)) -> 0.3023411399 | AL59: 2.686186652 | AM59: =AL59*'Input Data'!$C$12 -> 1.047612794 | AN59: =IF(AL59*'Input Data'!$B$12-('Input Data'!$B$13*0.08333333)<0,0,AL59*'Input Data'!$B$12-('Input Data'!$B$13*0.08333333)) -> 0.8803306967 | AO59: 5.392724634 | AP59: =AO59*'Input Data'!$C$12 -> 2.103162607 | AQ59: =IF(AO59*'Input Data'!$B$12-('Input Data'!$B$13*0.08333333)<0,0,AO59*'Input Data'!$B$12-('Input Data'!$B$13*0.08333333)) -> 2.774907284
P60: Max Rf (mm) | T60: =MAX(T22:T58) -> 4.745701135 | U60: 1.850823443 | V60: 2.321990835 | W60: 6.85188184 | X60: 2.672233917 | Y60: 3.796317328 | Z60: 13.75567552 | AA60: 5.364713454 | AB60: 8.628972906 | AE60: 2 | AF60: 3.25 | AG60: 0.112474073 | AH60: 0.03953407956 | AI60: 1.47731484 | AJ60: =AI60*'Input Data'!$C$12 -> 0.5761527876 | AK60: =IF(AI60*'Input Data'!$B$12-('Input Data'!$B$13*0.08333333)<0,0,AI60*'Input Data'!$B$12-('Input Data'!$B$13*0.08333333)) -> 0.03412042798 | AL60: 2.132959164 | AM60: =AL60*'Input Data'!$C$12 -> 0.8318540738 | AN60: =IF(AL60*'Input Data'!$B$12-('Input Data'!$B$13*0.08333333)<0,0,AL60*'Input Data'!$B$12-('Input Data'!$B$13*0.08333333)) -> 0.4930714545 | AO60: 4.282078244 | AP60: =AO60*'Input Data'!$C$12 -> 1.670010515 | AQ60: =IF(AO60*'Input Data'!$B$12-('Input Data'!$B$13*0.08333333)<0,0,AO60*'Input Data'!$B$12-('Input Data'!$B$13*0.08333333)) -> 1.997454811
AE61: 3 | AF61: 3.333333333 | AG61: 0.1479608343 | AH61: 0.03364440934 | AI61: 1.257228845 | AJ61: =AI61*'Input Data'!$C$12 -> 0.4903192496 | AK61: =IF(AI61*'Input Data'!$B$12-('Input Data'!$B$13*0.08333333)<0,0,AI61*'Input Data'!$B$12-('Input Data'!$B$13*0.08333333)) -> 0 | AL61: 1.815197217 | AM61: =AL61*'Input Data'!$C$12 -> 0.7079269146 | AN61: =IF(AL61*'Input Data'!$B$12-('Input Data'!$B$13*0.08333333)<0,0,AL61*'Input Data'!$B$12-('Input Data'!$B$13*0.08333333)) -> 0.2706380919 | AO61: 3.644146894 | AP61: =AO61*'Input Data'!$C$12 -> 1.421217289 | AQ61: =IF(AO61*'Input Data'!$B$12-('Input Data'!$B$13*0.08333333)<0,0,AO61*'Input Data'!$B$12-('Input Data'!$B$13*0.08333333)) -> 1.550902866
AE62: 4 | AF62: 3.416666667 | AG62: 0.1815931718 | AH62: 0.02944636891 | AI62: 1.100355902 | AJ62: =AI62*'Input Data'!$C$12 -> 0.4291388017 | AK62: =IF(AI62*'Input Data'!$B$12-('Input Data'!$B$13*0.08333333)<0,0,AI62*'Input Data'!$B$12-('Input Data'!$B$13*0.08333333)) -> 0 | AL62: 1.588702787 | AM62: =AL62*'Input Data'!$C$12 -> 0.619594087 | AN62: =IF(AL62*'Input Data'!$B$12-('Input Data'!$B$13*0.08333333)<0,0,AL62*'Input Data'!$B$12-('Input Data'!$B$13*0.08333333)) -> 0.112091991 | AO62: 3.189442047 | AP62: =AO62*'Input Data'!$C$12 -> 1.243882398 | AQ62: =IF(AO62*'Input Data'!$B$12-('Input Data'!$B$13*0.08333333)<0,0,AO62*'Input Data'!$B$12-('Input Data'!$B$13*0.08333333)) -> 1.232609473
AE63: 5 | AF63: 3.5 | AG63: 0.2138586926 | AH63: 0.02618519468 | AI63: 0.9784919017 | AJ63: =AI63*'Input Data'!$C$12 -> 0.3816118417 | AK63: =IF(AI63*'Input Data'!$B$12-('Input Data'!$B$13*0.08333333)<0,0,AI63*'Input Data'!$B$12-('Input Data'!$B$13*0.08333333)) -> 0 | AL63: 1.412754554 | AM63: =AL63*'Input Data'!$C$12 -> 0.5509742762 | AN63: =IF(AL63*'Input Data'!$B$12-('Input Data'!$B$13*0.08333333)<0,0,AL63*'Input Data'!$B$12-('Input Data'!$B$13*0.08333333)) -> 0 | AO63: 2.836212547 | AP63: =AO63*'Input Data'!$C$12 -> 1.106122893 | AQ63: =IF(AO63*'Input Data'!$B$12-('Input Data'!$B$13*0.08333333)<0,0,AO63*'Input Data'!$B$12-('Input Data'!$B$13*0.08333333)) -> 0.9853488226
AE64: 6 | AF64: 3.583333333 | AG64: 0.245050561 | AH64: 0.02353007371 | AI64: 0.8792749817 | AJ64: =AI64*'Input Data'!$C$12 -> 0.3429172429 | AK64: =IF(AI64*'Input Data'!$B$12-('Input Data'!$B$13*0.08333333)<0,0,AI64*'Input Data'!$B$12-('Input Data'!$B$13*0.08333333)) -> 0 | AL64: 1.269504359 | AM64: =AL64*'Input Data'!$C$12 -> 0.4951067001 | AN64: =IF(AL64*'Input Data'!$B$12-('Input Data'!$B$13*0.08333333)<0,0,AL64*'Input Data'!$B$12-('Input Data'!$B$13*0.08333333)) -> 0 | AO64: 2.548626852 | AP64: =AO64*'Input Data'!$C$12 -> 0.9939644722 | AQ64: =IF(AO64*'Input Data'!$B$12-('Input Data'!$B$13*0.08333333)<0,0,AO64*'Input Data'!$B$12-('Input Data'!$B$13*0.08333333)) -> 0.7840388362
AE65: 7 | AF65: 3.666666667 | AG65: 0.2753634189 | AH65: 0.02130351322 | AI65: 0.7960725676 | AJ65: =AI65*'Input Data'!$C$12 -> 0.3104683014 | AK65: =IF(AI65*'Input Data'!$B$12-('Input Data'!$B$13*0.08333333)<0,0,AI65*'Input Data'!$B$12-('Input Data'!$B$13*0.08333333)) -> 0 | AL65: 1.149376038 | AM65: =AL65*'Input Data'!$C$12 -> 0.4482566549 | AN65: =IF(AL65*'Input Data'!$B$12-('Input Data'!$B$13*0.08333333)<0,0,AL65*'Input Data'!$B$12-('Input Data'!$B$13*0.08333333)) -> 0 | AO65: 2.307460082 | AP65: =AO65*'Input Data'!$C$12 -> 0.8999094322 | AQ65: =IF(AO65*'Input Data'!$B$12-('Input Data'!$B$13*0.08333333)<0,0,AO65*'Input Data'!$B$12-('Input Data'!$B$13*0.08333333)) -> 0.6152220977
AE66: 8 | AF66: 3.75 | AG66: 0.3049353265 | AH66: 0.0193980042 | AI66: 0.7248672484 | AJ66: =AI66*'Input Data'!$C$12 -> 0.2826982269 | AK66: =IF(AI66*'Input Data'!$B$12-('Input Data'!$B$13*0.08333333)<0,0,AI66*'Input Data'!$B$12-('Input Data'!$B$13*0.08333333)) -> 0 | AL66: 1.04656922 | AM66: =AL66*'Input Data'!$C$12 -> 0.4081619958 | AN66: =IF(AL66*'Input Data'!$B$12-('Input Data'!$B$13*0.08333333)<0,0,AL66*'Input Data'!$B$12-('Input Data'!$B$13*0.08333333)) -> 0 | AO66: 2.101067552 | AP66: =AO66*'Input Data'!$C$12 -> 0.8194163452 | AQ66: =IF(AO66*'Input Data'!$B$12-('Input Data'!$B$13*0.08333333)<0,0,AO66*'Input Data'!$B$12-('Input Data'!$B$13*0.08333333)) -> 0.4707473262
AE67: 9 | AF67: 3.833333333 | AG67: 0.3338689673 | AH67: 0.01774289313 | AI67: 0.6630188336 | AJ67: =AI67*'Input Data'!$C$12 -> 0.2585773451 | AK67: =IF(AI67*'Input Data'!$B$12-('Input Data'!$B$13*0.08333333)<0,0,AI67*'Input Data'!$B$12-('Input Data'!$B$13*0.08333333)) -> 0 | AL67: 0.9572719765 | AM67: =AL67*'Input Data'!$C$12 -> 0.3733360708 | AN67: =IF(AL67*'Input Data'!$B$12-('Input Data'!$B$13*0.08333333)<0,0,AL67*'Input Data'!$B$12-('Input Data'!$B$13*0.08333333)) -> 0 | AO67: 1.921796523 | AP67: =AO67*'Input Data'!$C$12 -> 0.749500644 | AQ67: =IF(AO67*'Input Data'!$B$12-('Input Data'!$B$13*0.08333333)<0,0,AO67*'Input Data'!$B$12-('Input Data'!$B$13*0.08333333)) -> 0.3452576061
AE68: 10 | AF68: 3.916666667 | AG68: 0.362243494 | AH68: 0.01628893989 | AI68: 0.6086873122 | AJ68: =AI68*'Input Data'!$C$12 -> 0.2373880517 | AK68: =IF(AI68*'Input Data'!$B$12-('Input Data'!$B$13*0.08333333)<0,0,AI68*'Input Data'!$B$12-('Input Data'!$B$13*0.08333333)) -> 0 | AL68: 0.8788276846 | AM68: =AL68*'Input Data'!$C$12 -> 0.342742797 | AN68: =IF(AL68*'Input Data'!$B$12-('Input Data'!$B$13*0.08333333)<0,0,AL68*'Input Data'!$B$12-('Input Data'!$B$13*0.08333333)) -> 0 | AO68: 1.764313622 | AP68: =AO68*'Input Data'!$C$12 -> 0.6880823128 | AQ68: =IF(AO68*'Input Data'!$B$12-('Input Data'!$B$13*0.08333333)<0,0,AO68*'Input Data'!$B$12-('Input Data'!$B$13*0.08333333)) -> 0.2350195757
AE69: 11 | AF69: 4 | AG69: 0.3901216527 | AH69: 0.01500027625 | AI69: 0.5605323547 | AJ69: =AI69*'Input Data'!$C$12 -> 0.2186076183 | AK69: =IF(AI69*'Input Data'!$B$12-('Input Data'!$B$13*0.08333333)<0,0,AI69*'Input Data'!$B$12-('Input Data'!$B$13*0.08333333)) -> 0 | AL69: 0.8093011659 | AM69: =AL69*'Input Data'!$C$12 -> 0.3156274547 | AN69: =IF(AL69*'Input Data'!$B$12-('Input Data'!$B$13*0.08333333)<0,0,AL69*'Input Data'!$B$12-('Input Data'!$B$13*0.08333333)) -> 0 | AO69: 1.624733832 | AP69: =AO69*'Input Data'!$C$12 -> 0.6336461945 | AQ69: =IF(AO69*'Input Data'!$B$12-('Input Data'!$B$13*0.08333333)<0,0,AO69*'Input Data'!$B$12-('Input Data'!$B$13*0.08333333)) -> 0.1373137225
AE70: 12 | AF70: 4.083333333 | AG70: 0.417554315 | AH70: 0.01384985913 | AI70: 0.5175434118 | AJ70: =AI70*'Input Data'!$C$12 -> 0.2018419306 | AK70: =IF(AI70*'Input Data'!$B$12-('Input Data'!$B$13*0.08333333)<0,0,AI70*'Input Data'!$B$12-('Input Data'!$B$13*0.08333333)) -> 0 | AL70: 0.747233381 | AM70: =AL70*'Input Data'!$C$12 -> 0.2914210186 | AN70: =IF(AL70*'Input Data'!$B$12-('Input Data'!$B$13*0.08333333)<0,0,AL70*'Input Data'!$B$12-('Input Data'!$B$13*0.08333333)) -> 0 | AO70: 1.500128019 | AP70: =AO70*'Input Data'!$C$12 -> 0.5850499273 | AQ70: =IF(AO70*'Input Data'!$B$12-('Input Data'!$B$13*0.08333333)<0,0,AO70*'Input Data'!$B$12-('Input Data'!$B$13*0.08333333)) -> 0.05008965312
AE71: 13 | AF71: 4.166666667 | AG71: 0.4445834962 | AH71: 0.01281673063 | AI71: 0.4789373263 | AJ71: =AI71*'Input Data'!$C$12 -> 0.1867855573 | AK71: =IF(AI71*'Input Data'!$B$12-('Input Data'!$B$13*0.08333333)<0,0,AI71*'Input Data'!$B$12-('Input Data'!$B$13*0.08333333)) -> 0 | AL71: 0.6914936013 | AM71: =AL71*'Input Data'!$C$12 -> 0.2696825045 | AN71: =IF(AL71*'Input Data'!$B$12-('Input Data'!$B$13*0.08333333)<0,0,AL71*'Input Data'!$B$12-('Input Data'!$B$13*0.08333333)) -> 0 | AO71: 1.388226159 | AP71: =AO71*'Input Data'!$C$12 -> 0.5414082018 | AQ71: =IF(AO71*'Input Data'!$B$12-('Input Data'!$B$13*0.08333333)<0,0,AO71*'Input Data'!$B$12-('Input Data'!$B$13*0.08333333)) -> 0
AE72: 14 | AF72: 4.25 | AG72: 0.4712444379 | AH72: 0.01188428056 | AI72: 0.4440934056 | AJ72: =AI72*'Input Data'!$C$12 -> 0.1731964282 | AK72: =IF(AI72*'Input Data'!$B$12-('Input Data'!$B$13*0.08333333)<0,0,AI72*'Input Data'!$B$12-('Input Data'!$B$13*0.08333333)) -> 0 | AL72: 0.6411856655 | AM72: =AL72*'Input Data'!$C$12 -> 0.2500624096 | AN72: =IF(AL72*'Input Data'!$B$12-('Input Data'!$B$13*0.08333333)<0,0,AL72*'Input Data'!$B$12-('Input Data'!$B$13*0.08333333)) -> 0 | AO72: 1.28722914 | AP72: =AO72*'Input Data'!$C$12 -> 0.5020193644 | AQ72: =IF(AO72*'Input Data'!$B$12-('Input Data'!$B$13*0.08333333)<0,0,AO72*'Input Data'!$B$12-('Input Data'!$B$13*0.08333333)) -> 0
AE73: 15 | AF73: 4.333333333 | AG73: 0.4975670922 | AH73: 0.01103909755 | AI73: 0.4125104926 | AJ73: =AI73*'Input Data'!$C$12 -> 0.1608790921 | AK73: =IF(AI73*'Input Data'!$B$12-('Input Data'!$B$13*0.08333333)<0,0,AI73*'Input Data'!$B$12-('Input Data'!$B$13*0.08333333)) -> 0 | AL73: 0.5955859993 | AM73: =AL73*'Input Data'!$C$12 -> 0.2322785397 | AN73: =IF(AL73*'Input Data'!$B$12-('Input Data'!$B$13*0.08333333)<0,0,AL73*'Input Data'!$B$12-('Input Data'!$B$13*0.08333333)) -> 0 | AO73: 1.195684331 | AP73: =AO73*'Input Data'!$C$12 -> 0.466316889 | AQ73: =IF(AO73*'Input Data'!$B$12-('Input Data'!$B$13*0.08333333)<0,0,AO73*'Input Data'!$B$12-('Input Data'!$B$13*0.08333333)) -> 0
AE74: 16 | AF74: 4.416666667 | AG74: 0.5235772045 | AH74: 0.01027018268 | AI74: 0.3837775773 | AJ74: =AI74*'Input Data'!$C$12 -> 0.1496732551 | AK74: =IF(AI74*'Input Data'!$B$12-('Input Data'!$B$13*0.08333333)<0,0,AI74*'Input Data'!$B$12-('Input Data'!$B$13*0.08333333)) -> 0 | AL74: 0.5541011829 | AM74: =AL74*'Input Data'!$C$12 -> 0.2160994613 | AN74: =IF(AL74*'Input Data'!$B$12-('Input Data'!$B$13*0.08333333)<0,0,AL74*'Input Data'!$B$12-('Input Data'!$B$13*0.08333333)) -> 0 | AO74: 1.112400397 | AP74: =AO74*'Input Data'!$C$12 -> 0.4338361548 | AQ74: =IF(AO74*'Input Data'!$B$12-('Input Data'!$B$13*0.08333333)<0,0,AO74*'Input Data'!$B$12-('Input Data'!$B$13*0.08333333)) -> 0
AE75: 17 | AF75: 4.5 | AG75: 0.549297124 | AH75: 0.00956839484 | AI75: 0.3575530744 | AJ75: =AI75*'Input Data'!$C$12 -> 0.139445699 | AK75: =IF(AI75*'Input Data'!$B$12-('Input Data'!$B$13*0.08333333)<0,0,AI75*'Input Data'!$B$12-('Input Data'!$B$13*0.08333333)) -> 0 | AL75: 0.5162380326 | AM75: =AL75*'Input Data'!$C$12 -> 0.2013328327 | AN75: =IF(AL75*'Input Data'!$B$12-('Input Data'!$B$13*0.08333333)<0,0,AL75*'Input Data'!$B$12-('Input Data'!$B$13*0.08333333)) -> 0 | AO75: 1.036387234 | AP75: =AO75*'Input Data'!$C$12 -> 0.4041910213 | AQ75: =IF(AO75*'Input Data'!$B$12-('Input Data'!$B$13*0.08333333)<0,0,AO75*'Input Data'!$B$12-('Input Data'!$B$13*0.08333333)) -> 0
AE76: 18 | AF76: 4.583333333 | AG76: 0.5747464191 | AH76: 0.008926049806 | AI76: 0.3335498382 | AJ76: =AI76*'Input Data'!$C$12 -> 0.1300844369 | AK76: =IF(AI76*'Input Data'!$B$12-('Input Data'!$B$13*0.08333333)<0,0,AI76*'Input Data'!$B$12-('Input Data'!$B$13*0.08333333)) -> 0 | AL76: 0.4815819652 | AM76: =AL76*'Input Data'!$C$12 -> 0.1878169664 | AN76: =IF(AL76*'Input Data'!$B$12-('Input Data'!$B$13*0.08333333)<0,0,AL76*'Input Data'!$B$12-('Input Data'!$B$13*0.08333333)) -> 0 | AO76: 0.966812535 | AP76: =AO76*'Input Data'!$C$12 -> 0.3770568886 | AQ76: =IF(AO76*'Input Data'!$B$12-('Input Data'!$B$13*0.08333333)<0,0,AO76*'Input Data'!$B$12-('Input Data'!$B$13*0.08333333)) -> 0
AE77: 19 | AF77: 4.666666667 | AG77: 0.5999423553 | AH77: 0.008336623744 | AI77: 0.3115240852 | AJ77: =AI77*'Input Data'!$C$12 -> 0.1214943932 | AK77: =IF(AI77*'Input Data'!$B$12-('Input Data'!$B$13*0.08333333)<0,0,AI77*'Input Data'!$B$12-('Input Data'!$B$13*0.08333333)) -> 0 | AL77: 0.4497810042 | AM77: =AL77*'Input Data'!$C$12 -> 0.1754145916 | AN77: =IF(AL77*'Input Data'!$B$12-('Input Data'!$B$13*0.08333333)<0,0,AL77*'Input Data'!$B$12-('Input Data'!$B$13*0.08333333)) -> 0 | AO77: 0.9029696797 | AP77: =AO77*'Input Data'!$C$12 -> 0.3521581751 | AQ77: =IF(AO77*'Input Data'!$B$12-('Input Data'!$B$13*0.08333333)<0,0,AO77*'Input Data'!$B$12-('Input Data'!$B$13*0.08333333)) -> 0
AE78: 20 | AF78: 4.75 | AG78: 0.6249002699 | AH78: 0.007794529865 | AI78: 0.2912670477 | AJ78: =AI78*'Input Data'!$C$12 -> 0.1135941486 | AK78: =IF(AI78*'Input Data'!$B$12-('Input Data'!$B$13*0.08333333)<0,0,AI78*'Input Data'!$B$12-('Input Data'!$B$13*0.08333333)) -> 0 | AL78: 0.420533729 | AM78: =AL78*'Input Data'!$C$12 -> 0.1640081543 | AN78: =IF(AL78*'Input Data'!$B$12-('Input Data'!$B$13*0.08333333)<0,0,AL78*'Input Data'!$B$12-('Input Data'!$B$13*0.08333333)) -> 0 | AO78: 0.8442535434 | AP78: =AO78*'Input Data'!$C$12 -> 0.3292588819 | AQ78: =IF(AO78*'Input Data'!$B$12-('Input Data'!$B$13*0.08333333)<0,0,AO78*'Input Data'!$B$12-('Input Data'!$B$13*0.08333333)) -> 0
AE79: 21 | AF79: 4.833333333 | AG79: 0.649633871 | AH79: 0.007294947244 | AI79: 0.2725985767 | AJ79: =AI79*'Input Data'!$C$12 -> 0.1063134449 | AK79: =IF(AI79*'Input Data'!$B$12-('Input Data'!$B$13*0.08333333)<0,0,AI79*'Input Data'!$B$12-('Input Data'!$B$13*0.08333333)) -> 0 | AL79: 0.3935800389 | AM79: =AL79*'Input Data'!$C$12 -> 0.1534962152 | AN79: =IF(AL79*'Input Data'!$B$12-('Input Data'!$B$13*0.08333333)<0,0,AL79*'Input Data'!$B$12-('Input Data'!$B$13*0.08333333)) -> 0 | AO79: 0.7901419542 | AP79: =AO79*'Input Data'!$C$12 -> 0.3081553621 | AQ79: =IF(AO79*'Input Data'!$B$12-('Input Data'!$B$13*0.08333333)<0,0,AO79*'Input Data'!$B$12-('Input Data'!$B$13*0.08333333)) -> 0
AE80: 22 | AF80: 4.916666667 | AG80: 0.6741554778 | AH80: 0.00683368764 | AI80: 0.2553621654 | AJ80: =AI80*'Input Data'!$C$12 -> 0.09959124449 | AK80: =IF(AI80*'Input Data'!$B$12-('Input Data'!$B$13*0.08333333)<0,0,AI80*'Input Data'!$B$12-('Input Data'!$B$13*0.08333333)) -> 0 | AL80: 0.3686939682 | AM80: =AL80*'Input Data'!$C$12 -> 0.1437906476 | AN80: =IF(AL80*'Input Data'!$B$12-('Input Data'!$B$13*0.08333333)<0,0,AL80*'Input Data'!$B$12-('Input Data'!$B$13*0.08333333)) -> 0 | AO80: 0.7401812688 | AP80: =AO80*'Input Data'!$C$12 -> 0.2886706948 | AQ80: =IF(AO80*'Input Data'!$B$12-('Input Data'!$B$13*0.08333333)<0,0,AO80*'Input Data'!$B$12-('Input Data'!$B$13*0.08333333)) -> 0
AE81: 23 | AF81: 5 | AG81: 0.6984762173 | AH81: 0.006407090498 | AI81: 0.2394210256 | AJ81: =AI81*'Input Data'!$C$12 -> 0.09337419997 | AK81: =IF(AI81*'Input Data'!$B$12-('Input Data'!$B$13*0.08333333)<0,0,AI81*'Input Data'!$B$12-('Input Data'!$B$13*0.08333333)) -> 0 | AL81: 0.3456780211 | AM81: =AL81*'Input Data'!$C$12 -> 0.1348144282 | AN81: =IF(AL81*'Input Data'!$B$12-('Input Data'!$B$13*0.08333333)<0,0,AL81*'Input Data'!$B$12-('Input Data'!$B$13*0.08333333)) -> 0 | AO81: 0.6939749991 | AP81: =AO81*'Input Data'!$C$12 -> 0.2706502496 | AQ81: =IF(AO81*'Input Data'!$B$12-('Input Data'!$B$13*0.08333333)<0,0,AO81*'Input Data'!$B$12-('Input Data'!$B$13*0.08333333)) -> 0
AE82: 24 | AF82: 5.083333333 | AG82: 0.7226061845 | AH82: 0.006011939148 | AI82: 0.2246549564 | AJ82: =AI82*'Input Data'!$C$12 -> 0.08761543299 | AK82: =IF(AI82*'Input Data'!$B$12-('Input Data'!$B$13*0.08333333)<0,0,AI82*'Input Data'!$B$12-('Input Data'!$B$13*0.08333333)) -> 0 | AL82: 0.3243586505 | AM82: =AL82*'Input Data'!$C$12 -> 0.1264998737 | AN82: =IF(AL82*'Input Data'!$B$12-('Input Data'!$B$13*0.08333333)<0,0,AL82*'Input Data'!$B$12-('Input Data'!$B$13*0.08333333)) -> 0 | AO82: 0.6511747362 | AP82: =AO82*'Input Data'!$C$12 -> 0.2539581471 | AQ82: =IF(AO82*'Input Data'!$B$12-('Input Data'!$B$13*0.08333333)<0,0,AO82*'Input Data'!$B$12-('Input Data'!$B$13*0.08333333)) -> 0
AE83: 25 | AF83: 5.166666667 | AG83: 0.7465545772 | AH83: 0.005645393211 | AI83: 0.2109578182 | AJ83: =AI83*'Input Data'!$C$12 -> 0.08227354908 | AK83: =IF(AI83*'Input Data'!$B$12-('Input Data'!$B$13*0.08333333)<0,0,AI83*'Input Data'!$B$12-('Input Data'!$B$13*0.08333333)) -> 0 | AL83: 0.3045826111 | AM83: =AL83*'Input Data'!$C$12 -> 0.1187872183 | AN83: =IF(AL83*'Input Data'!$B$12-('Input Data'!$B$13*0.08333333)<0,0,AL83*'Input Data'!$B$12-('Input Data'!$B$13*0.08333333)) -> 0 | AO83: 0.6114728283 | AP83: =AO83*'Input Data'!$C$12 -> 0.238474403 | AQ83: =IF(AO83*'Input Data'!$B$12-('Input Data'!$B$13*0.08333333)<0,0,AO83*'Input Data'!$B$12-('Input Data'!$B$13*0.08333333)) -> 0
AE84: 26 | AF84: 5.25 | AG84: 0.7703298071 | AH84: 0.00530493352 | AI84: 0.1982354743 | AJ84: =AI84*'Input Data'!$C$12 -> 0.07731183498 | AK84: =IF(AI84*'Input Data'!$B$12-('Input Data'!$B$13*0.08333333)<0,0,AI84*'Input Data'!$B$12-('Input Data'!$B$13*0.08333333)) -> 0 | AL84: 0.2862139877 | AM84: =AL84*'Input Data'!$C$12 -> 0.1116234552 | AN84: =IF(AL84*'Input Data'!$B$12-('Input Data'!$B$13*0.08333333)<0,0,AL84*'Input Data'!$B$12-('Input Data'!$B$13*0.08333333)) -> 0 | AO84: 0.5745964156 | AP84: =AO84*'Input Data'!$C$12 -> 0.2240926021 | AQ84: =IF(AO84*'Input Data'!$B$12-('Input Data'!$B$13*0.08333333)<0,0,AO84*'Input Data'!$B$12-('Input Data'!$B$13*0.08333333)) -> 0
AE85: 27 | AF85: 5.333333333 | AG85: 0.7939395941 | AH85: 0.004988316852 | AI85: 0.1864040998 | AJ85: =AI85*'Input Data'!$C$12 -> 0.07269759891 | AK85: =IF(AI85*'Input Data'!$B$12-('Input Data'!$B$13*0.08333333)<0,0,AI85*'Input Data'!$B$12-('Input Data'!$B$13*0.08333333)) -> 0 | AL85: 0.2691317531 | AM85: =AL85*'Input Data'!$C$12 -> 0.1049613837 | AN85: =IF(AL85*'Input Data'!$B$12-('Input Data'!$B$13*0.08333333)<0,0,AL85*'Input Data'!$B$12-('Input Data'!$B$13*0.08333333)) -> 0 | AO85: 0.5403025263 | AP85: =AO85*'Input Data'!$C$12 -> 0.2107179853 | AQ85: =IF(AO85*'Input Data'!$B$12-('Input Data'!$B$13*0.08333333)<0,0,AO85*'Input Data'!$B$12-('Input Data'!$B$13*0.08333333)) -> 0
AE86: 28 | AF86: 5.416666667 | AG86: 0.8173910467 | AH86: 0.004693538402 | AI86: 0.1753887787 | AJ86: =AI86*'Input Data'!$C$12 -> 0.06840162371 | AK86: =IF(AI86*'Input Data'!$B$12-('Input Data'!$B$13*0.08333333)<0,0,AI86*'Input Data'!$B$12-('Input Data'!$B$13*0.08333333)) -> 0 | AL86: 0.2532277431 | AM86: =AL86*'Input Data'!$C$12 -> 0.09875881981 | AN86: =IF(AL86*'Input Data'!$B$12-('Input Data'!$B$13*0.08333333)<0,0,AL86*'Input Data'!$B$12-('Input Data'!$B$13*0.08333333)) -> 0 | AO86: 0.508374013 | AP86: =AO86*'Input Data'!$C$12 -> 0.1982658651 | AQ86: =IF(AO86*'Input Data'!$B$12-('Input Data'!$B$13*0.08333333)<0,0,AO86*'Input Data'!$B$12-('Input Data'!$B$13*0.08333333)) -> 0
AE87: 29 | AF87: 5.5 | AG87: 0.8406907297 | AH87: 0.004418800457 | AI87: =AH87*$B$9 -> 0.165122334 | AJ87: =AI87*'Input Data'!$C$12 -> 0.06439771025 | AK87: =IF(AI87*'Input Data'!$B$12-('Input Data'!$B$13*0.08333333)<0,0,AI87*'Input Data'!$B$12-('Input Data'!$B$13*0.08333333)) -> 0 | AL87: =AH87*$B$10 -> 0.2384049668 | AM87: =AL87*'Input Data'!$C$12 -> 0.09297793705 | AN87: =IF(AL87*'Input Data'!$B$12-('Input Data'!$B$13*0.08333333)<0,0,AL87*'Input Data'!$B$12-('Input Data'!$B$13*0.08333333)) -> 0 | AO87: =AH87*$B$11 -> 0.4786161587 | AP87: =AO87*'Input Data'!$C$12 -> 0.1866603019 | AQ87: =IF(AO87*'Input Data'!$B$12-('Input Data'!$B$13*0.08333333)<0,0,AO87*'Input Data'!$B$12-('Input Data'!$B$13*0.08333333)) -> 0
AE88: 30 | AF88: 5.583333333 | AG88: 0.8638447229 | AH88: 0.00416248605 | AI88: 0.1555443425 | AJ88: =AI88*'Input Data'!$C$12 -> 0.06066229359 | AK88: =IF(AI88*'Input Data'!$B$12-('Input Data'!$B$13*0.08333333)<0,0,AI88*'Input Data'!$B$12-('Input Data'!$B$13*0.08333333)) -> 0 | AL88: 0.224576185 | AM88: =AL88*'Input Data'!$C$12 -> 0.08758471213 | AN88: =IF(AL88*'Input Data'!$B$12-('Input Data'!$B$13*0.08333333)<0,0,AL88*'Input Data'!$B$12-('Input Data'!$B$13*0.08333333)) -> 0 | AO88: 0.4508538242 | AP88: =AO88*'Input Data'!$C$12 -> 0.1758329914 | AQ88: =IF(AO88*'Input Data'!$B$12-('Input Data'!$B$13*0.08333333)<0,0,AO88*'Input Data'!$B$12-('Input Data'!$B$13*0.08333333)) -> 0
AE89: 31 | AF89: 5.666666667 | AG89: 0.8868586715 | AH89: 0.003923136679 | AI89: 0.1466003028 | AJ89: =AI89*'Input Data'!$C$12 -> 0.05717411809 | AK89: =IF(AI89*'Input Data'!$B$12-('Input Data'!$B$13*0.08333333)<0,0,AI89*'Input Data'!$B$12-('Input Data'!$B$13*0.08333333)) -> 0 | AL89: 0.2116627077 | AM89: =AL89*'Input Data'!$C$12 -> 0.08254845602 | AN89: =IF(AL89*'Input Data'!$B$12-('Input Data'!$B$13*0.08333333)<0,0,AL89*'Input Data'!$B$12-('Input Data'!$B$13*0.08333333)) -> 0 | AO89: 0.4249290335 | AP89: =AO89*'Input Data'!$C$12 -> 0.1657223231 | AQ89: =IF(AO89*'Input Data'!$B$12-('Input Data'!$B$13*0.08333333)<0,0,AO89*'Input Data'!$B$12-('Input Data'!$B$13*0.08333333)) -> 0
AE90: 32 | AF90: 5.75 | AG90: 0.9097378303 | AH90: 0.00369943333 | AI90: 0.1382409258 | AJ90: =AI90*'Input Data'!$C$12 -> 0.05391396105 | AK90: =IF(AI90*'Input Data'!$B$12-('Input Data'!$B$13*0.08333333)<0,0,AI90*'Input Data'!$B$12-('Input Data'!$B$13*0.08333333)) -> 0 | AL90: 0.1995933713 | AM90: =AL90*'Input Data'!$C$12 -> 0.07784141481 | AN90: =IF(AL90*'Input Data'!$B$12-('Input Data'!$B$13*0.08333333)<0,0,AL90*'Input Data'!$B$12-('Input Data'!$B$13*0.08333333)) -> 0 | AO90: 0.4006989198 | AP90: =AO90*'Input Data'!$C$12 -> 0.1562725787 | AQ90: =IF(AO90*'Input Data'!$B$12-('Input Data'!$B$13*0.08333333)<0,0,AO90*'Input Data'!$B$12-('Input Data'!$B$13*0.08333333)) -> 0
AE91: 33 | AF91: 5.833333333 | AG91: 0.9324871015 | AH91: 0.003490180255 | AI91: 0.1304215285 | AJ91: =AI91*'Input Data'!$C$12 -> 0.05086439612 | AK91: =IF(AI91*'Input Data'!$B$12-('Input Data'!$B$13*0.08333333)<0,0,AI91*'Input Data'!$B$12-('Input Data'!$B$13*0.08333333)) -> 0 | AL91: 0.1883036621 | AM91: =AL91*'Input Data'!$C$12 -> 0.0734384282 | AN91: =IF(AL91*'Input Data'!$B$12-('Input Data'!$B$13*0.08333333)<0,0,AL91*'Input Data'!$B$12-('Input Data'!$B$13*0.08333333)) -> 0 | AO91: 0.3780339672 | AP91: =AO91*'Input Data'!$C$12 -> 0.1474332472 | AQ91: =IF(AO91*'Input Data'!$B$12-('Input Data'!$B$13*0.08333333)<0,0,AO91*'Input Data'!$B$12-('Input Data'!$B$13*0.08333333)) -> 0
AE92: 34 | AF92: 5.916666667 | AG92: 0.9551110684 | AH92: 0.003294291008 | AI92: 0.1231015126 | AJ92: =AI92*'Input Data'!$C$12 -> 0.04800958991 | AK92: =IF(AI92*'Input Data'!$B$12-('Input Data'!$B$13*0.08333333)<0,0,AI92*'Input Data'!$B$12-('Input Data'!$B$13*0.08333333)) -> 0 | AL92: 0.1777349636 | AM92: =AL92*'Input Data'!$C$12 -> 0.06931663581 | AN92: =IF(AL92*'Input Data'!$B$12-('Input Data'!$B$13*0.08333333)<0,0,AL92*'Input Data'!$B$12-('Input Data'!$B$13*0.08333333)) -> 0 | AO92: 0.3568164989 | AP92: =AO92*'Input Data'!$C$12 -> 0.1391584346 | AQ92: =IF(AO92*'Input Data'!$B$12-('Input Data'!$B$13*0.08333333)<0,0,AO92*'Input Data'!$B$12-('Input Data'!$B$13*0.08333333)) -> 0
AE93: 35 | AF93: 6 | AG93: 0.9776140246 | AH93: 0.003110776386 | AI93: 0.1162439133 | AJ93: =AI93*'Input Data'!$C$12 -> 0.0453351262 | AK93: =IF(AI93*'Input Data'!$B$12-('Input Data'!$B$13*0.08333333)<0,0,AI93*'Input Data'!$B$12-('Input Data'!$B$13*0.08333333)) -> 0 | AL93: 0.1678339061 | AM93: =AL93*'Input Data'!$C$12 -> 0.06545522339 | AN93: =IF(AL93*'Input Data'!$B$12-('Input Data'!$B$13*0.08333333)<0,0,AL93*'Input Data'!$B$12-('Input Data'!$B$13*0.08333333)) -> 0 | AO93: 0.3369393706 | AP93: =AO93*'Input Data'!$C$12 -> 0.1314063545 | AQ93: =IF(AO93*'Input Data'!$B$12-('Input Data'!$B$13*0.08333333)<0,0,AO93*'Input Data'!$B$12-('Input Data'!$B$13*0.08333333)) -> 0
AE94: 36 | AF94: 6.083333333 | AG94: 1 | AH94: 0.002938733963 | AI94: 0.1098150088 | AJ94: =AI94*'Input Data'!$C$12 -> 0.04282785342 | AK94: =IF(AI94*'Input Data'!$B$12-('Input Data'!$B$13*0.08333333)<0,0,AI94*'Input Data'!$B$12-('Input Data'!$B$13*0.08333333)) -> 0 | AL94: 0.1585518015 | AM94: =AL94*'Input Data'!$C$12 -> 0.06183520258 | AN94: =IF(AL94*'Input Data'!$B$12-('Input Data'!$B$13*0.08333333)<0,0,AL94*'Input Data'!$B$12-('Input Data'!$B$13*0.08333333)) -> 0 | AO94: 0.3183048374 | AP94: =AO94*'Input Data'!$C$12 -> 0.1241388866 | AQ94: =IF(AO94*'Input Data'!$B$12-('Input Data'!$B$13*0.08333333)<0,0,AO94*'Input Data'!$B$12-('Input Data'!$B$13*0.08333333)) -> 0
AE95: Sum Rf (mm) | AI95: =SUM(AI22:AI94) -> 37.36813545 | AJ95: 14.57357282 | AK95: 1.631336457 | AL95: 53.95241744 | AM95: 21.0414428 | AN95: 5.339837508 | AO95: 108.313594 | AP95: 42.24230167 | AQ95: 27.0343927
AE96: Max Rf (mm) | AI96: =MAX(AI22:AI94) -> 2.797733259 | AJ96: 1.091115971 | AK96: 0.9584133212 | AL96: 4.03939 | AM96: 1.5753621 | AN96: 1.82757304 | AO96: 8.10938359 | AP96: 3.1626596 | AQ96: 4.676568553

Sheet Rainfall Profiles-Local Est
A1: SC120020/2 Appendix D_Effective Rainfall Matrix Calculator (v0.3 March 2015).xls
A2: Effective Rainfall matrix calculator
A3: Calculations: DDF Rainfall profiles with local estimate of drainage rates
A6: table 1: DDF Rainfall
A7: Duration, D | B7: 1.08
A8: Return Period, T | B8: Rainfall (mm)
A9: 30 | B9: ='Input Data'!B36 -> 37.36813545
A10: 100 | B10: ='Input Data'!C36 -> 53.95241744
A11: 1000 | B11: ='Input Data'!D36 -> 108.313594
A13: Table 2: Design Storm Profile
A14: Profile | B14: SUMMER
A15: a | B15: =IF(B14="Summer",0.1,0.06) -> 0.1
A16: b | B16: =IF(B14="Summer",0.815,1.026) -> 0.815
A18: Table 3: 1 hour DDF Rainfall profiles | P18: Table 4: 3 hour DDF Rainfall profiles | AE18: Table 5: 6 hour DDF Rainfall profiles
E19: 30 year return period | H19: 100 year return period | K19: 1000 year return period | T19: 30 year return period | W19: 100 year return period | Z19: 1000 year return period | AI19: 30 year return period | AL19: 100 year return period | AO19: 1000 year return period
E20: Rainfall | H20: Rainfall | K20: Rainfall | T20: Rainfall | W20: Rainfall | Z20: Rainfall | AI20: Rainfall | AL20: Rainfall | AO20: Rainfall
B21: Time (hours) | C21: z | D21: y (Prop Rainfall Depth) | E21: All (mm) | F21: Rural (mm) | G21: Urban (mm) | H21: All (mm) | I21: Rural (mm) | J21: Urban (mm) | K21: All (mm) | L21: Rural (mm) | M21: Urban (mm) | Q21: Time (hours) | R21: z | S21: y (Prop Rainfall Depth) | T21: All (mm) | U21: Rural (mm) | V21: Urban (mm) | W21: All (mm) | X21: Rural (mm) | Y21: Urban (mm) | Z21: All (mm) | AA21: Rural (mm) | AB21: Urban (mm) | AF21: Time (hours) | AG21: z | AH21: y (Prop Rainfall Depth) | AI21: All (mm) | AJ21: Rural (mm) | AK21: Urban (mm) | AL21: All (mm) | AM21: Rural (mm) | AN21: Urban (mm) | AO21: All (mm) | AP21: Rural (mm) | AQ21: Urban (mm)
A22: 6 | B22: 0.08333333333 | C22: 1 | D22: 0.01892020984 | E22: =D22*$B$9 -> 0.7070129641 | F22: =E22*'Input Data'!$E$12 -> 0.275735056 | G22: =IF(E22*'Input Data'!$D$12-('Input Data'!$D$13*0.08333333)<0,0,E22*'Input Data'!$D$12-('Input Data'!$D$13*0.08333333)) -> 0 | H22: =D22*$B$10 -> 1.020791059 | I22: =H22*'Input Data'!$E$12 -> 0.3981085132 | J22: =IF(H22*'Input Data'!$D$12-('Input Data'!$D$13*0.08333333)<0,0,H22*'Input Data'!$D$12-('Input Data'!$D$13*0.08333333)) -> 0 | K22: =D22*$B$11 -> 2.049315928 | L22: =K22*'Input Data'!$E$12 -> 0.7992332118 | M22: =IF(K22*'Input Data'!$D$12-('Input Data'!$D$13*0.08333333)<0,0,K22*'Input Data'!$D$12-('Input Data'!$D$13*0.08333333)) -> 0 | P22: 18 | Q22: 0.08333333333 | R22: 1 | S22: 0.005963075977 | T22: =S22*$B$9 -> 0.2228290308 | U22: =T22*'Input Data'!$E$12 -> 0.08690332202 | V22: =IF(T22*'Input Data'!$D$12-('Input Data'!$D$13*0.08333333)<0,0,T22*'Input Data'!$D$12-('Input Data'!$D$13*0.08333333)) -> 0 | W22: =S22*$B$10 -> 0.3217223643 | X22: =W22*'Input Data'!$E$12 -> 0.1254717221 | Y22: =IF(W22*'Input Data'!$D$12-('Input Data'!$D$13*0.08333333)<0,0,W22*'Input Data'!$D$12-('Input Data'!$D$13*0.08333333)) -> 0 | Z22: =S22*$B$11 -> 0.6458821906 | AA22: =Z22*'Input Data'!$E$12 -> 0.2518940543 | AB22: =IF(Z22*'Input Data'!$D$12-('Input Data'!$D$13*0.08333333)<0,0,Z22*'Input Data'!$D$12-('Input Data'!$D$13*0.08333333)) -> 0 | AE22: 36 | AF22: 0.08333333333 | AG22: 1 | AH22: 0.002938733963 | AI22: =AH22*$B$9 -> 0.1098150088 | AJ22: =AI22*'Input Data'!$E$12 -> 0.04282785342 | AK22: =IF(AI22*'Input Data'!$D$12-('Input Data'!$D$13*0.08333333)<0,0,AI22*'Input Data'!$D$12-('Input Data'!$D$13*0.08333333)) -> 0 | AL22: =AH22*$B$10 -> 0.1585518015 | AM22: =AL22*'Input Data'!$E$12 -> 0.06183520258 | AN22: =IF(AL22*'Input Data'!$D$12-('Input Data'!$D$13*0.08333333)<0,0,AL22*'Input Data'!$D$12-('Input Data'!$D$13*0.08333333)) -> 0 | AO22: =AH22*$B$11 -> 0.3183048374 | AP22: =AO22*'Input Data'!$E$12 -> 0.1241388866 | AQ22: =IF(AO22*'Input Data'!$D$12-('Input Data'!$D$13*0.08333333)<0,0,AO22*'Input Data'!$D$12-('Input Data'!$D$13*0.08333333)) -> 0
A23: 5 | B23: 0.1666666667 | C23: 0.8727125197 | D23: 0.02637606988 | E23: 0.9856245519 | F23: =E23*'Input Data'!$E$12 -> 0.3843935753 | G23: =IF(E23*'Input Data'!$D$12-('Input Data'!$D$13*0.08333333)<0,0,E23*'Input Data'!$D$12-('Input Data'!$D$13*0.08333333)) -> 0 | H23: 1.423052733 | I23: =H23*'Input Data'!$E$12 -> 0.5549905657 | J23: =IF(H23*'Input Data'!$D$12-('Input Data'!$D$13*0.08333333)<0,0,H23*'Input Data'!$D$12-('Input Data'!$D$13*0.08333333)) -> 0 | K23: 2.856886925 | L23: =K23*'Input Data'!$E$12 -> 1.114185901 | M23: =IF(K23*'Input Data'!$D$12-('Input Data'!$D$13*0.08333333)<0,0,K23*'Input Data'!$D$12-('Input Data'!$D$13*0.08333333)) -> 0.4998209076 | P23: 17 | Q23: 0.1666666667 | R23: 0.9557208288 | S23: 0.006677022062 | T23: =S23*$B$9 -> 0.2495078648 | U23: =T23*'Input Data'!$E$12 -> 0.09730806728 | V23: =IF(T23*'Input Data'!$D$12-('Input Data'!$D$13*0.08333333)<0,0,T23*'Input Data'!$D$12-('Input Data'!$D$13*0.08333333)) -> 0 | W23: =S23*$B$10 -> 0.3602414815 | X23: =W23*'Input Data'!$E$12 -> 0.1404941778 | Y23: =IF(W23*'Input Data'!$D$12-('Input Data'!$D$13*0.08333333)<0,0,W23*'Input Data'!$D$12-('Input Data'!$D$13*0.08333333)) -> 0 | Z23: =S23*$B$11 -> 0.7232122569 | AA23: =Z23*'Input Data'!$E$12 -> 0.2820527802 | AB23: =IF(Z23*'Input Data'!$D$12-('Input Data'!$D$13*0.08333333)<0,0,Z23*'Input Data'!$D$12-('Input Data'!$D$13*0.08333333)) -> 0 | AE23: 35 | AF23: 0.1666666667 | AG23: 0.9776140246 | AH23: 0.003110776386 | AI23: =AH23*$B$9 -> 0.1162439133 | AJ23: =AI23*'Input Data'!$E$12 -> 0.0453351262 | AK23: =IF(AI23*'Input Data'!$D$12-('Input Data'!$D$13*0.08333333)<0,0,AI23*'Input Data'!$D$12-('Input Data'!$D$13*0.08333333)) -> 0 | AL23: =AH23*$B$10 -> 0.1678339061 | AM23: =AL23*'Input Data'!$E$12 -> 0.06545522339 | AN23: =IF(AL23*'Input Data'!$D$12-('Input Data'!$D$13*0.08333333)<0,0,AL23*'Input Data'!$D$12-('Input Data'!$D$13*0.08333333)) -> 0 | AO23: =AH23*$B$11 -> 0.3369393706 | AP23: =AO23*'Input Data'!$E$12 -> 0.1314063545 | AQ23: =IF(AO23*'Input Data'!$D$12-('Input Data'!$D$13*0.08333333)<0,0,AO23*'Input Data'!$D$12-('Input Data'!$D$13*0.08333333)) -> 0
A24: 4 | B24: 0.25 | C24: 0.7410436891 | D24: 0.03748260863 | E24: 1.400655196 | F24: =E24*'Input Data'!$E$12 -> 0.5462555265 | G24: =IF(E24*'Input Data'!$D$12-('Input Data'!$D$13*0.08333333)<0,0,E24*'Input Data'!$D$12-('Input Data'!$D$13*0.08333333)) -> 0 | H24: 2.022277347 | I24: =H24*'Input Data'!$E$12 -> 0.7886881655 | J24: =IF(H24*'Input Data'!$D$12-('Input Data'!$D$13*0.08333333)<0,0,H24*'Input Data'!$D$12-('Input Data'!$D$13*0.08333333)) -> 0 | K24: 4.059876054 | L24: =K24*'Input Data'!$E$12 -> 1.583351661 | M24: =IF(K24*'Input Data'!$D$12-('Input Data'!$D$13*0.08333333)<0,0,K24*'Input Data'!$D$12-('Input Data'!$D$13*0.08333333)) -> 1.341913298 | P24: 16 | Q24: 0.25 | R24: 0.9109707988 | S24: 0.007489663011 | T24: 0.2798747418 | U24: =T24*'Input Data'!$E$12 -> 0.1091511493 | V24: =IF(T24*'Input Data'!$D$12-('Input Data'!$D$13*0.08333333)<0,0,T24*'Input Data'!$D$12-('Input Data'!$D$13*0.08333333)) -> 0 | W24: 0.4040854252 | X24: =W24*'Input Data'!$E$12 -> 0.1575933158 | Y24: =IF(W24*'Input Data'!$D$12-('Input Data'!$D$13*0.08333333)<0,0,W24*'Input Data'!$D$12-('Input Data'!$D$13*0.08333333)) -> 0 | Z24: 0.8112323187 | AA24: =Z24*'Input Data'!$E$12 -> 0.3163806043 | AB24: =IF(Z24*'Input Data'!$D$12-('Input Data'!$D$13*0.08333333)<0,0,Z24*'Input Data'!$D$12-('Input Data'!$D$13*0.08333333)) -> 0 | AE24: 34 | AF24: 0.25 | AG24: 0.9551110684 | AH24: 0.003294291008 | AI24: 0.1231015126 | AJ24: =AI24*'Input Data'!$E$12 -> 0.04800958991 | AK24: =IF(AI24*'Input Data'!$D$12-('Input Data'!$D$13*0.08333333)<0,0,AI24*'Input Data'!$D$12-('Input Data'!$D$13*0.08333333)) -> 0 | AL24: 0.1777349636 | AM24: =AL24*'Input Data'!$E$12 -> 0.06931663581 | AN24: =IF(AL24*'Input Data'!$D$12-('Input Data'!$D$13*0.08333333)<0,0,AL24*'Input Data'!$D$12-('Input Data'!$D$13*0.08333333)) -> 0 | AO24: 0.3568164989 | AP24: =AO24*'Input Data'!$E$12 -> 0.1391584346 | AQ24: =IF(AO24*'Input Data'!$D$12-('Input Data'!$D$13*0.08333333)<0,0,AO24*'Input Data'!$D$12-('Input Data'!$D$13*0.08333333)) -> 0
A25: 3 | B25: 0.3333333333 | C25: 0.6037971663 | D25: 0.05474870231 | E25: 2.045856923 | F25: =E25*'Input Data'!$E$12 -> 0.7978842001 | G25: =IF(E25*'Input Data'!$D$12-('Input Data'!$D$13*0.08333333)<0,0,E25*'Input Data'!$D$12-('Input Data'!$D$13*0.08333333)) -> 0 | H25: 2.953824841 | I25: =H25*'Input Data'!$E$12 -> 1.151991688 | J25: =IF(H25*'Input Data'!$D$12-('Input Data'!$D$13*0.08333333)<0,0,H25*'Input Data'!$D$12-('Input Data'!$D$13*0.08333333)) -> 0.5676774486 | K25: 5.930028715 | L25: =K25*'Input Data'!$E$12 -> 2.312711199 | M25: =IF(K25*'Input Data'!$D$12-('Input Data'!$D$13*0.08333333)<0,0,K25*'Input Data'!$D$12-('Input Data'!$D$13*0.08333333)) -> 2.65102016 | P25: 15 | Q25: 0.3333333333 | R25: 0.8657158629 | S25: 0.008417464798 | T25: 0.3145449647 | U25: =T25*'Input Data'!$E$12 -> 0.1226725362 | V25: =IF(T25*'Input Data'!$D$12-('Input Data'!$D$13*0.08333333)<0,0,T25*'Input Data'!$D$12-('Input Data'!$D$13*0.08333333)) -> 0 | W25: 0.4541425745 | X25: =W25*'Input Data'!$E$12 -> 0.1771156041 | Y25: =IF(W25*'Input Data'!$D$12-('Input Data'!$D$13*0.08333333)<0,0,W25*'Input Data'!$D$12-('Input Data'!$D$13*0.08333333)) -> 0 | Z25: 0.9117258648 | AA25: =Z25*'Input Data'!$E$12 -> 0.3555730873 | AB25: =IF(Z25*'Input Data'!$D$12-('Input Data'!$D$13*0.08333333)<0,0,Z25*'Input Data'!$D$12-('Input Data'!$D$13*0.08333333)) -> 0 | AE25: 33 | AF25: 0.3333333333 | AG25: 0.9324871015 | AH25: 0.003490180255 | AI25: 0.1304215285 | AJ25: =AI25*'Input Data'!$E$12 -> 0.05086439612 | AK25: =IF(AI25*'Input Data'!$D$12-('Input Data'!$D$13*0.08333333)<0,0,AI25*'Input Data'!$D$12-('Input Data'!$D$13*0.08333333)) -> 0 | AL25: 0.1883036621 | AM25: =AL25*'Input Data'!$E$12 -> 0.0734384282 | AN25: =IF(AL25*'Input Data'!$D$12-('Input Data'!$D$13*0.08333333)<0,0,AL25*'Input Data'!$D$12-('Input Data'!$D$13*0.08333333)) -> 0 | AO25: 0.3780339672 | AP25: =AO25*'Input Data'!$E$12 -> 0.1474332472 | AQ25: =IF(AO25*'Input Data'!$D$12-('Input Data'!$D$13*0.08333333)<0,0,AO25*'Input Data'!$D$12-('Input Data'!$D$13*0.08333333)) -> 0
A26: 2 | B26: 0.4166666667 | C26: 0.458983128 | D26: 0.08363849729 | E26: 3.125414695 | F26: =E26*'Input Data'!$E$12 -> 1.218911731 | G26: =IF(E26*'Input Data'!$D$12-('Input Data'!$D$13*0.08333333)<0,0,E26*'Input Data'!$D$12-('Input Data'!$D$13*0.08333333)) -> 0.6877903468 | H26: 4.51249912 | I26: =H26*'Input Data'!$E$12 -> 1.759874657 | J26: =IF(H26*'Input Data'!$D$12-('Input Data'!$D$13*0.08333333)<0,0,H26*'Input Data'!$D$12-('Input Data'!$D$13*0.08333333)) -> 1.658749444 | K26: 9.05918624 | L26: =K26*'Input Data'!$E$12 -> 3.533082634 | M26: =IF(K26*'Input Data'!$D$12-('Input Data'!$D$13*0.08333333)<0,0,K26*'Input Data'!$D$12-('Input Data'!$D$13*0.08333333)) -> 4.841430428 | P26: 14 | Q26: 0.4166666667 | R26: 0.8199171361 | S26: 0.009480371156 | T26: 0.3542637934 | U26: =T26*'Input Data'!$E$12 -> 0.1381628794 | V26: =IF(T26*'Input Data'!$D$12-('Input Data'!$D$13*0.08333333)<0,0,T26*'Input Data'!$D$12-('Input Data'!$D$13*0.08333333)) -> 0 | W26: 0.511488942 | X26: =W26*'Input Data'!$E$12 -> 0.1994806874 | Y26: =IF(W26*'Input Data'!$D$12-('Input Data'!$D$13*0.08333333)<0,0,W26*'Input Data'!$D$12-('Input Data'!$D$13*0.08333333)) -> 0 | Z26: 1.026853073 | AA26: =Z26*'Input Data'!$E$12 -> 0.4004726983 | AB26: =IF(Z26*'Input Data'!$D$12-('Input Data'!$D$13*0.08333333)<0,0,Z26*'Input Data'!$D$12-('Input Data'!$D$13*0.08333333)) -> 0 | AE26: 32 | AF26: 0.4166666667 | AG26: 0.9097378303 | AH26: 0.00369943333 | AI26: 0.1382409258 | AJ26: =AI26*'Input Data'!$E$12 -> 0.05391396105 | AK26: =IF(AI26*'Input Data'!$D$12-('Input Data'!$D$13*0.08333333)<0,0,AI26*'Input Data'!$D$12-('Input Data'!$D$13*0.08333333)) -> 0 | AL26: 0.1995933713 | AM26: =AL26*'Input Data'!$E$12 -> 0.07784141481 | AN26: =IF(AL26*'Input Data'!$D$12-('Input Data'!$D$13*0.08333333)<0,0,AL26*'Input Data'!$D$12-('Input Data'!$D$13*0.08333333)) -> 0 | AO26: 0.4006989198 | AP26: =AO26*'Input Data'!$E$12 -> 0.1562725787 | AQ26: =IF(AO26*'Input Data'!$D$12-('Input Data'!$D$13*0.08333333)<0,0,AO26*'Input Data'!$D$12-('Input Data'!$D$13*0.08333333)) -> 0
A27: 1 | B27: 0.5 | C27: 0.3026843665 | D27: 0.1411991634 | E27: 5.276349464 | F27: =E27*'Input Data'!$E$12 -> 2.057776291 | G27: =IF(E27*'Input Data'!$D$12-('Input Data'!$D$13*0.08333333)<0,0,E27*'Input Data'!$D$12-('Input Data'!$D$13*0.08333333)) -> 2.193444685 | H27: 7.618036207 | I27: =H27*'Input Data'!$E$12 -> 2.971034121 | J27: =IF(H27*'Input Data'!$D$12-('Input Data'!$D$13*0.08333333)<0,0,H27*'Input Data'!$D$12-('Input Data'!$D$13*0.08333333)) -> 3.832625405 | K27: 15.29378886 | L27: =K27*'Input Data'!$E$12 -> 5.964577657 | M27: =IF(K27*'Input Data'!$D$12-('Input Data'!$D$13*0.08333333)<0,0,K27*'Input Data'!$D$12-('Input Data'!$D$13*0.08333333)) -> 9.205652265 | P27: 13 | Q27: 0.5 | R27: 0.7735298236 | S27: 0.01070276886 | T27: 0.3999425163 | U27: =T27*'Input Data'!$E$12 -> 0.1559775814 | V27: =IF(T27*'Input Data'!$D$12-('Input Data'!$D$13*0.08333333)<0,0,T27*'Input Data'!$D$12-('Input Data'!$D$13*0.08333333)) -> 0 | W27: 0.577440253 | X27: =W27*'Input Data'!$E$12 -> 0.2252016987 | Y27: =IF(W27*'Input Data'!$D$12-('Input Data'!$D$13*0.08333333)<0,0,W27*'Input Data'!$D$12-('Input Data'!$D$13*0.08333333)) -> 0 | Z27: 1.159255361 | AA27: =Z27*'Input Data'!$E$12 -> 0.4521095907 | AB27: =IF(Z27*'Input Data'!$D$12-('Input Data'!$D$13*0.08333333)<0,0,Z27*'Input Data'!$D$12-('Input Data'!$D$13*0.08333333)) -> 0 | AE27: 31 | AF27: 0.5 | AG27: 0.8868586715 | AH27: 0.003923136679 | AI27: 0.1466003028 | AJ27: =AI27*'Input Data'!$E$12 -> 0.05717411809 | AK27: =IF(AI27*'Input Data'!$D$12-('Input Data'!$D$13*0.08333333)<0,0,AI27*'Input Data'!$D$12-('Input Data'!$D$13*0.08333333)) -> 0 | AL27: 0.2116627077 | AM27: =AL27*'Input Data'!$E$12 -> 0.08254845602 | AN27: =IF(AL27*'Input Data'!$D$12-('Input Data'!$D$13*0.08333333)<0,0,AL27*'Input Data'!$D$12-('Input Data'!$D$13*0.08333333)) -> 0 | AO27: 0.4249290335 | AP27: =AO27*'Input Data'!$E$12 -> 0.1657223231 | AQ27: =IF(AO27*'Input Data'!$D$12-('Input Data'!$D$13*0.08333333)<0,0,AO27*'Input Data'!$D$12-('Input Data'!$D$13*0.08333333)) -> 0
A28: 0 | B28: 0.5833333333 | C28: 0.1236335011 | D28: 0.2752694972 | E28: 10.28630786 | F28: =E28*'Input Data'!$E$12 -> 4.011660064 | G28: =IF(E28*'Input Data'!$D$12-('Input Data'!$D$13*0.08333333)<0,0,E28*'Input Data'!$D$12-('Input Data'!$D$13*0.08333333)) -> 5.70041556 | H28: 14.85145482 | I28: =H28*'Input Data'!$E$12 -> 5.792067381 | J28: =IF(H28*'Input Data'!$D$12-('Input Data'!$D$13*0.08333333)<0,0,H28*'Input Data'!$D$12-('Input Data'!$D$13*0.08333333)) -> 8.896018435 | K28: 29.81542857 | L28: =K28*'Input Data'!$E$12 -> 11.62801714 | M28: =IF(K28*'Input Data'!$D$12-('Input Data'!$D$13*0.08333333)<0,0,K28*'Input Data'!$D$12-('Input Data'!$D$13*0.08333333)) -> 19.37080006 | P28: 12 | Q28: 0.5833333333 | R28: 0.7265018122 | S28: 0.01211481023 | T28: 0.4527078698 | U28: =T28*'Input Data'!$E$12 -> 0.1765560692 | V28: =IF(T28*'Input Data'!$D$12-('Input Data'!$D$13*0.08333333)<0,0,T28*'Input Data'!$D$12-('Input Data'!$D$13*0.08333333)) -> 0 | W28: 0.6536232989 | X28: =W28*'Input Data'!$E$12 -> 0.2549130866 | Y28: =IF(W28*'Input Data'!$D$12-('Input Data'!$D$13*0.08333333)<0,0,W28*'Input Data'!$D$12-('Input Data'!$D$13*0.08333333)) -> 0 | Z28: 1.312198637 | AA28: =Z28*'Input Data'!$E$12 -> 0.5117574686 | AB28: =IF(Z28*'Input Data'!$D$12-('Input Data'!$D$13*0.08333333)<0,0,Z28*'Input Data'!$D$12-('Input Data'!$D$13*0.08333333)) -> 0 | AE28: 30 | AF28: 0.5833333333 | AG28: 0.8638447229 | AH28: 0.00416248605 | AI28: 0.1555443425 | AJ28: =AI28*'Input Data'!$E$12 -> 0.06066229359 | AK28: =IF(AI28*'Input Data'!$D$12-('Input Data'!$D$13*0.08333333)<0,0,AI28*'Input Data'!$D$12-('Input Data'!$D$13*0.08333333)) -> 0 | AL28: 0.224576185 | AM28: =AL28*'Input Data'!$E$12 -> 0.08758471213 | AN28: =IF(AL28*'Input Data'!$D$12-('Input Data'!$D$13*0.08333333)<0,0,AL28*'Input Data'!$D$12-('Input Data'!$D$13*0.08333333)) -> 0 | AO28: 0.4508538242 | AP28: =AO28*'Input Data'!$E$12 -> 0.1758329914 | AQ28: =IF(AO28*'Input Data'!$D$12-('Input Data'!$D$13*0.08333333)<0,0,AO28*'Input Data'!$D$12-('Input Data'!$D$13*0.08333333)) -> 0
A29: 1 | B29: 0.6666666667 | C29: 0.303 | D29: 0.1411991634 | E29: =E27 -> 5.276349464 | F29: =E29*'Input Data'!$E$12 -> 2.057776291 | G29: =IF(E29*'Input Data'!$D$12-('Input Data'!$D$13*0.08333333)<0,0,E29*'Input Data'!$D$12-('Input Data'!$D$13*0.08333333)) -> 2.193444685 | H29: 7.618036207 | I29: =H29*'Input Data'!$E$12 -> 2.971034121 | J29: =IF(H29*'Input Data'!$D$12-('Input Data'!$D$13*0.08333333)<0,0,H29*'Input Data'!$D$12-('Input Data'!$D$13*0.08333333)) -> 3.832625405 | K29: 15.29378886 | L29: =K29*'Input Data'!$E$12 -> 5.964577657 | M29: =IF(K29*'Input Data'!$D$12-('Input Data'!$D$13*0.08333333)<0,0,K29*'Input Data'!$D$12-('Input Data'!$D$13*0.08333333)) -> 9.205652265 | P29: 11 | Q29: 0.6666666667 | R29: 0.6787717848 | S29: 0.01375426806 | T29: 0.5139713519 | U29: =T29*'Input Data'!$E$12 -> 0.2004488272 | V29: =IF(T29*'Input Data'!$D$12-('Input Data'!$D$13*0.08333333)<0,0,T29*'Input Data'!$D$12-('Input Data'!$D$13*0.08333333)) -> 0 | W29: 0.7420760119 | X29: =W29*'Input Data'!$E$12 -> 0.2894096447 | Y29: =IF(W29*'Input Data'!$D$12-('Input Data'!$D$13*0.08333333)<0,0,W29*'Input Data'!$D$12-('Input Data'!$D$13*0.08333333)) -> 0 | Z29: 1.489774207 | AA29: =Z29*'Input Data'!$E$12 -> 0.5810119407 | AB29: =IF(Z29*'Input Data'!$D$12-('Input Data'!$D$13*0.08333333)<0,0,Z29*'Input Data'!$D$12-('Input Data'!$D$13*0.08333333)) -> 0 | AE29: 29 | AF29: 0.6666666667 | AG29: 0.8406907297 | AH29: 0.004418800457 | AI29: 0.165122334 | AJ29: =AI29*'Input Data'!$E$12 -> 0.06439771025 | AK29: =IF(AI29*'Input Data'!$D$12-('Input Data'!$D$13*0.08333333)<0,0,AI29*'Input Data'!$D$12-('Input Data'!$D$13*0.08333333)) -> 0 | AL29: 0.2384049668 | AM29: =AL29*'Input Data'!$E$12 -> 0.09297793705 | AN29: =IF(AL29*'Input Data'!$D$12-('Input Data'!$D$13*0.08333333)<0,0,AL29*'Input Data'!$D$12-('Input Data'!$D$13*0.08333333)) -> 0 | AO29: 0.4786161587 | AP29: =AO29*'Input Data'!$E$12 -> 0.1866603019 | AQ29: =IF(AO29*'Input Data'!$D$12-('Input Data'!$D$13*0.08333333)<0,0,AO29*'Input Data'!$D$12-('Input Data'!$D$13*0.08333333)) -> 0
A30: 2 | B30: 0.75 | C30: 0.459 | D30: 0.08363849729 | E30: =E26 -> 3.125414695 | F30: =E30*'Input Data'!$E$12 -> 1.218911731 | G30: =IF(E30*'Input Data'!$D$12-('Input Data'!$D$13*0.08333333)<0,0,E30*'Input Data'!$D$12-('Input Data'!$D$13*0.08333333)) -> 0.6877903468 | H30: 4.51249912 | I30: =H30*'Input Data'!$E$12 -> 1.759874657 | J30: =IF(H30*'Input Data'!$D$12-('Input Data'!$D$13*0.08333333)<0,0,H30*'Input Data'!$D$12-('Input Data'!$D$13*0.08333333)) -> 1.658749444 | K30: 9.05918624 | L30: =K30*'Input Data'!$E$12 -> 3.533082634 | M30: =IF(K30*'Input Data'!$D$12-('Input Data'!$D$13*0.08333333)<0,0,K30*'Input Data'!$D$12-('Input Data'!$D$13*0.08333333)) -> 4.841430428 | P30: 10 | Q30: 0.75 | R30: 0.6302666394 | S30: 0.01566920976 | T30: 0.5855291527 | U30: =T30*'Input Data'!$E$12 -> 0.2283563695 | V30: =IF(T30*'Input Data'!$D$12-('Input Data'!$D$13*0.08333333)<0,0,T30*'Input Data'!$D$12-('Input Data'!$D$13*0.08333333)) -> 0 | W30: 0.8453917458 | X30: =W30*'Input Data'!$E$12 -> 0.3297027809 | Y30: =IF(W30*'Input Data'!$D$12-('Input Data'!$D$13*0.08333333)<0,0,W30*'Input Data'!$D$12-('Input Data'!$D$13*0.08333333)) -> 0 | Z30: 1.697188425 | AA30: =Z30*'Input Data'!$E$12 -> 0.6619034856 | AB30: =IF(Z30*'Input Data'!$D$12-('Input Data'!$D$13*0.08333333)<0,0,Z30*'Input Data'!$D$12-('Input Data'!$D$13*0.08333333)) -> 0 | AE30: 28 | AF30: 0.75 | AG30: 0.8173910467 | AH30: 0.004693538402 | AI30: 0.1753887787 | AJ30: =AI30*'Input Data'!$E$12 -> 0.06840162371 | AK30: =IF(AI30*'Input Data'!$D$12-('Input Data'!$D$13*0.08333333)<0,0,AI30*'Input Data'!$D$12-('Input Data'!$D$13*0.08333333)) -> 0 | AL30: 0.2532277431 | AM30: =AL30*'Input Data'!$E$12 -> 0.09875881981 | AN30: =IF(AL30*'Input Data'!$D$12-('Input Data'!$D$13*0.08333333)<0,0,AL30*'Input Data'!$D$12-('Input Data'!$D$13*0.08333333)) -> 0 | AO30: 0.508374013 | AP30: =AO30*'Input Data'!$E$12 -> 0.1982658651 | AQ30: =IF(AO30*'Input Data'!$D$12-('Input Data'!$D$13*0.08333333)<0,0,AO30*'Input Data'!$D$12-('Input Data'!$D$13*0.08333333)) -> 0
A31: 3 | B31: 0.8333333333 | C31: 0.604 | D31: 0.05474870231 | E31: =E25 -> 2.045856923 | F31: =E31*'Input Data'!$E$12 -> 0.7978842001 | G31: =IF(E31*'Input Data'!$D$12-('Input Data'!$D$13*0.08333333)<0,0,E31*'Input Data'!$D$12-('Input Data'!$D$13*0.08333333)) -> 0 | H31: 2.953824841 | I31: =H31*'Input Data'!$E$12 -> 1.151991688 | J31: =IF(H31*'Input Data'!$D$12-('Input Data'!$D$13*0.08333333)<0,0,H31*'Input Data'!$D$12-('Input Data'!$D$13*0.08333333)) -> 0.5676774486 | K31: 5.930028715 | L31: =K31*'Input Data'!$E$12 -> 2.312711199 | M31: =IF(K31*'Input Data'!$D$12-('Input Data'!$D$13*0.08333333)<0,0,K31*'Input Data'!$D$12-('Input Data'!$D$13*0.08333333)) -> 2.65102016 | P31: 9 | Q31: 0.8333333333 | R31: 0.5808978642 | S31: 0.01792198182 | T31: 0.6697110443 | U31: =T31*'Input Data'!$E$12 -> 0.2611873073 | V31: =IF(T31*'Input Data'!$D$12-('Input Data'!$D$13*0.08333333)<0,0,T31*'Input Data'!$D$12-('Input Data'!$D$13*0.08333333)) -> 0 | W31: 0.9669342447 | X31: =W31*'Input Data'!$E$12 -> 0.3771043554 | Y31: =IF(W31*'Input Data'!$D$12-('Input Data'!$D$13*0.08333333)<0,0,W31*'Input Data'!$D$12-('Input Data'!$D$13*0.08333333)) -> 0 | Z31: 1.941194263 | AA31: =Z31*'Input Data'!$E$12 -> 0.7570657627 | AB31: =IF(Z31*'Input Data'!$D$12-('Input Data'!$D$13*0.08333333)<0,0,Z31*'Input Data'!$D$12-('Input Data'!$D$13*0.08333333)) -> 0 | AE31: 27 | AF31: 0.8333333333 | AG31: 0.7939395941 | AH31: 0.004988316852 | AI31: 0.1864040998 | AJ31: =AI31*'Input Data'!$E$12 -> 0.07269759891 | AK31: =IF(AI31*'Input Data'!$D$12-('Input Data'!$D$13*0.08333333)<0,0,AI31*'Input Data'!$D$12-('Input Data'!$D$13*0.08333333)) -> 0 | AL31: 0.2691317531 | AM31: =AL31*'Input Data'!$E$12 -> 0.1049613837 | AN31: =IF(AL31*'Input Data'!$D$12-('Input Data'!$D$13*0.08333333)<0,0,AL31*'Input Data'!$D$12-('Input Data'!$D$13*0.08333333)) -> 0 | AO31: 0.5403025263 | AP31: =AO31*'Input Data'!$E$12 -> 0.2107179853 | AQ31: =IF(AO31*'Input Data'!$D$12-('Input Data'!$D$13*0.08333333)<0,0,AO31*'Input Data'!$D$12-('Input Data'!$D$13*0.08333333)) -> 0
A32: 4 | B32: 0.9166666667 | C32: 0.741 | D32: 0.03748260863 | E32: =E24 -> 1.400655196 | F32: =E32*'Input Data'!$E$12 -> 0.5462555265 | G32: =IF(E32*'Input Data'!$D$12-('Input Data'!$D$13*0.08333333)<0,0,E32*'Input Data'!$D$12-('Input Data'!$D$13*0.08333333)) -> 0 | H32: 2.022277347 | I32: =H32*'Input Data'!$E$12 -> 0.7886881655 | J32: =IF(H32*'Input Data'!$D$12-('Input Data'!$D$13*0.08333333)<0,0,H32*'Input Data'!$D$12-('Input Data'!$D$13*0.08333333)) -> 0 | K32: 4.059876054 | L32: =K32*'Input Data'!$E$12 -> 1.583351661 | M32: =IF(K32*'Input Data'!$D$12-('Input Data'!$D$13*0.08333333)<0,0,K32*'Input Data'!$D$12-('Input Data'!$D$13*0.08333333)) -> 1.341913298 | P32: 8 | Q32: 0.9166666667 | R32: 0.5305562877 | S32: 0.02059538749 | T32: 0.7696112294 | U32: =T32*'Input Data'!$E$12 -> 0.3001483795 | V32: =IF(T32*'Input Data'!$D$12-('Input Data'!$D$13*0.08333333)<0,0,T32*'Input Data'!$D$12-('Input Data'!$D$13*0.08333333)) -> 0 | W32: 1.111170943 | X32: =W32*'Input Data'!$E$12 -> 0.4333566678 | Y32: =IF(W32*'Input Data'!$D$12-('Input Data'!$D$13*0.08333333)<0,0,W32*'Input Data'!$D$12-('Input Data'!$D$13*0.08333333)) -> 0 | Z32: 2.230760439 | AA32: =Z32*'Input Data'!$E$12 -> 0.8699965714 | AB32: =IF(Z32*'Input Data'!$D$12-('Input Data'!$D$13*0.08333333)<0,0,Z32*'Input Data'!$D$12-('Input Data'!$D$13*0.08333333)) -> 0.06153236764 | AE32: 26 | AF32: 0.9166666667 | AG32: 0.7703298071 | AH32: 0.00530493352 | AI32: 0.1982354743 | AJ32: =AI32*'Input Data'!$E$12 -> 0.07731183498 | AK32: =IF(AI32*'Input Data'!$D$12-('Input Data'!$D$13*0.08333333)<0,0,AI32*'Input Data'!$D$12-('Input Data'!$D$13*0.08333333)) -> 0 | AL32: 0.2862139877 | AM32: =AL32*'Input Data'!$E$12 -> 0.1116234552 | AN32: =IF(AL32*'Input Data'!$D$12-('Input Data'!$D$13*0.08333333)<0,0,AL32*'Input Data'!$D$12-('Input Data'!$D$13*0.08333333)) -> 0 | AO32: 0.5745964156 | AP32: =AO32*'Input Data'!$E$12 -> 0.2240926021 | AQ32: =IF(AO32*'Input Data'!$D$12-('Input Data'!$D$13*0.08333333)<0,0,AO32*'Input Data'!$D$12-('Input Data'!$D$13*0.08333333)) -> 0
A33: 5 | B33: 1 | C33: 0.873 | D33: 0.02637606988 | E33: =E23 -> 0.9856245519 | F33: =E33*'Input Data'!$E$12 -> 0.3843935753 | G33: =IF(E33*'Input Data'!$D$12-('Input Data'!$D$13*0.08333333)<0,0,E33*'Input Data'!$D$12-('Input Data'!$D$13*0.08333333)) -> 0 | H33: 1.423052733 | I33: =H33*'Input Data'!$E$12 -> 0.5549905657 | J33: =IF(H33*'Input Data'!$D$12-('Input Data'!$D$13*0.08333333)<0,0,H33*'Input Data'!$D$12-('Input Data'!$D$13*0.08333333)) -> 0 | K33: 2.856886925 | L33: =K33*'Input Data'!$E$12 -> 1.114185901 | M33: =IF(K33*'Input Data'!$D$12-('Input Data'!$D$13*0.08333333)<0,0,K33*'Input Data'!$D$12-('Input Data'!$D$13*0.08333333)) -> 0.4998209076 | P33: 7 | Q33: 1 | R33: 0.4791041922 | S33: 0.02380274683 | T33: 0.8894642674 | U33: =T33*'Input Data'!$E$12 -> 0.3468910643 | V33: =IF(T33*'Input Data'!$D$12-('Input Data'!$D$13*0.08333333)<0,0,T33*'Input Data'!$D$12-('Input Data'!$D$13*0.08333333)) -> 0 | W33: 1.284215733 | X33: =W33*'Input Data'!$E$12 -> 0.5008441358 | Y33: =IF(W33*'Input Data'!$D$12-('Input Data'!$D$13*0.08333333)<0,0,W33*'Input Data'!$D$12-('Input Data'!$D$13*0.08333333)) -> 0 | Z33: 2.578161056 | AA33: =Z33*'Input Data'!$E$12 -> 1.005482812 | AB33: =IF(Z33*'Input Data'!$D$12-('Input Data'!$D$13*0.08333333)<0,0,Z33*'Input Data'!$D$12-('Input Data'!$D$13*0.08333333)) -> 0.3047127995 | AE33: 25 | AF33: 1 | AG33: 0.7465545772 | AH33: 0.005645393211 | AI33: 0.2109578182 | AJ33: =AI33*'Input Data'!$E$12 -> 0.08227354908 | AK33: =IF(AI33*'Input Data'!$D$12-('Input Data'!$D$13*0.08333333)<0,0,AI33*'Input Data'!$D$12-('Input Data'!$D$13*0.08333333)) -> 0 | AL33: 0.3045826111 | AM33: =AL33*'Input Data'!$E$12 -> 0.1187872183 | AN33: =IF(AL33*'Input Data'!$D$12-('Input Data'!$D$13*0.08333333)<0,0,AL33*'Input Data'!$D$12-('Input Data'!$D$13*0.08333333)) -> 0 | AO33: 0.6114728283 | AP33: =AO33*'Input Data'!$E$12 -> 0.238474403 | AQ33: =IF(AO33*'Input Data'!$D$12-('Input Data'!$D$13*0.08333333)<0,0,AO33*'Input Data'!$D$12-('Input Data'!$D$13*0.08333333)) -> 0
A34: 6 | B34: 1.083333333 | C34: 1 | D34: 0.01892020984 | E34: =E22 -> 0.7070129641 | F34: =E34*'Input Data'!$E$12 -> 0.275735056 | G34: =IF(E34*'Input Data'!$D$12-('Input Data'!$D$13*0.08333333)<0,0,E34*'Input Data'!$D$12-('Input Data'!$D$13*0.08333333)) -> 0 | H34: 1.020791059 | I34: =H34*'Input Data'!$E$12 -> 0.3981085132 | J34: =IF(H34*'Input Data'!$D$12-('Input Data'!$D$13*0.08333333)<0,0,H34*'Input Data'!$D$12-('Input Data'!$D$13*0.08333333)) -> 0 | K34: 2.049315928 | L34: =K34*'Input Data'!$E$12 -> 0.7992332118 | M34: =IF(K34*'Input Data'!$D$12-('Input Data'!$D$13*0.08333333)<0,0,K34*'Input Data'!$D$12-('Input Data'!$D$13*0.08333333)) -> 0 | P34: 6 | Q34: 1.083333333 | R34: 0.4263629192 | S34: 0.02770532511 | T34: 1.035296341 | U34: =T34*'Input Data'!$E$12 -> 0.4037655731 | V34: =IF(T34*'Input Data'!$D$12-('Input Data'!$D$13*0.08333333)<0,0,T34*'Input Data'!$D$12-('Input Data'!$D$13*0.08333333)) -> 0 | W34: 1.494769265 | X34: =W34*'Input Data'!$E$12 -> 0.5829600135 | Y34: =IF(W34*'Input Data'!$D$12-('Input Data'!$D$13*0.08333333)<0,0,W34*'Input Data'!$D$12-('Input Data'!$D$13*0.08333333)) -> 0 | Z34: 3.000863336 | AA34: =Z34*'Input Data'!$E$12 -> 1.170336701 | AB34: =IF(Z34*'Input Data'!$D$12-('Input Data'!$D$13*0.08333333)<0,0,Z34*'Input Data'!$D$12-('Input Data'!$D$13*0.08333333)) -> 0.6006043953 | AE34: 24 | AF34: 1.083333333 | AG34: 0.7226061845 | AH34: 0.006011939148 | AI34: 0.2246549564 | AJ34: =AI34*'Input Data'!$E$12 -> 0.08761543299 | AK34: =IF(AI34*'Input Data'!$D$12-('Input Data'!$D$13*0.08333333)<0,0,AI34*'Input Data'!$D$12-('Input Data'!$D$13*0.08333333)) -> 0 | AL34: 0.3243586505 | AM34: =AL34*'Input Data'!$E$12 -> 0.1264998737 | AN34: =IF(AL34*'Input Data'!$D$12-('Input Data'!$D$13*0.08333333)<0,0,AL34*'Input Data'!$D$12-('Input Data'!$D$13*0.08333333)) -> 0 | AO34: 0.6511747362 | AP34: =AO34*'Input Data'!$E$12 -> 0.2539581471 | AQ34: =IF(AO34*'Input Data'!$D$12-('Input Data'!$D$13*0.08333333)<0,0,AO34*'Input Data'!$D$12-('Input Data'!$D$13*0.08333333)) -> 0
A35: Sum Rf (mm) | E35: =SUM(E22:E34) -> 37.36813545 | F35: =SUM(F22:F34) -> 14.57357282 | G35: 11.46288562 | H35: 53.95241744 | I35: 21.0414428 | J35: 21.01412303 | K35: 108.313594 | L35: 42.24230167 | M35: 56.45047418 | P35: 5 | Q35: 1.166666667 | R35: 0.3720922575 | S35: 0.03254505474 | T35: 1.216148014 | U35: =T35*'Input Data'!$E$12 -> 0.4742977254 | V35: =IF(T35*'Input Data'!$D$12-('Input Data'!$D$13*0.08333333)<0,0,T35*'Input Data'!$D$12-('Input Data'!$D$13*0.08333333)) -> 0 | W35: 1.755884379 | X35: =W35*'Input Data'!$E$12 -> 0.6847949078 | Y35: =IF(W35*'Input Data'!$D$12-('Input Data'!$D$13*0.08333333)<0,0,W35*'Input Data'!$D$12-('Input Data'!$D$13*0.08333333)) -> 0 | Z35: 3.525071847 | AA35: =Z35*'Input Data'!$E$12 -> 1.37477802 | AB35: =IF(Z35*'Input Data'!$D$12-('Input Data'!$D$13*0.08333333)<0,0,Z35*'Input Data'!$D$12-('Input Data'!$D$13*0.08333333)) -> 0.967550353 | AE35: 23 | AF35: 1.166666667 | AG35: 0.6984762173 | AH35: 0.006407090498 | AI35: 0.2394210256 | AJ35: =AI35*'Input Data'!$E$12 -> 0.09337419997 | AK35: =IF(AI35*'Input Data'!$D$12-('Input Data'!$D$13*0.08333333)<0,0,AI35*'Input Data'!$D$12-('Input Data'!$D$13*0.08333333)) -> 0 | AL35: 0.3456780211 | AM35: =AL35*'Input Data'!$E$12 -> 0.1348144282 | AN35: =IF(AL35*'Input Data'!$D$12-('Input Data'!$D$13*0.08333333)<0,0,AL35*'Input Data'!$D$12-('Input Data'!$D$13*0.08333333)) -> 0 | AO35: 0.6939749991 | AP35: =AO35*'Input Data'!$E$12 -> 0.2706502496 | AQ35: =IF(AO35*'Input Data'!$D$12-('Input Data'!$D$13*0.08333333)<0,0,AO35*'Input Data'!$D$12-('Input Data'!$D$13*0.08333333)) -> 0
A36: Max Rf (mm) | E36: =MAX(E22:E34) -> 10.28630786 | F36: =MAX(F22:F34) -> 4.011660064 | G36: 5.70041556 | H36: 14.85145482 | I36: 5.792067381 | J36: 8.896018435 | K36: 29.81542857 | L36: 11.62801714 | M36: 19.37080006 | P36: 4 | Q36: 1.25 | R36: 0.3159535505 | S36: 0.03871304192 | T36: 1.446634194 | U36: =T36*'Input Data'!$E$12 -> 0.5641873357 | V36: =IF(T36*'Input Data'!$D$12-('Input Data'!$D$13*0.08333333)<0,0,T36*'Input Data'!$D$12-('Input Data'!$D$13*0.08333333)) -> 0 | W36: 2.088662198 | X36: =W36*'Input Data'!$E$12 -> 0.8145782572 | Y36: =IF(W36*'Input Data'!$D$12-('Input Data'!$D$13*0.08333333)<0,0,W36*'Input Data'!$D$12-('Input Data'!$D$13*0.08333333)) -> 0 | Z36: 4.193148706 | AA36: =Z36*'Input Data'!$E$12 -> 1.635327995 | AB36: =IF(Z36*'Input Data'!$D$12-('Input Data'!$D$13*0.08333333)<0,0,Z36*'Input Data'!$D$12-('Input Data'!$D$13*0.08333333)) -> 1.435204154 | AE36: 22 | AF36: 1.25 | AG36: 0.6741554778 | AH36: 0.00683368764 | AI36: 0.2553621654 | AJ36: =AI36*'Input Data'!$E$12 -> 0.09959124449 | AK36: =IF(AI36*'Input Data'!$D$12-('Input Data'!$D$13*0.08333333)<0,0,AI36*'Input Data'!$D$12-('Input Data'!$D$13*0.08333333)) -> 0 | AL36: 0.3686939682 | AM36: =AL36*'Input Data'!$E$12 -> 0.1437906476 | AN36: =IF(AL36*'Input Data'!$D$12-('Input Data'!$D$13*0.08333333)<0,0,AL36*'Input Data'!$D$12-('Input Data'!$D$13*0.08333333)) -> 0 | AO36: 0.7401812688 | AP36: =AO36*'Input Data'!$E$12 -> 0.2886706948 | AQ36: =IF(AO36*'Input Data'!$D$12-('Input Data'!$D$13*0.08333333)<0,0,AO36*'Input Data'!$D$12-('Input Data'!$D$13*0.08333333)) -> 0
P37: 3 | Q37: 1.333333333 | R37: 0.2574367224 | S37: 0.046917397 | T37: 1.753215646 | U37: =T37*'Input Data'!$E$12 -> 0.683754102 | V37: =IF(T37*'Input Data'!$D$12-('Input Data'!$D$13*0.08333333)<0,0,T37*'Input Data'!$D$12-('Input Data'!$D$13*0.08333333)) -> 0 | W37: 2.531306988 | X37: =W37*'Input Data'!$E$12 -> 0.9872097254 | Y37: =IF(W37*'Input Data'!$D$12-('Input Data'!$D$13*0.08333333)<0,0,W37*'Input Data'!$D$12-('Input Data'!$D$13*0.08333333)) -> 0.2719149517 | Z37: 5.081791892 | AA37: =Z37*'Input Data'!$E$12 -> 1.981898838 | AB37: =IF(Z37*'Input Data'!$D$12-('Input Data'!$D$13*0.08333333)<0,0,Z37*'Input Data'!$D$12-('Input Data'!$D$13*0.08333333)) -> 2.057254384 | AE37: 21 | AF37: 1.333333333 | AG37: 0.649633871 | AH37: 0.007294947244 | AI37: 0.2725985767 | AJ37: =AI37*'Input Data'!$E$12 -> 0.1063134449 | AK37: =IF(AI37*'Input Data'!$D$12-('Input Data'!$D$13*0.08333333)<0,0,AI37*'Input Data'!$D$12-('Input Data'!$D$13*0.08333333)) -> 0 | AL37: 0.3935800389 | AM37: =AL37*'Input Data'!$E$12 -> 0.1534962152 | AN37: =IF(AL37*'Input Data'!$D$12-('Input Data'!$D$13*0.08333333)<0,0,AL37*'Input Data'!$D$12-('Input Data'!$D$13*0.08333333)) -> 0 | AO37: 0.7901419542 | AP37: =AO37*'Input Data'!$E$12 -> 0.3081553621 | AQ37: =IF(AO37*'Input Data'!$D$12-('Input Data'!$D$13*0.08333333)<0,0,AO37*'Input Data'!$D$12-('Input Data'!$D$13*0.08333333)) -> 0
P38: 2 | Q38: 1.416666667 | R38: 0.1956933863 | S38: 0.05871252243 | T38: 2.193977491 | U38: =T38*'Input Data'!$E$12 -> 0.8556512214 | V38: =IF(T38*'Input Data'!$D$12-('Input Data'!$D$13*0.08333333)<0,0,T38*'Input Data'!$D$12-('Input Data'!$D$13*0.08333333)) -> 0.03578430357 | W38: 3.167682519 | X38: =W38*'Input Data'!$E$12 -> 1.235396182 | Y38: =IF(W38*'Input Data'!$D$12-('Input Data'!$D$13*0.08333333)<0,0,W38*'Input Data'!$D$12-('Input Data'!$D$13*0.08333333)) -> 0.7173778233 | Z38: 6.359364319 | AA38: =Z38*'Input Data'!$E$12 -> 2.480152084 | AB38: =IF(Z38*'Input Data'!$D$12-('Input Data'!$D$13*0.08333333)<0,0,Z38*'Input Data'!$D$12-('Input Data'!$D$13*0.08333333)) -> 2.951555083 | AE38: 20 | AF38: 1.416666667 | AG38: 0.6249002699 | AH38: 0.007794529865 | AI38: 0.2912670477 | AJ38: =AI38*'Input Data'!$E$12 -> 0.1135941486 | AK38: =IF(AI38*'Input Data'!$D$12-('Input Data'!$D$13*0.08333333)<0,0,AI38*'Input Data'!$D$12-('Input Data'!$D$13*0.08333333)) -> 0 | AL38: 0.420533729 | AM38: =AL38*'Input Data'!$E$12 -> 0.1640081543 | AN38: =IF(AL38*'Input Data'!$D$12-('Input Data'!$D$13*0.08333333)<0,0,AL38*'Input Data'!$D$12-('Input Data'!$D$13*0.08333333)) -> 0 | AO38: 0.8442535434 | AP38: =AO38*'Input Data'!$E$12 -> 0.3292588819 | AQ38: =IF(AO38*'Input Data'!$D$12-('Input Data'!$D$13*0.08333333)<0,0,AO38*'Input Data'!$D$12-('Input Data'!$D$13*0.08333333)) -> 0
P39: 1 | Q39: 1.5 | R39: 0.1290533901 | S39: 0.07931858541 | T39: 2.963987643 | U39: =T39*'Input Data'!$E$12 -> 1.155955181 | V39: =IF(T39*'Input Data'!$D$12-('Input Data'!$D$13*0.08333333)<0,0,T39*'Input Data'!$D$12-('Input Data'!$D$13*0.08333333)) -> 0.5747914102 | W39: 4.27942943 | X39: =W39*'Input Data'!$E$12 -> 1.668977478 | Y39: =IF(W39*'Input Data'!$D$12-('Input Data'!$D$13*0.08333333)<0,0,W39*'Input Data'!$D$12-('Input Data'!$D$13*0.08333333)) -> 1.495600661 | Z39: 8.591281059 | AA39: =Z39*'Input Data'!$E$12 -> 3.350599613 | AB39: =IF(Z39*'Input Data'!$D$12-('Input Data'!$D$13*0.08333333)<0,0,Z39*'Input Data'!$D$12-('Input Data'!$D$13*0.08333333)) -> 4.513896801 | AE39: 19 | AF39: 1.5 | AG39: 0.5999423553 | AH39: 0.008336623744 | AI39: 0.3115240852 | AJ39: =AI39*'Input Data'!$E$12 -> 0.1214943932 | AK39: =IF(AI39*'Input Data'!$D$12-('Input Data'!$D$13*0.08333333)<0,0,AI39*'Input Data'!$D$12-('Input Data'!$D$13*0.08333333)) -> 0 | AL39: 0.4497810042 | AM39: =AL39*'Input Data'!$E$12 -> 0.1754145916 | AN39: =IF(AL39*'Input Data'!$D$12-('Input Data'!$D$13*0.08333333)<0,0,AL39*'Input Data'!$D$12-('Input Data'!$D$13*0.08333333)) -> 0 | AO39: 0.9029696797 | AP39: =AO39*'Input Data'!$E$12 -> 0.3521581751 | AQ39: =IF(AO39*'Input Data'!$D$12-('Input Data'!$D$13*0.08333333)<0,0,AO39*'Input Data'!$D$12-('Input Data'!$D$13*0.08333333)) -> 0
P40: 0 | Q40: 1.583333333 | R40: 0.05271274043 | S40: 0.1269986066 | T40: 4.745701135 | U40: =T40*'Input Data'!$E$12 -> 1.850823443 | V40: =IF(T40*'Input Data'!$D$12-('Input Data'!$D$13*0.08333333)<0,0,T40*'Input Data'!$D$12-('Input Data'!$D$13*0.08333333)) -> 1.821990855 | W40: 6.85188184 | X40: =W40*'Input Data'!$E$12 -> 2.672233917 | Y40: =IF(W40*'Input Data'!$D$12-('Input Data'!$D$13*0.08333333)<0,0,W40*'Input Data'!$D$12-('Input Data'!$D$13*0.08333333)) -> 3.296317348 | Z40: 13.75567552 | AA40: =Z40*'Input Data'!$E$12 -> 5.364713454 | AB40: =IF(Z40*'Input Data'!$D$12-('Input Data'!$D$13*0.08333333)<0,0,Z40*'Input Data'!$D$12-('Input Data'!$D$13*0.08333333)) -> 8.128972926 | AE40: 18 | AF40: 1.583333333 | AG40: 0.5747464191 | AH40: 0.008926049806 | AI40: 0.3335498382 | AJ40: =AI40*'Input Data'!$E$12 -> 0.1300844369 | AK40: =IF(AI40*'Input Data'!$D$12-('Input Data'!$D$13*0.08333333)<0,0,AI40*'Input Data'!$D$12-('Input Data'!$D$13*0.08333333)) -> 0 | AL40: 0.4815819652 | AM40: =AL40*'Input Data'!$E$12 -> 0.1878169664 | AN40: =IF(AL40*'Input Data'!$D$12-('Input Data'!$D$13*0.08333333)<0,0,AL40*'Input Data'!$D$12-('Input Data'!$D$13*0.08333333)) -> 0 | AO40: 0.966812535 | AP40: =AO40*'Input Data'!$E$12 -> 0.3770568886 | AQ40: =IF(AO40*'Input Data'!$D$12-('Input Data'!$D$13*0.08333333)<0,0,AO40*'Input Data'!$D$12-('Input Data'!$D$13*0.08333333)) -> 0
P41: 1 | Q41: 1.666666667 | R41: 0.1290533901 | S41: 0.07931858541 | T41: 2.963987643 | U41: =T41*'Input Data'!$E$12 -> 1.155955181 | V41: =IF(T41*'Input Data'!$D$12-('Input Data'!$D$13*0.08333333)<0,0,T41*'Input Data'!$D$12-('Input Data'!$D$13*0.08333333)) -> 0.5747914102 | W41: 4.27942943 | X41: =W41*'Input Data'!$E$12 -> 1.668977478 | Y41: =IF(W41*'Input Data'!$D$12-('Input Data'!$D$13*0.08333333)<0,0,W41*'Input Data'!$D$12-('Input Data'!$D$13*0.08333333)) -> 1.495600661 | Z41: 8.591281059 | AA41: =Z41*'Input Data'!$E$12 -> 3.350599613 | AB41: =IF(Z41*'Input Data'!$D$12-('Input Data'!$D$13*0.08333333)<0,0,Z41*'Input Data'!$D$12-('Input Data'!$D$13*0.08333333)) -> 4.513896801 | AE41: 17 | AF41: 1.666666667 | AG41: 0.549297124 | AH41: 0.00956839484 | AI41: 0.3575530744 | AJ41: =AI41*'Input Data'!$E$12 -> 0.139445699 | AK41: =IF(AI41*'Input Data'!$D$12-('Input Data'!$D$13*0.08333333)<0,0,AI41*'Input Data'!$D$12-('Input Data'!$D$13*0.08333333)) -> 0 | AL41: 0.5162380326 | AM41: =AL41*'Input Data'!$E$12 -> 0.2013328327 | AN41: =IF(AL41*'Input Data'!$D$12-('Input Data'!$D$13*0.08333333)<0,0,AL41*'Input Data'!$D$12-('Input Data'!$D$13*0.08333333)) -> 0 | AO41: 1.036387234 | AP41: =AO41*'Input Data'!$E$12 -> 0.4041910213 | AQ41: =IF(AO41*'Input Data'!$D$12-('Input Data'!$D$13*0.08333333)<0,0,AO41*'Input Data'!$D$12-('Input Data'!$D$13*0.08333333)) -> 0
P42: 2 | Q42: 1.75 | R42: 0.1956933863 | S42: 0.05871252243 | T42: 2.193977491 | U42: =T42*'Input Data'!$E$12 -> 0.8556512214 | V42: =IF(T42*'Input Data'!$D$12-('Input Data'!$D$13*0.08333333)<0,0,T42*'Input Data'!$D$12-('Input Data'!$D$13*0.08333333)) -> 0.03578430357 | W42: 3.167682519 | X42: =W42*'Input Data'!$E$12 -> 1.235396182 | Y42: =IF(W42*'Input Data'!$D$12-('Input Data'!$D$13*0.08333333)<0,0,W42*'Input Data'!$D$12-('Input Data'!$D$13*0.08333333)) -> 0.7173778233 | Z42: 6.359364319 | AA42: =Z42*'Input Data'!$E$12 -> 2.480152084 | AB42: =IF(Z42*'Input Data'!$D$12-('Input Data'!$D$13*0.08333333)<0,0,Z42*'Input Data'!$D$12-('Input Data'!$D$13*0.08333333)) -> 2.951555083 | AE42: 16 | AF42: 1.75 | AG42: 0.5235772045 | AH42: 0.01027018268 | AI42: 0.3837775773 | AJ42: =AI42*'Input Data'!$E$12 -> 0.1496732551 | AK42: =IF(AI42*'Input Data'!$D$12-('Input Data'!$D$13*0.08333333)<0,0,AI42*'Input Data'!$D$12-('Input Data'!$D$13*0.08333333)) -> 0 | AL42: 0.5541011829 | AM42: =AL42*'Input Data'!$E$12 -> 0.2160994613 | AN42: =IF(AL42*'Input Data'!$D$12-('Input Data'!$D$13*0.08333333)<0,0,AL42*'Input Data'!$D$12-('Input Data'!$D$13*0.08333333)) -> 0 | AO42: 1.112400397 | AP42: =AO42*'Input Data'!$E$12 -> 0.4338361548 | AQ42: =IF(AO42*'Input Data'!$D$12-('Input Data'!$D$13*0.08333333)<0,0,AO42*'Input Data'!$D$12-('Input Data'!$D$13*0.08333333)) -> 0
P43: 3 | Q43: 1.833333333 | R43: 0.2574367224 | S43: 0.046917397 | T43: 1.753215646 | U43: =T43*'Input Data'!$E$12 -> 0.683754102 | V43: =IF(T43*'Input Data'!$D$12-('Input Data'!$D$13*0.08333333)<0,0,T43*'Input Data'!$D$12-('Input Data'!$D$13*0.08333333)) -> 0 | W43: 2.531306988 | X43: =W43*'Input Data'!$E$12 -> 0.9872097254 | Y43: =IF(W43*'Input Data'!$D$12-('Input Data'!$D$13*0.08333333)<0,0,W43*'Input Data'!$D$12-('Input Data'!$D$13*0.08333333)) -> 0.2719149517 | Z43: 5.081791892 | AA43: =Z43*'Input Data'!$E$12 -> 1.981898838 | AB43: =IF(Z43*'Input Data'!$D$12-('Input Data'!$D$13*0.08333333)<0,0,Z43*'Input Data'!$D$12-('Input Data'!$D$13*0.08333333)) -> 2.057254384 | AE43: 15 | AF43: 1.833333333 | AG43: 0.4975670922 | AH43: 0.01103909755 | AI43: 0.4125104926 | AJ43: =AI43*'Input Data'!$E$12 -> 0.1608790921 | AK43: =IF(AI43*'Input Data'!$D$12-('Input Data'!$D$13*0.08333333)<0,0,AI43*'Input Data'!$D$12-('Input Data'!$D$13*0.08333333)) -> 0 | AL43: 0.5955859993 | AM43: =AL43*'Input Data'!$E$12 -> 0.2322785397 | AN43: =IF(AL43*'Input Data'!$D$12-('Input Data'!$D$13*0.08333333)<0,0,AL43*'Input Data'!$D$12-('Input Data'!$D$13*0.08333333)) -> 0 | AO43: 1.195684331 | AP43: =AO43*'Input Data'!$E$12 -> 0.466316889 | AQ43: =IF(AO43*'Input Data'!$D$12-('Input Data'!$D$13*0.08333333)<0,0,AO43*'Input Data'!$D$12-('Input Data'!$D$13*0.08333333)) -> 0
P44: 4 | Q44: 1.916666667 | R44: 0.3159535505 | S44: 0.03871304192 | T44: 1.446634194 | U44: =T44*'Input Data'!$E$12 -> 0.5641873357 | V44: =IF(T44*'Input Data'!$D$12-('Input Data'!$D$13*0.08333333)<0,0,T44*'Input Data'!$D$12-('Input Data'!$D$13*0.08333333)) -> 0 | W44: 2.088662198 | X44: =W44*'Input Data'!$E$12 -> 0.8145782572 | Y44: =IF(W44*'Input Data'!$D$12-('Input Data'!$D$13*0.08333333)<0,0,W44*'Input Data'!$D$12-('Input Data'!$D$13*0.08333333)) -> 0 | Z44: 4.193148706 | AA44: =Z44*'Input Data'!$E$12 -> 1.635327995 | AB44: =IF(Z44*'Input Data'!$D$12-('Input Data'!$D$13*0.08333333)<0,0,Z44*'Input Data'!$D$12-('Input Data'!$D$13*0.08333333)) -> 1.435204154 | AE44: 14 | AF44: 1.916666667 | AG44: 0.4712444379 | AH44: 0.01188428056 | AI44: 0.4440934056 | AJ44: =AI44*'Input Data'!$E$12 -> 0.1731964282 | AK44: =IF(AI44*'Input Data'!$D$12-('Input Data'!$D$13*0.08333333)<0,0,AI44*'Input Data'!$D$12-('Input Data'!$D$13*0.08333333)) -> 0 | AL44: 0.6411856655 | AM44: =AL44*'Input Data'!$E$12 -> 0.2500624096 | AN44: =IF(AL44*'Input Data'!$D$12-('Input Data'!$D$13*0.08333333)<0,0,AL44*'Input Data'!$D$12-('Input Data'!$D$13*0.08333333)) -> 0 | AO44: 1.28722914 | AP44: =AO44*'Input Data'!$E$12 -> 0.5020193644 | AQ44: =IF(AO44*'Input Data'!$D$12-('Input Data'!$D$13*0.08333333)<0,0,AO44*'Input Data'!$D$12-('Input Data'!$D$13*0.08333333)) -> 0
P45: 5 | Q45: 2 | R45: 0.3720922575 | S45: 0.03254505474 | T45: 1.216148014 | U45: =T45*'Input Data'!$E$12 -> 0.4742977254 | V45: =IF(T45*'Input Data'!$D$12-('Input Data'!$D$13*0.08333333)<0,0,T45*'Input Data'!$D$12-('Input Data'!$D$13*0.08333333)) -> 0 | W45: 1.755884379 | X45: =W45*'Input Data'!$E$12 -> 0.6847949078 | Y45: =IF(W45*'Input Data'!$D$12-('Input Data'!$D$13*0.08333333)<0,0,W45*'Input Data'!$D$12-('Input Data'!$D$13*0.08333333)) -> 0 | Z45: 3.525071847 | AA45: =Z45*'Input Data'!$E$12 -> 1.37477802 | AB45: =IF(Z45*'Input Data'!$D$12-('Input Data'!$D$13*0.08333333)<0,0,Z45*'Input Data'!$D$12-('Input Data'!$D$13*0.08333333)) -> 0.967550353 | AE45: 13 | AF45: 2 | AG45: 0.4445834962 | AH45: 0.01281673063 | AI45: 0.4789373263 | AJ45: =AI45*'Input Data'!$E$12 -> 0.1867855573 | AK45: =IF(AI45*'Input Data'!$D$12-('Input Data'!$D$13*0.08333333)<0,0,AI45*'Input Data'!$D$12-('Input Data'!$D$13*0.08333333)) -> 0 | AL45: 0.6914936013 | AM45: =AL45*'Input Data'!$E$12 -> 0.2696825045 | AN45: =IF(AL45*'Input Data'!$D$12-('Input Data'!$D$13*0.08333333)<0,0,AL45*'Input Data'!$D$12-('Input Data'!$D$13*0.08333333)) -> 0 | AO45: 1.388226159 | AP45: =AO45*'Input Data'!$E$12 -> 0.5414082018 | AQ45: =IF(AO45*'Input Data'!$D$12-('Input Data'!$D$13*0.08333333)<0,0,AO45*'Input Data'!$D$12-('Input Data'!$D$13*0.08333333)) -> 0
P46: 6 | Q46: 2.083333333 | R46: 0.4263629192 | S46: 0.02770532511 | T46: 1.035296341 | U46: =T46*'Input Data'!$E$12 -> 0.4037655731 | V46: =IF(T46*'Input Data'!$D$12-('Input Data'!$D$13*0.08333333)<0,0,T46*'Input Data'!$D$12-('Input Data'!$D$13*0.08333333)) -> 0 | W46: 1.494769265 | X46: =W46*'Input Data'!$E$12 -> 0.5829600135 | Y46: =IF(W46*'Input Data'!$D$12-('Input Data'!$D$13*0.08333333)<0,0,W46*'Input Data'!$D$12-('Input Data'!$D$13*0.08333333)) -> 0 | Z46: 3.000863336 | AA46: =Z46*'Input Data'!$E$12 -> 1.170336701 | AB46: =IF(Z46*'Input Data'!$D$12-('Input Data'!$D$13*0.08333333)<0,0,Z46*'Input Data'!$D$12-('Input Data'!$D$13*0.08333333)) -> 0.6006043953 | AE46: 12 | AF46: 2.083333333 | AG46: 0.417554315 | AH46: 0.01384985913 | AI46: 0.5175434118 | AJ46: =AI46*'Input Data'!$E$12 -> 0.2018419306 | AK46: =IF(AI46*'Input Data'!$D$12-('Input Data'!$D$13*0.08333333)<0,0,AI46*'Input Data'!$D$12-('Input Data'!$D$13*0.08333333)) -> 0 | AL46: 0.747233381 | AM46: =AL46*'Input Data'!$E$12 -> 0.2914210186 | AN46: =IF(AL46*'Input Data'!$D$12-('Input Data'!$D$13*0.08333333)<0,0,AL46*'Input Data'!$D$12-('Input Data'!$D$13*0.08333333)) -> 0 | AO46: 1.500128019 | AP46: =AO46*'Input Data'!$E$12 -> 0.5850499273 | AQ46: =IF(AO46*'Input Data'!$D$12-('Input Data'!$D$13*0.08333333)<0,0,AO46*'Input Data'!$D$12-('Input Data'!$D$13*0.08333333)) -> 0
P47: 7 | Q47: 2.166666667 | R47: 0.4791041922 | S47: 0.02380274683 | T47: 0.8894642674 | U47: =T47*'Input Data'!$E$12 -> 0.3468910643 | V47: =IF(T47*'Input Data'!$D$12-('Input Data'!$D$13*0.08333333)<0,0,T47*'Input Data'!$D$12-('Input Data'!$D$13*0.08333333)) -> 0 | W47: 1.284215733 | X47: =W47*'Input Data'!$E$12 -> 0.5008441358 | Y47: =IF(W47*'Input Data'!$D$12-('Input Data'!$D$13*0.08333333)<0,0,W47*'Input Data'!$D$12-('Input Data'!$D$13*0.08333333)) -> 0 | Z47: 2.578161056 | AA47: =Z47*'Input Data'!$E$12 -> 1.005482812 | AB47: =IF(Z47*'Input Data'!$D$12-('Input Data'!$D$13*0.08333333)<0,0,Z47*'Input Data'!$D$12-('Input Data'!$D$13*0.08333333)) -> 0.3047127995 | AE47: 11 | AF47: 2.166666667 | AG47: 0.3901216527 | AH47: 0.01500027625 | AI47: 0.5605323547 | AJ47: =AI47*'Input Data'!$E$12 -> 0.2186076183 | AK47: =IF(AI47*'Input Data'!$D$12-('Input Data'!$D$13*0.08333333)<0,0,AI47*'Input Data'!$D$12-('Input Data'!$D$13*0.08333333)) -> 0 | AL47: 0.8093011659 | AM47: =AL47*'Input Data'!$E$12 -> 0.3156274547 | AN47: =IF(AL47*'Input Data'!$D$12-('Input Data'!$D$13*0.08333333)<0,0,AL47*'Input Data'!$D$12-('Input Data'!$D$13*0.08333333)) -> 0 | AO47: 1.624733832 | AP47: =AO47*'Input Data'!$E$12 -> 0.6336461945 | AQ47: =IF(AO47*'Input Data'!$D$12-('Input Data'!$D$13*0.08333333)<0,0,AO47*'Input Data'!$D$12-('Input Data'!$D$13*0.08333333)) -> 0
P48: 8 | Q48: 2.25 | R48: 0.5305562877 | S48: 0.02059538749 | T48: 0.7696112294 | U48: =T48*'Input Data'!$E$12 -> 0.3001483795 | V48: =IF(T48*'Input Data'!$D$12-('Input Data'!$D$13*0.08333333)<0,0,T48*'Input Data'!$D$12-('Input Data'!$D$13*0.08333333)) -> 0 | W48: 1.111170943 | X48: =W48*'Input Data'!$E$12 -> 0.4333566678 | Y48: =IF(W48*'Input Data'!$D$12-('Input Data'!$D$13*0.08333333)<0,0,W48*'Input Data'!$D$12-('Input Data'!$D$13*0.08333333)) -> 0 | Z48: 2.230760439 | AA48: =Z48*'Input Data'!$E$12 -> 0.8699965714 | AB48: =IF(Z48*'Input Data'!$D$12-('Input Data'!$D$13*0.08333333)<0,0,Z48*'Input Data'!$D$12-('Input Data'!$D$13*0.08333333)) -> 0.06153236764 | AE48: 10 | AF48: 2.25 | AG48: 0.362243494 | AH48: 0.01628893989 | AI48: 0.6086873122 | AJ48: =AI48*'Input Data'!$E$12 -> 0.2373880517 | AK48: =IF(AI48*'Input Data'!$D$12-('Input Data'!$D$13*0.08333333)<0,0,AI48*'Input Data'!$D$12-('Input Data'!$D$13*0.08333333)) -> 0 | AL48: 0.8788276846 | AM48: =AL48*'Input Data'!$E$12 -> 0.342742797 | AN48: =IF(AL48*'Input Data'!$D$12-('Input Data'!$D$13*0.08333333)<0,0,AL48*'Input Data'!$D$12-('Input Data'!$D$13*0.08333333)) -> 0 | AO48: 1.764313622 | AP48: =AO48*'Input Data'!$E$12 -> 0.6880823128 | AQ48: =IF(AO48*'Input Data'!$D$12-('Input Data'!$D$13*0.08333333)<0,0,AO48*'Input Data'!$D$12-('Input Data'!$D$13*0.08333333)) -> 0
P49: 9 | Q49: 2.333333333 | R49: 0.5808978642 | S49: 0.01792198182 | T49: 0.6697110443 | U49: =T49*'Input Data'!$E$12 -> 0.2611873073 | V49: =IF(T49*'Input Data'!$D$12-('Input Data'!$D$13*0.08333333)<0,0,T49*'Input Data'!$D$12-('Input Data'!$D$13*0.08333333)) -> 0 | W49: 0.9669342447 | X49: =W49*'Input Data'!$E$12 -> 0.3771043554 | Y49: =IF(W49*'Input Data'!$D$12-('Input Data'!$D$13*0.08333333)<0,0,W49*'Input Data'!$D$12-('Input Data'!$D$13*0.08333333)) -> 0 | Z49: 1.941194263 | AA49: =Z49*'Input Data'!$E$12 -> 0.7570657627 | AB49: =IF(Z49*'Input Data'!$D$12-('Input Data'!$D$13*0.08333333)<0,0,Z49*'Input Data'!$D$12-('Input Data'!$D$13*0.08333333)) -> 0 | AE49: 9 | AF49: 2.333333333 | AG49: 0.3338689673 | AH49: 0.01774289313 | AI49: 0.6630188336 | AJ49: =AI49*'Input Data'!$E$12 -> 0.2585773451 | AK49: =IF(AI49*'Input Data'!$D$12-('Input Data'!$D$13*0.08333333)<0,0,AI49*'Input Data'!$D$12-('Input Data'!$D$13*0.08333333)) -> 0 | AL49: 0.9572719765 | AM49: =AL49*'Input Data'!$E$12 -> 0.3733360708 | AN49: =IF(AL49*'Input Data'!$D$12-('Input Data'!$D$13*0.08333333)<0,0,AL49*'Input Data'!$D$12-('Input Data'!$D$13*0.08333333)) -> 0 | AO49: 1.921796523 | AP49: =AO49*'Input Data'!$E$12 -> 0.749500644 | AQ49: =IF(AO49*'Input Data'!$D$12-('Input Data'!$D$13*0.08333333)<0,0,AO49*'Input Data'!$D$12-('Input Data'!$D$13*0.08333333)) -> 0
P50: 10 | Q50: 2.416666667 | R50: 0.6302666394 | S50: 0.01566920976 | T50: 0.5855291527 | U50: =T50*'Input Data'!$E$12 -> 0.2283563695 | V50: =IF(T50*'Input Data'!$D$12-('Input Data'!$D$13*0.08333333)<0,0,T50*'Input Data'!$D$12-('Input Data'!$D$13*0.08333333)) -> 0 | W50: 0.8453917458 | X50: =W50*'Input Data'!$E$12 -> 0.3297027809 | Y50: =IF(W50*'Input Data'!$D$12-('Input Data'!$D$13*0.08333333)<0,0,W50*'Input Data'!$D$12-('Input Data'!$D$13*0.08333333)) -> 0 | Z50: 1.697188425 | AA50: =Z50*'Input Data'!$E$12 -> 0.6619034856 | AB50: =IF(Z50*'Input Data'!$D$12-('Input Data'!$D$13*0.08333333)<0,0,Z50*'Input Data'!$D$12-('Input Data'!$D$13*0.08333333)) -> 0 | AE50: 8 | AF50: 2.416666667 | AG50: 0.3049353265 | AH50: 0.0193980042 | AI50: 0.7248672484 | AJ50: =AI50*'Input Data'!$E$12 -> 0.2826982269 | AK50: =IF(AI50*'Input Data'!$D$12-('Input Data'!$D$13*0.08333333)<0,0,AI50*'Input Data'!$D$12-('Input Data'!$D$13*0.08333333)) -> 0 | AL50: 1.04656922 | AM50: =AL50*'Input Data'!$E$12 -> 0.4081619958 | AN50: =IF(AL50*'Input Data'!$D$12-('Input Data'!$D$13*0.08333333)<0,0,AL50*'Input Data'!$D$12-('Input Data'!$D$13*0.08333333)) -> 0 | AO50: 2.101067552 | AP50: =AO50*'Input Data'!$E$12 -> 0.8194163452 | AQ50: =IF(AO50*'Input Data'!$D$12-('Input Data'!$D$13*0.08333333)<0,0,AO50*'Input Data'!$D$12-('Input Data'!$D$13*0.08333333)) -> 0
P51: 11 | Q51: 2.5 | R51: 0.6787717848 | S51: 0.01375426806 | T51: 0.5139713519 | U51: =T51*'Input Data'!$E$12 -> 0.2004488272 | V51: =IF(T51*'Input Data'!$D$12-('Input Data'!$D$13*0.08333333)<0,0,T51*'Input Data'!$D$12-('Input Data'!$D$13*0.08333333)) -> 0 | W51: 0.7420760119 | X51: =W51*'Input Data'!$E$12 -> 0.2894096447 | Y51: =IF(W51*'Input Data'!$D$12-('Input Data'!$D$13*0.08333333)<0,0,W51*'Input Data'!$D$12-('Input Data'!$D$13*0.08333333)) -> 0 | Z51: 1.489774207 | AA51: =Z51*'Input Data'!$E$12 -> 0.5810119407 | AB51: =IF(Z51*'Input Data'!$D$12-('Input Data'!$D$13*0.08333333)<0,0,Z51*'Input Data'!$D$12-('Input Data'!$D$13*0.08333333)) -> 0 | AE51: 7 | AF51: 2.5 | AG51: 0.2753634189 | AH51: 0.02130351322 | AI51: 0.7960725676 | AJ51: =AI51*'Input Data'!$E$12 -> 0.3104683014 | AK51: =IF(AI51*'Input Data'!$D$12-('Input Data'!$D$13*0.08333333)<0,0,AI51*'Input Data'!$D$12-('Input Data'!$D$13*0.08333333)) -> 0 | AL51: 1.149376038 | AM51: =AL51*'Input Data'!$E$12 -> 0.4482566549 | AN51: =IF(AL51*'Input Data'!$D$12-('Input Data'!$D$13*0.08333333)<0,0,AL51*'Input Data'!$D$12-('Input Data'!$D$13*0.08333333)) -> 0 | AO51: 2.307460082 | AP51: =AO51*'Input Data'!$E$12 -> 0.8999094322 | AQ51: =IF(AO51*'Input Data'!$D$12-('Input Data'!$D$13*0.08333333)<0,0,AO51*'Input Data'!$D$12-('Input Data'!$D$13*0.08333333)) -> 0.1152221177
M52: Total rainfall | P52: 12 | Q52: 2.583333333 | R52: 0.7265018122 | S52: 0.01211481023 | T52: 0.4527078698 | U52: =T52*'Input Data'!$E$12 -> 0.1765560692 | V52: =IF(T52*'Input Data'!$D$12-('Input Data'!$D$13*0.08333333)<0,0,T52*'Input Data'!$D$12-('Input Data'!$D$13*0.08333333)) -> 0 | W52: 0.6536232989 | X52: =W52*'Input Data'!$E$12 -> 0.2549130866 | Y52: =IF(W52*'Input Data'!$D$12-('Input Data'!$D$13*0.08333333)<0,0,W52*'Input Data'!$D$12-('Input Data'!$D$13*0.08333333)) -> 0 | Z52: 1.312198637 | AA52: =Z52*'Input Data'!$E$12 -> 0.5117574686 | AB52: =IF(Z52*'Input Data'!$D$12-('Input Data'!$D$13*0.08333333)<0,0,Z52*'Input Data'!$D$12-('Input Data'!$D$13*0.08333333)) -> 0 | AE52: 6 | AF52: 2.583333333 | AG52: 0.245050561 | AH52: 0.02353007371 | AI52: 0.8792749817 | AJ52: =AI52*'Input Data'!$E$12 -> 0.3429172429 | AK52: =IF(AI52*'Input Data'!$D$12-('Input Data'!$D$13*0.08333333)<0,0,AI52*'Input Data'!$D$12-('Input Data'!$D$13*0.08333333)) -> 0 | AL52: 1.269504359 | AM52: =AL52*'Input Data'!$E$12 -> 0.4951067001 | AN52: =IF(AL52*'Input Data'!$D$12-('Input Data'!$D$13*0.08333333)<0,0,AL52*'Input Data'!$D$12-('Input Data'!$D$13*0.08333333)) -> 0 | AO52: 2.548626852 | AP52: =AO52*'Input Data'!$E$12 -> 0.9939644722 | AQ52: =IF(AO52*'Input Data'!$D$12-('Input Data'!$D$13*0.08333333)<0,0,AO52*'Input Data'!$D$12-('Input Data'!$D$13*0.08333333)) -> 0.2840388562
M53: Net rainfall | P53: 13 | Q53: 2.666666667 | R53: 0.7735298236 | S53: 0.01070276886 | T53: 0.3999425163 | U53: =T53*'Input Data'!$E$12 -> 0.1559775814 | V53: =IF(T53*'Input Data'!$D$12-('Input Data'!$D$13*0.08333333)<0,0,T53*'Input Data'!$D$12-('Input Data'!$D$13*0.08333333)) -> 0 | W53: 0.577440253 | X53: =W53*'Input Data'!$E$12 -> 0.2252016987 | Y53: =IF(W53*'Input Data'!$D$12-('Input Data'!$D$13*0.08333333)<0,0,W53*'Input Data'!$D$12-('Input Data'!$D$13*0.08333333)) -> 0 | Z53: 1.159255361 | AA53: =Z53*'Input Data'!$E$12 -> 0.4521095907 | AB53: =IF(Z53*'Input Data'!$D$12-('Input Data'!$D$13*0.08333333)<0,0,Z53*'Input Data'!$D$12-('Input Data'!$D$13*0.08333333)) -> 0 | AE53: 5 | AF53: 2.666666667 | AG53: 0.2138586926 | AH53: 0.02618519468 | AI53: 0.9784919017 | AJ53: =AI53*'Input Data'!$E$12 -> 0.3816118417 | AK53: =IF(AI53*'Input Data'!$D$12-('Input Data'!$D$13*0.08333333)<0,0,AI53*'Input Data'!$D$12-('Input Data'!$D$13*0.08333333)) -> 0 | AL53: 1.412754554 | AM53: =AL53*'Input Data'!$E$12 -> 0.5509742762 | AN53: =IF(AL53*'Input Data'!$D$12-('Input Data'!$D$13*0.08333333)<0,0,AL53*'Input Data'!$D$12-('Input Data'!$D$13*0.08333333)) -> 0 | AO53: 2.836212547 | AP53: =AO53*'Input Data'!$E$12 -> 1.106122893 | AQ53: =IF(AO53*'Input Data'!$D$12-('Input Data'!$D$13*0.08333333)<0,0,AO53*'Input Data'!$D$12-('Input Data'!$D$13*0.08333333)) -> 0.4853488426
P54: 14 | Q54: 2.75 | R54: 0.8199171361 | S54: 0.009480371156 | T54: 0.3542637934 | U54: =T54*'Input Data'!$E$12 -> 0.1381628794 | V54: =IF(T54*'Input Data'!$D$12-('Input Data'!$D$13*0.08333333)<0,0,T54*'Input Data'!$D$12-('Input Data'!$D$13*0.08333333)) -> 0 | W54: 0.511488942 | X54: =W54*'Input Data'!$E$12 -> 0.1994806874 | Y54: =IF(W54*'Input Data'!$D$12-('Input Data'!$D$13*0.08333333)<0,0,W54*'Input Data'!$D$12-('Input Data'!$D$13*0.08333333)) -> 0 | Z54: 1.026853073 | AA54: =Z54*'Input Data'!$E$12 -> 0.4004726983 | AB54: =IF(Z54*'Input Data'!$D$12-('Input Data'!$D$13*0.08333333)<0,0,Z54*'Input Data'!$D$12-('Input Data'!$D$13*0.08333333)) -> 0 | AE54: 4 | AF54: 2.75 | AG54: 0.1815931718 | AH54: 0.02944636891 | AI54: 1.100355902 | AJ54: =AI54*'Input Data'!$E$12 -> 0.4291388017 | AK54: =IF(AI54*'Input Data'!$D$12-('Input Data'!$D$13*0.08333333)<0,0,AI54*'Input Data'!$D$12-('Input Data'!$D$13*0.08333333)) -> 0 | AL54: 1.588702787 | AM54: =AL54*'Input Data'!$E$12 -> 0.619594087 | AN54: =IF(AL54*'Input Data'!$D$12-('Input Data'!$D$13*0.08333333)<0,0,AL54*'Input Data'!$D$12-('Input Data'!$D$13*0.08333333)) -> 0 | AO54: 3.189442047 | AP54: =AO54*'Input Data'!$E$12 -> 1.243882398 | AQ54: =IF(AO54*'Input Data'!$D$12-('Input Data'!$D$13*0.08333333)<0,0,AO54*'Input Data'!$D$12-('Input Data'!$D$13*0.08333333)) -> 0.732609493
P55: 15 | Q55: 2.833333333 | R55: 0.8657158629 | S55: 0.008417464798 | T55: 0.3145449647 | U55: =T55*'Input Data'!$E$12 -> 0.1226725362 | V55: =IF(T55*'Input Data'!$D$12-('Input Data'!$D$13*0.08333333)<0,0,T55*'Input Data'!$D$12-('Input Data'!$D$13*0.08333333)) -> 0 | W55: 0.4541425745 | X55: =W55*'Input Data'!$E$12 -> 0.1771156041 | Y55: =IF(W55*'Input Data'!$D$12-('Input Data'!$D$13*0.08333333)<0,0,W55*'Input Data'!$D$12-('Input Data'!$D$13*0.08333333)) -> 0 | Z55: 0.9117258648 | AA55: =Z55*'Input Data'!$E$12 -> 0.3555730873 | AB55: =IF(Z55*'Input Data'!$D$12-('Input Data'!$D$13*0.08333333)<0,0,Z55*'Input Data'!$D$12-('Input Data'!$D$13*0.08333333)) -> 0 | AE55: 3 | AF55: 2.833333333 | AG55: 0.1479608343 | AH55: 0.03364440934 | AI55: 1.257228845 | AJ55: =AI55*'Input Data'!$E$12 -> 0.4903192496 | AK55: =IF(AI55*'Input Data'!$D$12-('Input Data'!$D$13*0.08333333)<0,0,AI55*'Input Data'!$D$12-('Input Data'!$D$13*0.08333333)) -> 0 | AL55: 1.815197217 | AM55: =AL55*'Input Data'!$E$12 -> 0.7079269146 | AN55: =IF(AL55*'Input Data'!$D$12-('Input Data'!$D$13*0.08333333)<0,0,AL55*'Input Data'!$D$12-('Input Data'!$D$13*0.08333333)) -> 0 | AO55: 3.644146894 | AP55: =AO55*'Input Data'!$E$12 -> 1.421217289 | AQ55: =IF(AO55*'Input Data'!$D$12-('Input Data'!$D$13*0.08333333)<0,0,AO55*'Input Data'!$D$12-('Input Data'!$D$13*0.08333333)) -> 1.050902886
P56: 16 | Q56: 2.916666667 | R56: 0.9109707988 | S56: 0.007489663011 | T56: 0.2798747418 | U56: =T56*'Input Data'!$E$12 -> 0.1091511493 | V56: =IF(T56*'Input Data'!$D$12-('Input Data'!$D$13*0.08333333)<0,0,T56*'Input Data'!$D$12-('Input Data'!$D$13*0.08333333)) -> 0 | W56: 0.4040854252 | X56: =W56*'Input Data'!$E$12 -> 0.1575933158 | Y56: =IF(W56*'Input Data'!$D$12-('Input Data'!$D$13*0.08333333)<0,0,W56*'Input Data'!$D$12-('Input Data'!$D$13*0.08333333)) -> 0 | Z56: 0.8112323187 | AA56: =Z56*'Input Data'!$E$12 -> 0.3163806043 | AB56: =IF(Z56*'Input Data'!$D$12-('Input Data'!$D$13*0.08333333)<0,0,Z56*'Input Data'!$D$12-('Input Data'!$D$13*0.08333333)) -> 0 | AE56: 2 | AF56: 2.916666667 | AG56: 0.112474073 | AH56: 0.03953407956 | AI56: 1.47731484 | AJ56: =AI56*'Input Data'!$E$12 -> 0.5761527876 | AK56: =IF(AI56*'Input Data'!$D$12-('Input Data'!$D$13*0.08333333)<0,0,AI56*'Input Data'!$D$12-('Input Data'!$D$13*0.08333333)) -> 0 | AL56: 2.132959164 | AM56: =AL56*'Input Data'!$E$12 -> 0.8318540738 | AN56: =IF(AL56*'Input Data'!$D$12-('Input Data'!$D$13*0.08333333)<0,0,AL56*'Input Data'!$D$12-('Input Data'!$D$13*0.08333333)) -> 0 | AO56: 4.282078244 | AP56: =AO56*'Input Data'!$E$12 -> 1.670010515 | AQ56: =IF(AO56*'Input Data'!$D$12-('Input Data'!$D$13*0.08333333)<0,0,AO56*'Input Data'!$D$12-('Input Data'!$D$13*0.08333333)) -> 1.497454831
P57: 17 | Q57: 3 | R57: 0.9557208288 | S57: 0.006677022062 | T57: 0.2495078648 | U57: =T57*'Input Data'!$E$12 -> 0.09730806728 | V57: =IF(T57*'Input Data'!$D$12-('Input Data'!$D$13*0.08333333)<0,0,T57*'Input Data'!$D$12-('Input Data'!$D$13*0.08333333)) -> 0 | W57: 0.3602414815 | X57: =W57*'Input Data'!$E$12 -> 0.1404941778 | Y57: =IF(W57*'Input Data'!$D$12-('Input Data'!$D$13*0.08333333)<0,0,W57*'Input Data'!$D$12-('Input Data'!$D$13*0.08333333)) -> 0 | Z57: 0.7232122569 | AA57: =Z57*'Input Data'!$E$12 -> 0.2820527802 | AB57: =IF(Z57*'Input Data'!$D$12-('Input Data'!$D$13*0.08333333)<0,0,Z57*'Input Data'!$D$12-('Input Data'!$D$13*0.08333333)) -> 0 | AE57: 1 | AF57: 3 | AG57: 0.07417297383 | AH57: 0.04978806845 | AI57: 1.860487286 | AJ57: =AI57*'Input Data'!$E$12 -> 0.7255900414 | AK57: =IF(AI57*'Input Data'!$D$12-('Input Data'!$D$13*0.08333333)<0,0,AI57*'Input Data'!$D$12-('Input Data'!$D$13*0.08333333)) -> 0 | AL57: 2.686186652 | AM57: =AL57*'Input Data'!$E$12 -> 1.047612794 | AN57: =IF(AL57*'Input Data'!$D$12-('Input Data'!$D$13*0.08333333)<0,0,AL57*'Input Data'!$D$12-('Input Data'!$D$13*0.08333333)) -> 0.3803307167 | AO57: 5.392724634 | AP57: =AO57*'Input Data'!$E$12 -> 2.103162607 | AQ57: =IF(AO57*'Input Data'!$D$12-('Input Data'!$D$13*0.08333333)<0,0,AO57*'Input Data'!$D$12-('Input Data'!$D$13*0.08333333)) -> 2.274907304
P58: 18 | Q58: 3.083333333 | R58: 1 | S58: 0.005963075977 | T58: 0.2228290308 | U58: =T58*'Input Data'!$E$12 -> 0.08690332202 | V58: =IF(T58*'Input Data'!$D$12-('Input Data'!$D$13*0.08333333)<0,0,T58*'Input Data'!$D$12-('Input Data'!$D$13*0.08333333)) -> 0 | W58: 0.3217223643 | X58: =W58*'Input Data'!$E$12 -> 0.1254717221 | Y58: =IF(W58*'Input Data'!$D$12-('Input Data'!$D$13*0.08333333)<0,0,W58*'Input Data'!$D$12-('Input Data'!$D$13*0.08333333)) -> 0 | Z58: 0.6458821906 | AA58: =Z58*'Input Data'!$E$12 -> 0.2518940543 | AB58: =IF(Z58*'Input Data'!$D$12-('Input Data'!$D$13*0.08333333)<0,0,Z58*'Input Data'!$D$12-('Input Data'!$D$13*0.08333333)) -> 0 | AE58: 0 | AF58: 3.083333333 | AG58: 0.0302964588 | AH58: 0.07486949042 | AI58: 2.797733259 | AJ58: =AI58*'Input Data'!$E$12 -> 1.091115971 | AK58: =IF(AI58*'Input Data'!$D$12-('Input Data'!$D$13*0.08333333)<0,0,AI58*'Input Data'!$D$12-('Input Data'!$D$13*0.08333333)) -> 0.4584133412 | AL58: 4.03939 | AM58: =AL58*'Input Data'!$E$12 -> 1.5753621 | AN58: =IF(AL58*'Input Data'!$D$12-('Input Data'!$D$13*0.08333333)<0,0,AL58*'Input Data'!$D$12-('Input Data'!$D$13*0.08333333)) -> 1.32757306 | AO58: 8.10938359 | AP58: =AO58*'Input Data'!$E$12 -> 3.1626596 | AQ58: =IF(AO58*'Input Data'!$D$12-('Input Data'!$D$13*0.08333333)<0,0,AO58*'Input Data'!$D$12-('Input Data'!$D$13*0.08333333)) -> 4.176568573
P59: Sum Rf (mm) | T59: =SUM(T22:T58) -> 37.36813545 | U59: 14.57357282 | V59: 3.043142282 | W59: 53.95241744 | X59: 21.0414428 | Y59: 8.26610422 | Z59: 108.313594 | AA59: 42.24230167 | AB59: 33.9135936 | AE59: 1 | AF59: 3.166666667 | AG59: 0.07417297383 | AH59: 0.04978806845 | AI59: 1.860487286 | AJ59: =AI59*'Input Data'!$E$12 -> 0.7255900414 | AK59: =IF(AI59*'Input Data'!$D$12-('Input Data'!$D$13*0.08333333)<0,0,AI59*'Input Data'!$D$12-('Input Data'!$D$13*0.08333333)) -> 0 | AL59: 2.686186652 | AM59: =AL59*'Input Data'!$E$12 -> 1.047612794 | AN59: =IF(AL59*'Input Data'!$D$12-('Input Data'!$D$13*0.08333333)<0,0,AL59*'Input Data'!$D$12-('Input Data'!$D$13*0.08333333)) -> 0.3803307167 | AO59: 5.392724634 | AP59: =AO59*'Input Data'!$E$12 -> 2.103162607 | AQ59: =IF(AO59*'Input Data'!$D$12-('Input Data'!$D$13*0.08333333)<0,0,AO59*'Input Data'!$D$12-('Input Data'!$D$13*0.08333333)) -> 2.274907304
P60: Max Rf (mm) | T60: =MAX(T22:T58) -> 4.745701135 | U60: 1.850823443 | V60: 1.821990855 | W60: 6.85188184 | X60: 2.672233917 | Y60: 3.296317348 | Z60: 13.75567552 | AA60: 5.364713454 | AB60: 8.128972926 | AE60: 2 | AF60: 3.25 | AG60: 0.112474073 | AH60: 0.03953407956 | AI60: 1.47731484 | AJ60: =AI60*'Input Data'!$E$12 -> 0.5761527876 | AK60: =IF(AI60*'Input Data'!$D$12-('Input Data'!$D$13*0.08333333)<0,0,AI60*'Input Data'!$D$12-('Input Data'!$D$13*0.08333333)) -> 0 | AL60: 2.132959164 | AM60: =AL60*'Input Data'!$E$12 -> 0.8318540738 | AN60: =IF(AL60*'Input Data'!$D$12-('Input Data'!$D$13*0.08333333)<0,0,AL60*'Input Data'!$D$12-('Input Data'!$D$13*0.08333333)) -> 0 | AO60: 4.282078244 | AP60: =AO60*'Input Data'!$E$12 -> 1.670010515 | AQ60: =IF(AO60*'Input Data'!$D$12-('Input Data'!$D$13*0.08333333)<0,0,AO60*'Input Data'!$D$12-('Input Data'!$D$13*0.08333333)) -> 1.497454831
AE61: 3 | AF61: 3.333333333 | AG61: 0.1479608343 | AH61: 0.03364440934 | AI61: 1.257228845 | AJ61: =AI61*'Input Data'!$E$12 -> 0.4903192496 | AK61: =IF(AI61*'Input Data'!$D$12-('Input Data'!$D$13*0.08333333)<0,0,AI61*'Input Data'!$D$12-('Input Data'!$D$13*0.08333333)) -> 0 | AL61: 1.815197217 | AM61: =AL61*'Input Data'!$E$12 -> 0.7079269146 | AN61: =IF(AL61*'Input Data'!$D$12-('Input Data'!$D$13*0.08333333)<0,0,AL61*'Input Data'!$D$12-('Input Data'!$D$13*0.08333333)) -> 0 | AO61: 3.644146894 | AP61: =AO61*'Input Data'!$E$12 -> 1.421217289 | AQ61: =IF(AO61*'Input Data'!$D$12-('Input Data'!$D$13*0.08333333)<0,0,AO61*'Input Data'!$D$12-('Input Data'!$D$13*0.08333333)) -> 1.050902886
AE62: 4 | AF62: 3.416666667 | AG62: 0.1815931718 | AH62: 0.02944636891 | AI62: 1.100355902 | AJ62: =AI62*'Input Data'!$E$12 -> 0.4291388017 | AK62: =IF(AI62*'Input Data'!$D$12-('Input Data'!$D$13*0.08333333)<0,0,AI62*'Input Data'!$D$12-('Input Data'!$D$13*0.08333333)) -> 0 | AL62: 1.588702787 | AM62: =AL62*'Input Data'!$E$12 -> 0.619594087 | AN62: =IF(AL62*'Input Data'!$D$12-('Input Data'!$D$13*0.08333333)<0,0,AL62*'Input Data'!$D$12-('Input Data'!$D$13*0.08333333)) -> 0 | AO62: 3.189442047 | AP62: =AO62*'Input Data'!$E$12 -> 1.243882398 | AQ62: =IF(AO62*'Input Data'!$D$12-('Input Data'!$D$13*0.08333333)<0,0,AO62*'Input Data'!$D$12-('Input Data'!$D$13*0.08333333)) -> 0.732609493
AE63: 5 | AF63: 3.5 | AG63: 0.2138586926 | AH63: 0.02618519468 | AI63: 0.9784919017 | AJ63: =AI63*'Input Data'!$E$12 -> 0.3816118417 | AK63: =IF(AI63*'Input Data'!$D$12-('Input Data'!$D$13*0.08333333)<0,0,AI63*'Input Data'!$D$12-('Input Data'!$D$13*0.08333333)) -> 0 | AL63: 1.412754554 | AM63: =AL63*'Input Data'!$E$12 -> 0.5509742762 | AN63: =IF(AL63*'Input Data'!$D$12-('Input Data'!$D$13*0.08333333)<0,0,AL63*'Input Data'!$D$12-('Input Data'!$D$13*0.08333333)) -> 0 | AO63: 2.836212547 | AP63: =AO63*'Input Data'!$E$12 -> 1.106122893 | AQ63: =IF(AO63*'Input Data'!$D$12-('Input Data'!$D$13*0.08333333)<0,0,AO63*'Input Data'!$D$12-('Input Data'!$D$13*0.08333333)) -> 0.4853488426
AE64: 6 | AF64: 3.583333333 | AG64: 0.245050561 | AH64: 0.02353007371 | AI64: 0.8792749817 | AJ64: =AI64*'Input Data'!$E$12 -> 0.3429172429 | AK64: =IF(AI64*'Input Data'!$D$12-('Input Data'!$D$13*0.08333333)<0,0,AI64*'Input Data'!$D$12-('Input Data'!$D$13*0.08333333)) -> 0 | AL64: 1.269504359 | AM64: =AL64*'Input Data'!$E$12 -> 0.4951067001 | AN64: =IF(AL64*'Input Data'!$D$12-('Input Data'!$D$13*0.08333333)<0,0,AL64*'Input Data'!$D$12-('Input Data'!$D$13*0.08333333)) -> 0 | AO64: 2.548626852 | AP64: =AO64*'Input Data'!$E$12 -> 0.9939644722 | AQ64: =IF(AO64*'Input Data'!$D$12-('Input Data'!$D$13*0.08333333)<0,0,AO64*'Input Data'!$D$12-('Input Data'!$D$13*0.08333333)) -> 0.2840388562
AE65: 7 | AF65: 3.666666667 | AG65: 0.2753634189 | AH65: 0.02130351322 | AI65: 0.7960725676 | AJ65: =AI65*'Input Data'!$E$12 -> 0.3104683014 | AK65: =IF(AI65*'Input Data'!$D$12-('Input Data'!$D$13*0.08333333)<0,0,AI65*'Input Data'!$D$12-('Input Data'!$D$13*0.08333333)) -> 0 | AL65: 1.149376038 | AM65: =AL65*'Input Data'!$E$12 -> 0.4482566549 | AN65: =IF(AL65*'Input Data'!$D$12-('Input Data'!$D$13*0.08333333)<0,0,AL65*'Input Data'!$D$12-('Input Data'!$D$13*0.08333333)) -> 0 | AO65: 2.307460082 | AP65: =AO65*'Input Data'!$E$12 -> 0.8999094322 | AQ65: =IF(AO65*'Input Data'!$D$12-('Input Data'!$D$13*0.08333333)<0,0,AO65*'Input Data'!$D$12-('Input Data'!$D$13*0.08333333)) -> 0.1152221177
AE66: 8 | AF66: 3.75 | AG66: 0.3049353265 | AH66: 0.0193980042 | AI66: 0.7248672484 | AJ66: =AI66*'Input Data'!$E$12 -> 0.2826982269 | AK66: =IF(AI66*'Input Data'!$D$12-('Input Data'!$D$13*0.08333333)<0,0,AI66*'Input Data'!$D$12-('Input Data'!$D$13*0.08333333)) -> 0 | AL66: 1.04656922 | AM66: =AL66*'Input Data'!$E$12 -> 0.4081619958 | AN66: =IF(AL66*'Input Data'!$D$12-('Input Data'!$D$13*0.08333333)<0,0,AL66*'Input Data'!$D$12-('Input Data'!$D$13*0.08333333)) -> 0 | AO66: 2.101067552 | AP66: =AO66*'Input Data'!$E$12 -> 0.8194163452 | AQ66: =IF(AO66*'Input Data'!$D$12-('Input Data'!$D$13*0.08333333)<0,0,AO66*'Input Data'!$D$12-('Input Data'!$D$13*0.08333333)) -> 0
AE67: 9 | AF67: 3.833333333 | AG67: 0.3338689673 | AH67: 0.01774289313 | AI67: 0.6630188336 | AJ67: =AI67*'Input Data'!$E$12 -> 0.2585773451 | AK67: =IF(AI67*'Input Data'!$D$12-('Input Data'!$D$13*0.08333333)<0,0,AI67*'Input Data'!$D$12-('Input Data'!$D$13*0.08333333)) -> 0 | AL67: 0.9572719765 | AM67: =AL67*'Input Data'!$E$12 -> 0.3733360708 | AN67: =IF(AL67*'Input Data'!$D$12-('Input Data'!$D$13*0.08333333)<0,0,AL67*'Input Data'!$D$12-('Input Data'!$D$13*0.08333333)) -> 0 | AO67: 1.921796523 | AP67: =AO67*'Input Data'!$E$12 -> 0.749500644 | AQ67: =IF(AO67*'Input Data'!$D$12-('Input Data'!$D$13*0.08333333)<0,0,AO67*'Input Data'!$D$12-('Input Data'!$D$13*0.08333333)) -> 0
AE68: 10 | AF68: 3.916666667 | AG68: 0.362243494 | AH68: 0.01628893989 | AI68: 0.6086873122 | AJ68: =AI68*'Input Data'!$E$12 -> 0.2373880517 | AK68: =IF(AI68*'Input Data'!$D$12-('Input Data'!$D$13*0.08333333)<0,0,AI68*'Input Data'!$D$12-('Input Data'!$D$13*0.08333333)) -> 0 | AL68: 0.8788276846 | AM68: =AL68*'Input Data'!$E$12 -> 0.342742797 | AN68: =IF(AL68*'Input Data'!$D$12-('Input Data'!$D$13*0.08333333)<0,0,AL68*'Input Data'!$D$12-('Input Data'!$D$13*0.08333333)) -> 0 | AO68: 1.764313622 | AP68: =AO68*'Input Data'!$E$12 -> 0.6880823128 | AQ68: =IF(AO68*'Input Data'!$D$12-('Input Data'!$D$13*0.08333333)<0,0,AO68*'Input Data'!$D$12-('Input Data'!$D$13*0.08333333)) -> 0
AE69: 11 | AF69: 4 | AG69: 0.3901216527 | AH69: 0.01500027625 | AI69: 0.5605323547 | AJ69: =AI69*'Input Data'!$E$12 -> 0.2186076183 | AK69: =IF(AI69*'Input Data'!$D$12-('Input Data'!$D$13*0.08333333)<0,0,AI69*'Input Data'!$D$12-('Input Data'!$D$13*0.08333333)) -> 0 | AL69: 0.8093011659 | AM69: =AL69*'Input Data'!$E$12 -> 0.3156274547 | AN69: =IF(AL69*'Input Data'!$D$12-('Input Data'!$D$13*0.08333333)<0,0,AL69*'Input Data'!$D$12-('Input Data'!$D$13*0.08333333)) -> 0 | AO69: 1.624733832 | AP69: =AO69*'Input Data'!$E$12 -> 0.6336461945 | AQ69: =IF(AO69*'Input Data'!$D$12-('Input Data'!$D$13*0.08333333)<0,0,AO69*'Input Data'!$D$12-('Input Data'!$D$13*0.08333333)) -> 0
AE70: 12 | AF70: 4.083333333 | AG70: 0.417554315 | AH70: 0.01384985913 | AI70: 0.5175434118 | AJ70: =AI70*'Input Data'!$E$12 -> 0.2018419306 | AK70: =IF(AI70*'Input Data'!$D$12-('Input Data'!$D$13*0.08333333)<0,0,AI70*'Input Data'!$D$12-('Input Data'!$D$13*0.08333333)) -> 0 | AL70: 0.747233381 | AM70: =AL70*'Input Data'!$E$12 -> 0.2914210186 | AN70: =IF(AL70*'Input Data'!$D$12-('Input Data'!$D$13*0.08333333)<0,0,AL70*'Input Data'!$D$12-('Input Data'!$D$13*0.08333333)) -> 0 | AO70: 1.500128019 | AP70: =AO70*'Input Data'!$E$12 -> 0.5850499273 | AQ70: =IF(AO70*'Input Data'!$D$12-('Input Data'!$D$13*0.08333333)<0,0,AO70*'Input Data'!$D$12-('Input Data'!$D$13*0.08333333)) -> 0
AE71: 13 | AF71: 4.166666667 | AG71: 0.4445834962 | AH71: 0.01281673063 | AI71: 0.4789373263 | AJ71: =AI71*'Input Data'!$E$12 -> 0.1867855573 | AK71: =IF(AI71*'Input Data'!$D$12-('Input Data'!$D$13*0.08333333)<0,0,AI71*'Input Data'!$D$12-('Input Data'!$D$13*0.08333333)) -> 0 | AL71: 0.6914936013 | AM71: =AL71*'Input Data'!$E$12 -> 0.2696825045 | AN71: =IF(AL71*'Input Data'!$D$12-('Input Data'!$D$13*0.08333333)<0,0,AL71*'Input Data'!$D$12-('Input Data'!$D$13*0.08333333)) -> 0 | AO71: 1.388226159 | AP71: =AO71*'Input Data'!$E$12 -> 0.5414082018 | AQ71: =IF(AO71*'Input Data'!$D$12-('Input Data'!$D$13*0.08333333)<0,0,AO71*'Input Data'!$D$12-('Input Data'!$D$13*0.08333333)) -> 0
AE72: 14 | AF72: 4.25 | AG72: 0.4712444379 | AH72: 0.01188428056 | AI72: 0.4440934056 | AJ72: =AI72*'Input Data'!$E$12 -> 0.1731964282 | AK72: =IF(AI72*'Input Data'!$D$12-('Input Data'!$D$13*0.08333333)<0,0,AI72*'Input Data'!$D$12-('Input Data'!$D$13*0.08333333)) -> 0 | AL72: 0.6411856655 | AM72: =AL72*'Input Data'!$E$12 -> 0.2500624096 | AN72: =IF(AL72*'Input Data'!$D$12-('Input Data'!$D$13*0.08333333)<0,0,AL72*'Input Data'!$D$12-('Input Data'!$D$13*0.08333333)) -> 0 | AO72: 1.28722914 | AP72: =AO72*'Input Data'!$E$12 -> 0.5020193644 | AQ72: =IF(AO72*'Input Data'!$D$12-('Input Data'!$D$13*0.08333333)<0,0,AO72*'Input Data'!$D$12-('Input Data'!$D$13*0.08333333)) -> 0
AE73: 15 | AF73: 4.333333333 | AG73: 0.4975670922 | AH73: 0.01103909755 | AI73: 0.4125104926 | AJ73: =AI73*'Input Data'!$E$12 -> 0.1608790921 | AK73: =IF(AI73*'Input Data'!$D$12-('Input Data'!$D$13*0.08333333)<0,0,AI73*'Input Data'!$D$12-('Input Data'!$D$13*0.08333333)) -> 0 | AL73: 0.5955859993 | AM73: =AL73*'Input Data'!$E$12 -> 0.2322785397 | AN73: =IF(AL73*'Input Data'!$D$12-('Input Data'!$D$13*0.08333333)<0,0,AL73*'Input Data'!$D$12-('Input Data'!$D$13*0.08333333)) -> 0 | AO73: 1.195684331 | AP73: =AO73*'Input Data'!$E$12 -> 0.466316889 | AQ73: =IF(AO73*'Input Data'!$D$12-('Input Data'!$D$13*0.08333333)<0,0,AO73*'Input Data'!$D$12-('Input Data'!$D$13*0.08333333)) -> 0
AE74: 16 | AF74: 4.416666667 | AG74: 0.5235772045 | AH74: 0.01027018268 | AI74: 0.3837775773 | AJ74: =AI74*'Input Data'!$E$12 -> 0.1496732551 | AK74: =IF(AI74*'Input Data'!$D$12-('Input Data'!$D$13*0.08333333)<0,0,AI74*'Input Data'!$D$12-('Input Data'!$D$13*0.08333333)) -> 0 | AL74: 0.5541011829 | AM74: =AL74*'Input Data'!$E$12 -> 0.2160994613 | AN74: =IF(AL74*'Input Data'!$D$12-('Input Data'!$D$13*0.08333333)<0,0,AL74*'Input Data'!$D$12-('Input Data'!$D$13*0.08333333)) -> 0 | AO74: 1.112400397 | AP74: =AO74*'Input Data'!$E$12 -> 0.4338361548 | AQ74: =IF(AO74*'Input Data'!$D$12-('Input Data'!$D$13*0.08333333)<0,0,AO74*'Input Data'!$D$12-('Input Data'!$D$13*0.08333333)) -> 0
AE75: 17 | AF75: 4.5 | AG75: 0.549297124 | AH75: 0.00956839484 | AI75: 0.3575530744 | AJ75: =AI75*'Input Data'!$E$12 -> 0.139445699 | AK75: =IF(AI75*'Input Data'!$D$12-('Input Data'!$D$13*0.08333333)<0,0,AI75*'Input Data'!$D$12-('Input Data'!$D$13*0.08333333)) -> 0 | AL75: 0.5162380326 | AM75: =AL75*'Input Data'!$E$12 -> 0.2013328327 | AN75: =IF(AL75*'Input Data'!$D$12-('Input Data'!$D$13*0.08333333)<0,0,AL75*'Input Data'!$D$12-('Input Data'!$D$13*0.08333333)) -> 0 | AO75: 1.036387234 | AP75: =AO75*'Input Data'!$E$12 -> 0.4041910213 | AQ75: =IF(AO75*'Input Data'!$D$12-('Input Data'!$D$13*0.08333333)<0,0,AO75*'Input Data'!$D$12-('Input Data'!$D$13*0.08333333)) -> 0
AE76: 18 | AF76: 4.583333333 | AG76: 0.5747464191 | AH76: 0.008926049806 | AI76: 0.3335498382 | AJ76: =AI76*'Input Data'!$E$12 -> 0.1300844369 | AK76: =IF(AI76*'Input Data'!$D$12-('Input Data'!$D$13*0.08333333)<0,0,AI76*'Input Data'!$D$12-('Input Data'!$D$13*0.08333333)) -> 0 | AL76: 0.4815819652 | AM76: =AL76*'Input Data'!$E$12 -> 0.1878169664 | AN76: =IF(AL76*'Input Data'!$D$12-('Input Data'!$D$13*0.08333333)<0,0,AL76*'Input Data'!$D$12-('Input Data'!$D$13*0.08333333)) -> 0 | AO76: 0.966812535 | AP76: =AO76*'Input Data'!$E$12 -> 0.3770568886 | AQ76: =IF(AO76*'Input Data'!$D$12-('Input Data'!$D$13*0.08333333)<0,0,AO76*'Input Data'!$D$12-('Input Data'!$D$13*0.08333333)) -> 0
AE77: 19 | AF77: 4.666666667 | AG77: 0.5999423553 | AH77: 0.008336623744 | AI77: 0.3115240852 | AJ77: =AI77*'Input Data'!$E$12 -> 0.1214943932 | AK77: =IF(AI77*'Input Data'!$D$12-('Input Data'!$D$13*0.08333333)<0,0,AI77*'Input Data'!$D$12-('Input Data'!$D$13*0.08333333)) -> 0 | AL77: 0.4497810042 | AM77: =AL77*'Input Data'!$E$12 -> 0.1754145916 | AN77: =IF(AL77*'Input Data'!$D$12-('Input Data'!$D$13*0.08333333)<0,0,AL77*'Input Data'!$D$12-('Input Data'!$D$13*0.08333333)) -> 0 | AO77: 0.9029696797 | AP77: =AO77*'Input Data'!$E$12 -> 0.3521581751 | AQ77: =IF(AO77*'Input Data'!$D$12-('Input Data'!$D$13*0.08333333)<0,0,AO77*'Input Data'!$D$12-('Input Data'!$D$13*0.08333333)) -> 0
AE78: 20 | AF78: 4.75 | AG78: 0.6249002699 | AH78: 0.007794529865 | AI78: 0.2912670477 | AJ78: =AI78*'Input Data'!$E$12 -> 0.1135941486 | AK78: =IF(AI78*'Input Data'!$D$12-('Input Data'!$D$13*0.08333333)<0,0,AI78*'Input Data'!$D$12-('Input Data'!$D$13*0.08333333)) -> 0 | AL78: 0.420533729 | AM78: =AL78*'Input Data'!$E$12 -> 0.1640081543 | AN78: =IF(AL78*'Input Data'!$D$12-('Input Data'!$D$13*0.08333333)<0,0,AL78*'Input Data'!$D$12-('Input Data'!$D$13*0.08333333)) -> 0 | AO78: 0.8442535434 | AP78: =AO78*'Input Data'!$E$12 -> 0.3292588819 | AQ78: =IF(AO78*'Input Data'!$D$12-('Input Data'!$D$13*0.08333333)<0,0,AO78*'Input Data'!$D$12-('Input Data'!$D$13*0.08333333)) -> 0
AE79: 21 | AF79: 4.833333333 | AG79: 0.649633871 | AH79: 0.007294947244 | AI79: 0.2725985767 | AJ79: =AI79*'Input Data'!$E$12 -> 0.1063134449 | AK79: =IF(AI79*'Input Data'!$D$12-('Input Data'!$D$13*0.08333333)<0,0,AI79*'Input Data'!$D$12-('Input Data'!$D$13*0.08333333)) -> 0 | AL79: 0.3935800389 | AM79: =AL79*'Input Data'!$E$12 -> 0.1534962152 | AN79: =IF(AL79*'Input Data'!$D$12-('Input Data'!$D$13*0.08333333)<0,0,AL79*'Input Data'!$D$12-('Input Data'!$D$13*0.08333333)) -> 0 | AO79: 0.7901419542 | AP79: =AO79*'Input Data'!$E$12 -> 0.3081553621 | AQ79: =IF(AO79*'Input Data'!$D$12-('Input Data'!$D$13*0.08333333)<0,0,AO79*'Input Data'!$D$12-('Input Data'!$D$13*0.08333333)) -> 0
AE80: 22 | AF80: 4.916666667 | AG80: 0.6741554778 | AH80: 0.00683368764 | AI80: 0.2553621654 | AJ80: =AI80*'Input Data'!$E$12 -> 0.09959124449 | AK80: =IF(AI80*'Input Data'!$D$12-('Input Data'!$D$13*0.08333333)<0,0,AI80*'Input Data'!$D$12-('Input Data'!$D$13*0.08333333)) -> 0 | AL80: 0.3686939682 | AM80: =AL80*'Input Data'!$E$12 -> 0.1437906476 | AN80: =IF(AL80*'Input Data'!$D$12-('Input Data'!$D$13*0.08333333)<0,0,AL80*'Input Data'!$D$12-('Input Data'!$D$13*0.08333333)) -> 0 | AO80: 0.7401812688 | AP80: =AO80*'Input Data'!$E$12 -> 0.2886706948 | AQ80: =IF(AO80*'Input Data'!$D$12-('Input Data'!$D$13*0.08333333)<0,0,AO80*'Input Data'!$D$12-('Input Data'!$D$13*0.08333333)) -> 0
AE81: 23 | AF81: 5 | AG81: 0.6984762173 | AH81: 0.006407090498 | AI81: 0.2394210256 | AJ81: =AI81*'Input Data'!$E$12 -> 0.09337419997 | AK81: =IF(AI81*'Input Data'!$D$12-('Input Data'!$D$13*0.08333333)<0,0,AI81*'Input Data'!$D$12-('Input Data'!$D$13*0.08333333)) -> 0 | AL81: 0.3456780211 | AM81: =AL81*'Input Data'!$E$12 -> 0.1348144282 | AN81: =IF(AL81*'Input Data'!$D$12-('Input Data'!$D$13*0.08333333)<0,0,AL81*'Input Data'!$D$12-('Input Data'!$D$13*0.08333333)) -> 0 | AO81: 0.6939749991 | AP81: =AO81*'Input Data'!$E$12 -> 0.2706502496 | AQ81: =IF(AO81*'Input Data'!$D$12-('Input Data'!$D$13*0.08333333)<0,0,AO81*'Input Data'!$D$12-('Input Data'!$D$13*0.08333333)) -> 0
AE82: 24 | AF82: 5.083333333 | AG82: 0.7226061845 | AH82: 0.006011939148 | AI82: 0.2246549564 | AJ82: =AI82*'Input Data'!$E$12 -> 0.08761543299 | AK82: =IF(AI82*'Input Data'!$D$12-('Input Data'!$D$13*0.08333333)<0,0,AI82*'Input Data'!$D$12-('Input Data'!$D$13*0.08333333)) -> 0 | AL82: 0.3243586505 | AM82: =AL82*'Input Data'!$E$12 -> 0.1264998737 | AN82: =IF(AL82*'Input Data'!$D$12-('Input Data'!$D$13*0.08333333)<0,0,AL82*'Input Data'!$D$12-('Input Data'!$D$13*0.08333333)) -> 0 | AO82: 0.6511747362 | AP82: =AO82*'Input Data'!$E$12 -> 0.2539581471 | AQ82: =IF(AO82*'Input Data'!$D$12-('Input Data'!$D$13*0.08333333)<0,0,AO82*'Input Data'!$D$12-('Input Data'!$D$13*0.08333333)) -> 0
AE83: 25 | AF83: 5.166666667 | AG83: 0.7465545772 | AH83: 0.005645393211 | AI83: 0.2109578182 | AJ83: =AI83*'Input Data'!$E$12 -> 0.08227354908 | AK83: =IF(AI83*'Input Data'!$D$12-('Input Data'!$D$13*0.08333333)<0,0,AI83*'Input Data'!$D$12-('Input Data'!$D$13*0.08333333)) -> 0 | AL83: 0.3045826111 | AM83: =AL83*'Input Data'!$E$12 -> 0.1187872183 | AN83: =IF(AL83*'Input Data'!$D$12-('Input Data'!$D$13*0.08333333)<0,0,AL83*'Input Data'!$D$12-('Input Data'!$D$13*0.08333333)) -> 0 | AO83: 0.6114728283 | AP83: =AO83*'Input Data'!$E$12 -> 0.238474403 | AQ83: =IF(AO83*'Input Data'!$D$12-('Input Data'!$D$13*0.08333333)<0,0,AO83*'Input Data'!$D$12-('Input Data'!$D$13*0.08333333)) -> 0
AE84: 26 | AF84: 5.25 | AG84: 0.7703298071 | AH84: 0.00530493352 | AI84: 0.1982354743 | AJ84: =AI84*'Input Data'!$E$12 -> 0.07731183498 | AK84: =IF(AI84*'Input Data'!$D$12-('Input Data'!$D$13*0.08333333)<0,0,AI84*'Input Data'!$D$12-('Input Data'!$D$13*0.08333333)) -> 0 | AL84: 0.2862139877 | AM84: =AL84*'Input Data'!$E$12 -> 0.1116234552 | AN84: =IF(AL84*'Input Data'!$D$12-('Input Data'!$D$13*0.08333333)<0,0,AL84*'Input Data'!$D$12-('Input Data'!$D$13*0.08333333)) -> 0 | AO84: 0.5745964156 | AP84: =AO84*'Input Data'!$E$12 -> 0.2240926021 | AQ84: =IF(AO84*'Input Data'!$D$12-('Input Data'!$D$13*0.08333333)<0,0,AO84*'Input Data'!$D$12-('Input Data'!$D$13*0.08333333)) -> 0
AE85: 27 | AF85: 5.333333333 | AG85: 0.7939395941 | AH85: 0.004988316852 | AI85: 0.1864040998 | AJ85: =AI85*'Input Data'!$E$12 -> 0.07269759891 | AK85: =IF(AI85*'Input Data'!$D$12-('Input Data'!$D$13*0.08333333)<0,0,AI85*'Input Data'!$D$12-('Input Data'!$D$13*0.08333333)) -> 0 | AL85: 0.2691317531 | AM85: =AL85*'Input Data'!$E$12 -> 0.1049613837 | AN85: =IF(AL85*'Input Data'!$D$12-('Input Data'!$D$13*0.08333333)<0,0,AL85*'Input Data'!$D$12-('Input Data'!$D$13*0.08333333)) -> 0 | AO85: 0.5403025263 | AP85: =AO85*'Input Data'!$E$12 -> 0.2107179853 | AQ85: =IF(AO85*'Input Data'!$D$12-('Input Data'!$D$13*0.08333333)<0,0,AO85*'Input Data'!$D$12-('Input Data'!$D$13*0.08333333)) -> 0
AE86: 28 | AF86: 5.416666667 | AG86: 0.8173910467 | AH86: 0.004693538402 | AI86: 0.1753887787 | AJ86: =AI86*'Input Data'!$E$12 -> 0.06840162371 | AK86: =IF(AI86*'Input Data'!$D$12-('Input Data'!$D$13*0.08333333)<0,0,AI86*'Input Data'!$D$12-('Input Data'!$D$13*0.08333333)) -> 0 | AL86: 0.2532277431 | AM86: =AL86*'Input Data'!$E$12 -> 0.09875881981 | AN86: =IF(AL86*'Input Data'!$D$12-('Input Data'!$D$13*0.08333333)<0,0,AL86*'Input Data'!$D$12-('Input Data'!$D$13*0.08333333)) -> 0 | AO86: 0.508374013 | AP86: =AO86*'Input Data'!$E$12 -> 0.1982658651 | AQ86: =IF(AO86*'Input Data'!$D$12-('Input Data'!$D$13*0.08333333)<0,0,AO86*'Input Data'!$D$12-('Input Data'!$D$13*0.08333333)) -> 0
AE87: 29 | AF87: 5.5 | AG87: 0.8406907297 | AH87: 0.004418800457 | AI87: =AH87*$B$9 -> 0.165122334 | AJ87: =AI87*'Input Data'!$E$12 -> 0.06439771025 | AK87: =IF(AI87*'Input Data'!$D$12-('Input Data'!$D$13*0.08333333)<0,0,AI87*'Input Data'!$D$12-('Input Data'!$D$13*0.08333333)) -> 0 | AL87: =AH87*$B$10 -> 0.2384049668 | AM87: =AL87*'Input Data'!$E$12 -> 0.09297793705 | AN87: =IF(AL87*'Input Data'!$D$12-('Input Data'!$D$13*0.08333333)<0,0,AL87*'Input Data'!$D$12-('Input Data'!$D$13*0.08333333)) -> 0 | AO87: =AH87*$B$11 -> 0.4786161587 | AP87: =AO87*'Input Data'!$E$12 -> 0.1866603019 | AQ87: =IF(AO87*'Input Data'!$D$12-('Input Data'!$D$13*0.08333333)<0,0,AO87*'Input Data'!$D$12-('Input Data'!$D$13*0.08333333)) -> 0
AE88: 30 | AF88: 5.583333333 | AG88: 0.8638447229 | AH88: 0.00416248605 | AI88: 0.1555443425 | AJ88: =AI88*'Input Data'!$E$12 -> 0.06066229359 | AK88: =IF(AI88*'Input Data'!$D$12-('Input Data'!$D$13*0.08333333)<0,0,AI88*'Input Data'!$D$12-('Input Data'!$D$13*0.08333333)) -> 0 | AL88: 0.224576185 | AM88: =AL88*'Input Data'!$E$12 -> 0.08758471213 | AN88: =IF(AL88*'Input Data'!$D$12-('Input Data'!$D$13*0.08333333)<0,0,AL88*'Input Data'!$D$12-('Input Data'!$D$13*0.08333333)) -> 0 | AO88: 0.4508538242 | AP88: =AO88*'Input Data'!$E$12 -> 0.1758329914 | AQ88: =IF(AO88*'Input Data'!$D$12-('Input Data'!$D$13*0.08333333)<0,0,AO88*'Input Data'!$D$12-('Input Data'!$D$13*0.08333333)) -> 0
AE89: 31 | AF89: 5.666666667 | AG89: 0.8868586715 | AH89: 0.003923136679 | AI89: 0.1466003028 | AJ89: =AI89*'Input Data'!$E$12 -> 0.05717411809 | AK89: =IF(AI89*'Input Data'!$D$12-('Input Data'!$D$13*0.08333333)<0,0,AI89*'Input Data'!$D$12-('Input Data'!$D$13*0.08333333)) -> 0 | AL89: 0.2116627077 | AM89: =AL89*'Input Data'!$E$12 -> 0.08254845602 | AN89: =IF(AL89*'Input Data'!$D$12-('Input Data'!$D$13*0.08333333)<0,0,AL89*'Input Data'!$D$12-('Input Data'!$D$13*0.08333333)) -> 0 | AO89: 0.4249290335 | AP89: =AO89*'Input Data'!$E$12 -> 0.1657223231 | AQ89: =IF(AO89*'Input Data'!$D$12-('Input Data'!$D$13*0.08333333)<0,0,AO89*'Input Data'!$D$12-('Input Data'!$D$13*0.08333333)) -> 0
AE90: 32 | AF90: 5.75 | AG90: 0.9097378303 | AH90: 0.00369943333 | AI90: 0.1382409258 | AJ90: =AI90*'Input Data'!$E$12 -> 0.05391396105 | AK90: =IF(AI90*'Input Data'!$D$12-('Input Data'!$D$13*0.08333333)<0,0,AI90*'Input Data'!$D$12-('Input Data'!$D$13*0.08333333)) -> 0 | AL90: 0.1995933713 | AM90: =AL90*'Input Data'!$E$12 -> 0.07784141481 | AN90: =IF(AL90*'Input Data'!$D$12-('Input Data'!$D$13*0.08333333)<0,0,AL90*'Input Data'!$D$12-('Input Data'!$D$13*0.08333333)) -> 0 | AO90: 0.4006989198 | AP90: =AO90*'Input Data'!$E$12 -> 0.1562725787 | AQ90: =IF(AO90*'Input Data'!$D$12-('Input Data'!$D$13*0.08333333)<0,0,AO90*'Input Data'!$D$12-('Input Data'!$D$13*0.08333333)) -> 0
AE91: 33 | AF91: 5.833333333 | AG91: 0.9324871015 | AH91: 0.003490180255 | AI91: 0.1304215285 | AJ91: =AI91*'Input Data'!$E$12 -> 0.05086439612 | AK91: =IF(AI91*'Input Data'!$D$12-('Input Data'!$D$13*0.08333333)<0,0,AI91*'Input Data'!$D$12-('Input Data'!$D$13*0.08333333)) -> 0 | AL91: 0.1883036621 | AM91: =AL91*'Input Data'!$E$12 -> 0.0734384282 | AN91: =IF(AL91*'Input Data'!$D$12-('Input Data'!$D$13*0.08333333)<0,0,AL91*'Input Data'!$D$12-('Input Data'!$D$13*0.08333333)) -> 0 | AO91: 0.3780339672 | AP91: =AO91*'Input Data'!$E$12 -> 0.1474332472 | AQ91: =IF(AO91*'Input Data'!$D$12-('Input Data'!$D$13*0.08333333)<0,0,AO91*'Input Data'!$D$12-('Input Data'!$D$13*0.08333333)) -> 0
AE92: 34 | AF92: 5.916666667 | AG92: 0.9551110684 | AH92: 0.003294291008 | AI92: 0.1231015126 | AJ92: =AI92*'Input Data'!$E$12 -> 0.04800958991 | AK92: =IF(AI92*'Input Data'!$D$12-('Input Data'!$D$13*0.08333333)<0,0,AI92*'Input Data'!$D$12-('Input Data'!$D$13*0.08333333)) -> 0 | AL92: 0.1777349636 | AM92: =AL92*'Input Data'!$E$12 -> 0.06931663581 | AN92: =IF(AL92*'Input Data'!$D$12-('Input Data'!$D$13*0.08333333)<0,0,AL92*'Input Data'!$D$12-('Input Data'!$D$13*0.08333333)) -> 0 | AO92: 0.3568164989 | AP92: =AO92*'Input Data'!$E$12 -> 0.1391584346 | AQ92: =IF(AO92*'Input Data'!$D$12-('Input Data'!$D$13*0.08333333)<0,0,AO92*'Input Data'!$D$12-('Input Data'!$D$13*0.08333333)) -> 0
AE93: 35 | AF93: 6 | AG93: 0.9776140246 | AH93: 0.003110776386 | AI93: 0.1162439133 | AJ93: =AI93*'Input Data'!$E$12 -> 0.0453351262 | AK93: =IF(AI93*'Input Data'!$D$12-('Input Data'!$D$13*0.08333333)<0,0,AI93*'Input Data'!$D$12-('Input Data'!$D$13*0.08333333)) -> 0 | AL93: 0.1678339061 | AM93: =AL93*'Input Data'!$E$12 -> 0.06545522339 | AN93: =IF(AL93*'Input Data'!$D$12-('Input Data'!$D$13*0.08333333)<0,0,AL93*'Input Data'!$D$12-('Input Data'!$D$13*0.08333333)) -> 0 | AO93: 0.3369393706 | AP93: =AO93*'Input Data'!$E$12 -> 0.1314063545 | AQ93: =IF(AO93*'Input Data'!$D$12-('Input Data'!$D$13*0.08333333)<0,0,AO93*'Input Data'!$D$12-('Input Data'!$D$13*0.08333333)) -> 0
AE94: 36 | AF94: 6.083333333 | AG94: 1 | AH94: 0.002938733963 | AI94: 0.1098150088 | AJ94: =AI94*'Input Data'!$E$12 -> 0.04282785342 | AK94: =IF(AI94*'Input Data'!$D$12-('Input Data'!$D$13*0.08333333)<0,0,AI94*'Input Data'!$D$12-('Input Data'!$D$13*0.08333333)) -> 0 | AL94: 0.1585518015 | AM94: =AL94*'Input Data'!$E$12 -> 0.06183520258 | AN94: =IF(AL94*'Input Data'!$D$12-('Input Data'!$D$13*0.08333333)<0,0,AL94*'Input Data'!$D$12-('Input Data'!$D$13*0.08333333)) -> 0 | AO94: 0.3183048374 | AP94: =AO94*'Input Data'!$E$12 -> 0.1241388866 | AQ94: =IF(AO94*'Input Data'!$D$12-('Input Data'!$D$13*0.08333333)<0,0,AO94*'Input Data'!$D$12-('Input Data'!$D$13*0.08333333)) -> 0
AE95: Sum Rf (mm) | AI95: =SUM(AI22:AI94) -> 37.36813545 | AJ95: 14.57357282 | AK95: 0.4584133412 | AL95: 53.95241744 | AM95: 21.0414428 | AN95: 2.088234494 | AO95: 108.313594 | AP95: 42.24230167 | AQ95: 17.05753723
AE96: Max Rf (mm) | AI96: =MAX(AI22:AI94) -> 2.797733259 | AJ96: 1.091115971 | AK96: 0.4584133412 | AL96: 4.03939 | AM96: 1.5753621 | AN96: 1.32757306 | AO96: 8.10938359 | AP96: 3.1626596 | AQ96: 4.176568573
